Organisation Name,Organisation Code,Effective Date,Directorate  Where Expenditure Incurred,Supplier Name,Payment Date,Transaction Number,Gross Amount,Purpose of Spend,Merchant Category,Card Transaction
WALSALL COUNCIL,HTTP://OPENDATACOMMUNITIES.ORG/ID/METROPOLITAN-DISTRICT-COUNCIL/WALSALL,30/06/2019,CHILDRENS SERVICES (SCHOOLS),AMZNMKTPLACE,01/04/2019,H59620190403AABKUSBUW-1,3.1,ADMINISTRATIVE SUPPLIES-MATERIALS,MISCELLANEOUS AND SPECIALTY RETAIL STORES,GPC
WALSALL COUNCIL,HTTP://OPENDATACOMMUNITIES.ORG/ID/METROPOLITAN-DISTRICT-COUNCIL/WALSALL,30/06/2019,CHILDRENS SERVICES,WWW.BANNERUK.COM,01/04/2019,H59620190403ABFSRMQCD-1,58.15,REDRUTH ROAD-STATIONERY & GENERAL OFFICE SU,"STATIONERY, OFFICE SUPPLIES AND WRITING PAPER",GPC
WALSALL COUNCIL,HTTP://OPENDATACOMMUNITIES.ORG/ID/METROPOLITAN-DISTRICT-COUNCIL/WALSALL,30/06/2019,CHILDRENS SERVICES,PARENTPAY E-COM R,01/04/2019,H59620190403ABKRRGWHV-1,20,SPINDLETREE-FOOD AND BEVERAGES-PROVISIONS,"COLLEGES, UNIVERSITIES, PROFESSIONAL SCHOOLS",GPC
WALSALL COUNCIL,HTTP://OPENDATACOMMUNITIES.ORG/ID/METROPOLITAN-DISTRICT-COUNCIL/WALSALL,30/06/2019,RESOURCES & TRANSFORMATION,JOHAL DAIRIES LTD,01/04/2019,H59620190403AMBVOCNHJ-1,26.7,CA COOPER JORDAN CE PRIMARY SC-FOOD & DRINK SUPPLIES,OTHER NONDURABLE GOODS,GPC
WALSALL COUNCIL,HTTP://OPENDATACOMMUNITIES.ORG/ID/METROPOLITAN-DISTRICT-COUNCIL/WALSALL,30/06/2019,RESOURCES & TRANSFORMATION,BLAKEMORE FOODSERVICE,01/04/2019,H59620190403AWWTTNYPX-1,28.47,CA LINDENS PRIMARY SCHOOL-DRY FOODS-PROVISIONS,CATERERS,GPC
WALSALL COUNCIL,HTTP://OPENDATACOMMUNITIES.ORG/ID/METROPOLITAN-DISTRICT-COUNCIL/WALSALL,30/06/2019,RESOURCES & TRANSFORMATION,JOHAL DAIRIES LTD,01/04/2019,H59620190403AZSUFPIBC-1,8.8,CA JANE LANE SPECIAL SCHOOL-FOOD & DRINK SUPPLIES,OTHER NONDURABLE GOODS,GPC
WALSALL COUNCIL,HTTP://OPENDATACOMMUNITIES.ORG/ID/METROPOLITAN-DISTRICT-COUNCIL/WALSALL,30/06/2019,CHILDRENS SERVICES,WALSALL COUNCIL,01/04/2019,H59620190403BCSUULIFT-1,46.34,ST FRANCIS OF ASSISI CATHOLIC -OTHER EMPLOYEES FEES & EXPENSE,GOVERNMENT SERVICES,GPC
WALSALL COUNCIL,HTTP://OPENDATACOMMUNITIES.ORG/ID/METROPOLITAN-DISTRICT-COUNCIL/WALSALL,30/06/2019,RESOURCES & TRANSFORMATION,JOHAL DAIRIES LTD,01/04/2019,H59620190403BETFHPSDG-1,10.68,CA LITTLE BLOXWICH CE PRIMARY -FOOD & DRINK SUPPLIES,OTHER NONDURABLE GOODS,GPC
WALSALL COUNCIL,HTTP://OPENDATACOMMUNITIES.ORG/ID/METROPOLITAN-DISTRICT-COUNCIL/WALSALL,30/06/2019,CHILDRENS SERVICES,REGISTRATION SERVICES,01/04/2019,H59620190403BKDKKISCT-1,11,LOOKED AFTER CHILDRENS SOCIAL -OTHER EMPLOYEES FEES & EXPENSE,OTHER RECREATION SERVICES,GPC
WALSALL COUNCIL,HTTP://OPENDATACOMMUNITIES.ORG/ID/METROPOLITAN-DISTRICT-COUNCIL/WALSALL,30/06/2019,RESOURCES & TRANSFORMATION,BLAKEMORE FOODSERVICE,01/04/2019,H59620190403CGPWNEFDN-1,127.58,CA MOORCROFT WOOD-FROZEN FOODS-PROVISIONS,CATERERS,GPC
WALSALL COUNCIL,HTTP://OPENDATACOMMUNITIES.ORG/ID/METROPOLITAN-DISTRICT-COUNCIL/WALSALL,30/06/2019,ECONOMY & ENVIRONMENT,WWW.NOBISCO.CO.UK,01/04/2019,H59620190403CIBBBGBQN-1,10.68,STREETLY LIBRARY-MATERIALS,OTHER INDUSTRIAL SUPPLIES,GPC
WALSALL COUNCIL,HTTP://OPENDATACOMMUNITIES.ORG/ID/METROPOLITAN-DISTRICT-COUNCIL/WALSALL,30/06/2019,CHILDRENS SERVICES (SCHOOLS),CENTRAL SOURCE LTD,01/04/2019,H59620190403CILQKGDFI-1,69.6,CHUCKERY PRIMARY-BREAD-GENERAL-PROVISIONS,MISCELLANEOUS PUBLISHING AND PRINTING,GPC
WALSALL COUNCIL,HTTP://OPENDATACOMMUNITIES.ORG/ID/METROPOLITAN-DISTRICT-COUNCIL/WALSALL,30/06/2019,CHILDRENS SERVICES,DUNELM (SOFT FURNISHIN,01/04/2019,H59620190403CJIVRPVBT-1,41,BLUEBELLS-NEW-FURNITURE & EQUIPMENT,"DRAPERY, UPHOLSTERY, AND WINDOW COVERINGS STORES",GPC
WALSALL COUNCIL,HTTP://OPENDATACOMMUNITIES.ORG/ID/METROPOLITAN-DISTRICT-COUNCIL/WALSALL,30/06/2019,CHILDRENS SERVICES,THE WORKS,01/04/2019,H59620190403CPODDDYBI-1,8,LOOKED AFTER CHILDRENS SOCIAL -OTHER EMPLOYEES FEES & EXPENSE,DISCOUNT STORES,GPC
WALSALL COUNCIL,HTTP://OPENDATACOMMUNITIES.ORG/ID/METROPOLITAN-DISTRICT-COUNCIL/WALSALL,30/06/2019,ECONOMY & ENVIRONMENT,DAVENPORT BURGESS,01/04/2019,H59620190403CZGJMRGFY-1,27.12,DEPOT-MATERIALS,"HAT CLEANING SHOPS, SHOE REPAIR SHOPS, SHOE SHINE ",GPC
WALSALL COUNCIL,HTTP://OPENDATACOMMUNITIES.ORG/ID/METROPOLITAN-DISTRICT-COUNCIL/WALSALL,30/06/2019,ECONOMY & ENVIRONMENT,WWW.LIFESAVERSDIRECT,01/04/2019,H59620190403DAOWSINUB-1,94,OAK PARK-NEW-FURNITURE & EQUIPMENT,DIRECT MARKETING COMBINATION CATALOG,GPC
WALSALL COUNCIL,HTTP://OPENDATACOMMUNITIES.ORG/ID/METROPOLITAN-DISTRICT-COUNCIL/WALSALL,30/06/2019,RESOURCES & TRANSFORMATION,BLAKEMORE FOODSERVICE,01/04/2019,H59620190403DONKUWCCX-1,77.34,CA KINGSHILL SCHOOL-FROZEN FOODS-PROVISIONS,CATERERS,GPC
WALSALL COUNCIL,HTTP://OPENDATACOMMUNITIES.ORG/ID/METROPOLITAN-DISTRICT-COUNCIL/WALSALL,30/06/2019,CHILDRENS SERVICES,WWW.STUART-BATHURST.OR,01/04/2019,H59620190403DUGTRCCLL-1,15,"43A HILTON ROAD, WILLENHALL-RESIDENTS PERSONAL EXPENSES-AL","SCHOOLS, ELEMENTARY AND SECONDARY",GPC
WALSALL COUNCIL,HTTP://OPENDATACOMMUNITIES.ORG/ID/METROPOLITAN-DISTRICT-COUNCIL/WALSALL,30/06/2019,RESOURCES & TRANSFORMATION,BLAKEMORE FOODSERVICE,01/04/2019,H59620190403DWEDOHAOD-1,237.77,CA BARCROFT D/C-FROZEN FOODS-PROVISIONS,CATERERS,GPC
WALSALL COUNCIL,HTTP://OPENDATACOMMUNITIES.ORG/ID/METROPOLITAN-DISTRICT-COUNCIL/WALSALL,30/06/2019,RESOURCES & TRANSFORMATION,BLAKEMORE FOODSERVICE,01/04/2019,H59620190403EENCTCPCM-1,115.2,CA LEIGHSWOOD PRIMARY SCHOOL-FOOD & DRINK SUPPLIES,CATERERS,GPC
WALSALL COUNCIL,HTTP://OPENDATACOMMUNITIES.ORG/ID/METROPOLITAN-DISTRICT-COUNCIL/WALSALL,30/06/2019,RESOURCES & TRANSFORMATION,BLAKEMORE FOODSERVICE,01/04/2019,H59620190403EENCTCPCM-2,169.65,CA LEIGHSWOOD PRIMARY SCHOOL-FOOD & DRINK SUPPLIES,CATERERS,GPC
WALSALL COUNCIL,HTTP://OPENDATACOMMUNITIES.ORG/ID/METROPOLITAN-DISTRICT-COUNCIL/WALSALL,30/06/2019,CHILDRENS SERVICES,B&M RETAIL,01/04/2019,H59620190403EYYAINVHV-1,10.47,ST JOHNS C.E. PRIMARY SCHOOL-PERSONAL REQUISITES-MATERIALS,DISCOUNT STORES,GPC
WALSALL COUNCIL,HTTP://OPENDATACOMMUNITIES.ORG/ID/METROPOLITAN-DISTRICT-COUNCIL/WALSALL,30/06/2019,RESOURCES & TRANSFORMATION,JOHAL DAIRIES LTD,01/04/2019,H59620190403FCLEJRHDU-1,17.45,CA BARCROFT D/C-FOOD & DRINK SUPPLIES,OTHER NONDURABLE GOODS,GPC
WALSALL COUNCIL,HTTP://OPENDATACOMMUNITIES.ORG/ID/METROPOLITAN-DISTRICT-COUNCIL/WALSALL,30/06/2019,CHILDRENS SERVICES,TRAVEL WEST MIDLAN,01/04/2019,H59620190403FGNWZOKJR-1,65.5,57 LICHFIELD ROAD-RESIDENTS PERSONAL EXPENSES-AL,BUS LINES,GPC
WALSALL COUNCIL,HTTP://OPENDATACOMMUNITIES.ORG/ID/METROPOLITAN-DISTRICT-COUNCIL/WALSALL,30/06/2019,RESOURCES & TRANSFORMATION,JOHAL DAIRIES LTD,01/04/2019,H59620190403FHJTMFSDX-1,40.38,CA MOORCROFT WOOD-FOOD & DRINK SUPPLIES,OTHER NONDURABLE GOODS,GPC
WALSALL COUNCIL,HTTP://OPENDATACOMMUNITIES.ORG/ID/METROPOLITAN-DISTRICT-COUNCIL/WALSALL,30/06/2019,CHILDRENS SERVICES (SCHOOLS),AMZNMKTPLACE,01/04/2019,H59620190403FIRKKCMUF-1,21,E19-MATERIALS,MISCELLANEOUS AND SPECIALTY RETAIL STORES,GPC
WALSALL COUNCIL,HTTP://OPENDATACOMMUNITIES.ORG/ID/METROPOLITAN-DISTRICT-COUNCIL/WALSALL,30/06/2019,RESOURCES & TRANSFORMATION,METRO INNS WALSALL,01/04/2019,H59620190403FKDFPENPE-1,34.2,BED & BREAKFAST PAYMENTS-HOTEL ACCOMMODATION-EMPLOYEES,"HOTELS, MOTELS, RESORTS",GPC
WALSALL COUNCIL,HTTP://OPENDATACOMMUNITIES.ORG/ID/METROPOLITAN-DISTRICT-COUNCIL/WALSALL,30/06/2019,RESOURCES & TRANSFORMATION,BLAKEMORE FOODSERVICE,01/04/2019,H59620190403FMHXEOONN-1,-14.52,CA RADLEYS PRIMARY SCHOOL-DRY FOODS-PROVISIONS,CATERERS,GPC
WALSALL COUNCIL,HTTP://OPENDATACOMMUNITIES.ORG/ID/METROPOLITAN-DISTRICT-COUNCIL/WALSALL,30/06/2019,ECONOMY & ENVIRONMENT,B & Q 1276,01/04/2019,H59620190403GCJXRSTJS-1,25.74,INFRASTRUCTURE MAINTENANCE-MATERIALS,LUMBER & BUILDING MATERIALS STORES,GPC
WALSALL COUNCIL,HTTP://OPENDATACOMMUNITIES.ORG/ID/METROPOLITAN-DISTRICT-COUNCIL/WALSALL,30/06/2019,ADULT SOCIAL CARE,MOVECORP LIMITED,01/04/2019,H59620190403GFGBRJOCS-1,86.4,ASC PARTNERSHIPS-REMOVAL OF FURNITURE,MOTOR FREIGHT CARRIERS,GPC
WALSALL COUNCIL,HTTP://OPENDATACOMMUNITIES.ORG/ID/METROPOLITAN-DISTRICT-COUNCIL/WALSALL,30/06/2019,CHILDRENS SERVICES,WILKO RETAIL LIMIT,01/04/2019,H59620190403GLQPECXCY-1,2.3,LOOKED AFTER CHILDRENS SOCIAL -MISCELLANEOUS SUPPLIES,HOUSEHOLD APPLIANCE STORES,GPC
WALSALL COUNCIL,HTTP://OPENDATACOMMUNITIES.ORG/ID/METROPOLITAN-DISTRICT-COUNCIL/WALSALL,30/06/2019,RESOURCES & TRANSFORMATION,JOHAL DAIRIES LTD,01/04/2019,H59620190403GNWVAHIQD-1,17.4,CA RUSHALL JMI SCHOOL-FOOD & DRINK SUPPLIES,OTHER NONDURABLE GOODS,GPC
WALSALL COUNCIL,HTTP://OPENDATACOMMUNITIES.ORG/ID/METROPOLITAN-DISTRICT-COUNCIL/WALSALL,30/06/2019,RESOURCES & TRANSFORMATION,BLAKEMORE FOODSERVICE,01/04/2019,H59620190403GPVEHFTCX-1,40.32,CA WATLING STREET PRIMARY SCHO-DRY FOODS-PROVISIONS,CATERERS,GPC
WALSALL COUNCIL,HTTP://OPENDATACOMMUNITIES.ORG/ID/METROPOLITAN-DISTRICT-COUNCIL/WALSALL,30/06/2019,RESOURCES & TRANSFORMATION,BLAKEMORE FOODSERVICE,01/04/2019,H59620190403GPVEHFTCX-2,227.21,CA WATLING STREET PRIMARY SCHO-DRY FOODS-PROVISIONS,CATERERS,GPC
WALSALL COUNCIL,HTTP://OPENDATACOMMUNITIES.ORG/ID/METROPOLITAN-DISTRICT-COUNCIL/WALSALL,30/06/2019,RESOURCES & TRANSFORMATION,BLAKEMORE FOODSERVICE,01/04/2019,H59620190403GTKTSLOXF-1,16.24,CA KINGSHILL SCHOOL-FROZEN FOODS-PROVISIONS,CATERERS,GPC
WALSALL COUNCIL,HTTP://OPENDATACOMMUNITIES.ORG/ID/METROPOLITAN-DISTRICT-COUNCIL/WALSALL,30/06/2019,CHILDRENS SERVICES,AMZN MKTP UK*MZ28233E4,01/04/2019,H59620190403GXDWFOHEL-1,17.5,ST FRANCIS OF ASSISI CATHOLIC -OPERATIONAL MAINTENANCE,BOOK STORES,GPC
WALSALL COUNCIL,HTTP://OPENDATACOMMUNITIES.ORG/ID/METROPOLITAN-DISTRICT-COUNCIL/WALSALL,30/06/2019,RESOURCES & TRANSFORMATION,JOHAL DAIRIES LTD,01/04/2019,H59620190403HFOJIQWPA-1,18.72,CA TOWN HALL RESTAURANT - CATE-FOOD & DRINK SUPPLIES,OTHER NONDURABLE GOODS,GPC
WALSALL COUNCIL,HTTP://OPENDATACOMMUNITIES.ORG/ID/METROPOLITAN-DISTRICT-COUNCIL/WALSALL,30/06/2019,RESOURCES & TRANSFORMATION,JOHAL DAIRIES LTD,01/04/2019,H59620190403HKLVXONTX-1,28.68,CA ST GILES C.E. PRIMARY SCHOO-FOOD & DRINK SUPPLIES,OTHER NONDURABLE GOODS,GPC
WALSALL COUNCIL,HTTP://OPENDATACOMMUNITIES.ORG/ID/METROPOLITAN-DISTRICT-COUNCIL/WALSALL,30/06/2019,RESOURCES & TRANSFORMATION,JOHAL DAIRIES LTD,01/04/2019,H59620190403HNVFASSZV-1,30.25,CA ABBEY PRIMARY SCHOOL-FOOD & DRINK SUPPLIES,OTHER NONDURABLE GOODS,GPC
WALSALL COUNCIL,HTTP://OPENDATACOMMUNITIES.ORG/ID/METROPOLITAN-DISTRICT-COUNCIL/WALSALL,30/06/2019,RESOURCES & TRANSFORMATION,BLAKEMORE FOODSERVICE,01/04/2019,H59620190403HVGVJMDDV-1,102.31,CA JANE LANE SPECIAL SCHOOL-FROZEN FOODS-PROVISIONS,CATERERS,GPC
WALSALL COUNCIL,HTTP://OPENDATACOMMUNITIES.ORG/ID/METROPOLITAN-DISTRICT-COUNCIL/WALSALL,30/06/2019,ECONOMY & ENVIRONMENT,B & Q 1363,01/04/2019,H59620190403IGFYXYVYU-1,38,OAK PARK-MATERIALS,LUMBER & BUILDING MATERIALS STORES,GPC
WALSALL COUNCIL,HTTP://OPENDATACOMMUNITIES.ORG/ID/METROPOLITAN-DISTRICT-COUNCIL/WALSALL,30/06/2019,RESOURCES & TRANSFORMATION,BLAKEMORE FOODSERVICE,01/04/2019,H59620190403IVWUDFEFD-1,122.89,CA CASTLEFORT JMI SCHOOL-DRY FOODS-PROVISIONS,CATERERS,GPC
WALSALL COUNCIL,HTTP://OPENDATACOMMUNITIES.ORG/ID/METROPOLITAN-DISTRICT-COUNCIL/WALSALL,30/06/2019,ECONOMY & ENVIRONMENT,AMZNMKTPLACE,01/04/2019,H59620190403JMMTZJFMC-1,4.45,WALSALL OUTDOOR ADVENTURE CENT-OPERATIONAL MAINTENANCE,MISCELLANEOUS AND SPECIALTY RETAIL STORES,GPC
WALSALL COUNCIL,HTTP://OPENDATACOMMUNITIES.ORG/ID/METROPOLITAN-DISTRICT-COUNCIL/WALSALL,30/06/2019,RESOURCES & TRANSFORMATION,BLAKEMORE FOODSERVICE,01/04/2019,H59620190403JQFWCNUXS-1,236.99,CA BUSILL JONES PRIMARY SCHOOL-DRY FOODS-PROVISIONS,CATERERS,GPC
WALSALL COUNCIL,HTTP://OPENDATACOMMUNITIES.ORG/ID/METROPOLITAN-DISTRICT-COUNCIL/WALSALL,30/06/2019,RESOURCES & TRANSFORMATION,BLAKEMORE FOODSERVICE,01/04/2019,H59620190403JTLSTEAZE-1,232.82,CA ST JOHNS C.E. PRIMARY SCHOO-FROZEN FOODS-PROVISIONS,CATERERS,GPC
WALSALL COUNCIL,HTTP://OPENDATACOMMUNITIES.ORG/ID/METROPOLITAN-DISTRICT-COUNCIL/WALSALL,30/06/2019,RESOURCES & TRANSFORMATION,BLAKEMORE FOODSERVICE,01/04/2019,H59620190403JWCQXLFQL-1,234.76,CA BEACON PRIMARY SCHOOL-DRY FOODS-PROVISIONS,CATERERS,GPC
WALSALL COUNCIL,HTTP://OPENDATACOMMUNITIES.ORG/ID/METROPOLITAN-DISTRICT-COUNCIL/WALSALL,30/06/2019,ECONOMY & ENVIRONMENT,WWW.BANNERUK.COM,01/04/2019,H59620190403JZZTTJHPK-1,1.08,CENTRALISED STATIONARY-STATIONERY & GENERAL OFFICE SU,"STATIONERY, OFFICE SUPPLIES AND WRITING PAPER",GPC
WALSALL COUNCIL,HTTP://OPENDATACOMMUNITIES.ORG/ID/METROPOLITAN-DISTRICT-COUNCIL/WALSALL,30/06/2019,CHILDRENS SERVICES,"BOOTS,WALSALL",01/04/2019,H59620190403KGVBFSRUA-1,20,57 LICHFIELD ROAD-RESIDENTS PERSONAL EXPENSES-AL,"DRUG STORES, PHARMACIES",GPC
WALSALL COUNCIL,HTTP://OPENDATACOMMUNITIES.ORG/ID/METROPOLITAN-DISTRICT-COUNCIL/WALSALL,30/06/2019,RESOURCES & TRANSFORMATION,JOHAL DAIRIES LTD,01/04/2019,H59620190403KXWOPMUNU-1,36,CA ST MICHAELS C.E. PRIMARY SC-FOOD & DRINK SUPPLIES,OTHER NONDURABLE GOODS,GPC
WALSALL COUNCIL,HTTP://OPENDATACOMMUNITIES.ORG/ID/METROPOLITAN-DISTRICT-COUNCIL/WALSALL,30/06/2019,RESOURCES & TRANSFORMATION,BLAKEMORE FOODSERVICE,01/04/2019,H59620190403KZGIQODMP-1,597.2,CA RADLEYS PRIMARY SCHOOL-DRY FOODS-PROVISIONS,CATERERS,GPC
WALSALL COUNCIL,HTTP://OPENDATACOMMUNITIES.ORG/ID/METROPOLITAN-DISTRICT-COUNCIL/WALSALL,30/06/2019,RESOURCES & TRANSFORMATION,BLAKEMORE FOODSERVICE,01/04/2019,H59620190403LKQCUQEKA-1,135.87,CA COOPER JORDAN CE PRIMARY SC-DRY FOODS-PROVISIONS,CATERERS,GPC
WALSALL COUNCIL,HTTP://OPENDATACOMMUNITIES.ORG/ID/METROPOLITAN-DISTRICT-COUNCIL/WALSALL,30/06/2019,RESOURCES & TRANSFORMATION,BLAKEMORE FOODSERVICE,01/04/2019,H59620190403LKQCUQEKA-2,51.84,CA COOPER JORDAN CE PRIMARY SC-DRY FOODS-PROVISIONS,CATERERS,GPC
WALSALL COUNCIL,HTTP://OPENDATACOMMUNITIES.ORG/ID/METROPOLITAN-DISTRICT-COUNCIL/WALSALL,30/06/2019,ECONOMY & ENVIRONMENT,WWW.BANNERUK.COM,01/04/2019,H59620190403LLJHJICOU-1,6.98,LICENSING ADMINISTRATION-STATIONERY & GENERAL OFFICE SU,"STATIONERY, OFFICE SUPPLIES AND WRITING PAPER",GPC
WALSALL COUNCIL,HTTP://OPENDATACOMMUNITIES.ORG/ID/METROPOLITAN-DISTRICT-COUNCIL/WALSALL,30/06/2019,CHILDRENS SERVICES,ALDI 14 772,01/04/2019,H59620190403LPNKTWIQT-1,7.53,PARENTING TEAM-FOOD AND BEVERAGES-PROVISIONS,GROCERY STORES AND SUPERMARKETS,GPC
WALSALL COUNCIL,HTTP://OPENDATACOMMUNITIES.ORG/ID/METROPOLITAN-DISTRICT-COUNCIL/WALSALL,30/06/2019,CHILDRENS SERVICES,ALDI 14 772,01/04/2019,H59620190403LPNKTWIQT-2,2.03,PARENTING TEAM-FOOD AND BEVERAGES-PROVISIONS,GROCERY STORES AND SUPERMARKETS,GPC
WALSALL COUNCIL,HTTP://OPENDATACOMMUNITIES.ORG/ID/METROPOLITAN-DISTRICT-COUNCIL/WALSALL,30/06/2019,RESOURCES & TRANSFORMATION,BLAKEMORE FOODSERVICE,01/04/2019,H59620190403MBOYQPEVJ-1,387.17,CA MEADOW VIEW JMI PRIMARY SCH-DRY FOODS-PROVISIONS,CATERERS,GPC
WALSALL COUNCIL,HTTP://OPENDATACOMMUNITIES.ORG/ID/METROPOLITAN-DISTRICT-COUNCIL/WALSALL,30/06/2019,RESOURCES & TRANSFORMATION,JOHAL DAIRIES LTD,01/04/2019,H59620190403MCRUGFKRU-1,1.78,CA ST JOHNS C.E. PRIMARY SCHOO-FOOD & DRINK SUPPLIES,OTHER NONDURABLE GOODS,GPC
WALSALL COUNCIL,HTTP://OPENDATACOMMUNITIES.ORG/ID/METROPOLITAN-DISTRICT-COUNCIL/WALSALL,30/06/2019,RESOURCES & TRANSFORMATION,JOHAL DAIRIES LTD,01/04/2019,H59620190403MDFNCTOOK-1,33.38,CA LINDENS PRIMARY SCHOOL-FOOD & DRINK SUPPLIES,OTHER NONDURABLE GOODS,GPC
WALSALL COUNCIL,HTTP://OPENDATACOMMUNITIES.ORG/ID/METROPOLITAN-DISTRICT-COUNCIL/WALSALL,30/06/2019,RESOURCES & TRANSFORMATION,BLAKEMORE FOODSERVICE,01/04/2019,H59620190403MHXZMNJGX-1,16.99,CA KINGSHILL SCHOOL-DRY FOODS-PROVISIONS,CATERERS,GPC
WALSALL COUNCIL,HTTP://OPENDATACOMMUNITIES.ORG/ID/METROPOLITAN-DISTRICT-COUNCIL/WALSALL,30/06/2019,CHILDRENS SERVICES,JOHAL DAIRIES LTD,01/04/2019,H59620190403MKUKBPSRE-1,6.1,57 LICHFIELD ROAD-FOOD & DRINK SUPPLIES,OTHER NONDURABLE GOODS,GPC
WALSALL COUNCIL,HTTP://OPENDATACOMMUNITIES.ORG/ID/METROPOLITAN-DISTRICT-COUNCIL/WALSALL,30/06/2019,ECONOMY & ENVIRONMENT,WWW.BANNERUK.COM,01/04/2019,H59620190403MQUUVIXLS-1,37.93,CENTRALISED STATIONARY-STATIONERY & GENERAL OFFICE SU,"STATIONERY, OFFICE SUPPLIES AND WRITING PAPER",GPC
WALSALL COUNCIL,HTTP://OPENDATACOMMUNITIES.ORG/ID/METROPOLITAN-DISTRICT-COUNCIL/WALSALL,30/06/2019,SOCIAL CARE & INCLUSION,WWW.BANNERUK.COM,01/04/2019,H59620190403NBCGPNQUN-1,52.76,INTEGRATED BUSINESS SUPPORT-STATIONERY & GENERAL OFFICE SU,"STATIONERY, OFFICE SUPPLIES AND WRITING PAPER",GPC
WALSALL COUNCIL,HTTP://OPENDATACOMMUNITIES.ORG/ID/METROPOLITAN-DISTRICT-COUNCIL/WALSALL,30/06/2019,RESOURCES & TRANSFORMATION,JOHAL DAIRIES LTD,01/04/2019,H59620190403NDCYTWCMJ-1,17.8,CA WATLING STREET PRIMARY SCHO-FOOD & DRINK SUPPLIES,OTHER NONDURABLE GOODS,GPC
WALSALL COUNCIL,HTTP://OPENDATACOMMUNITIES.ORG/ID/METROPOLITAN-DISTRICT-COUNCIL/WALSALL,30/06/2019,RESOURCES & TRANSFORMATION,JOHAL DAIRIES LTD,01/04/2019,H59620190403NFEYKGAXH-1,28.48,CA RADLEYS PRIMARY SCHOOL-FOOD & DRINK SUPPLIES,OTHER NONDURABLE GOODS,GPC
WALSALL COUNCIL,HTTP://OPENDATACOMMUNITIES.ORG/ID/METROPOLITAN-DISTRICT-COUNCIL/WALSALL,30/06/2019,CHILDRENS SERVICES,TRAINLINE,01/04/2019,H59620190403NFNHMWJEK-1,-88.75,SAFEGUARDING & FAMILY SUPPORT-OFFICERS & STAFF PUBLIC TRANSP,PASSENGER RAILWAYS,GPC
WALSALL COUNCIL,HTTP://OPENDATACOMMUNITIES.ORG/ID/METROPOLITAN-DISTRICT-COUNCIL/WALSALL,30/06/2019,RESOURCES & TRANSFORMATION,MOVECORP LIMITED,01/04/2019,H59620190403NNFZPRJIP-1,86.4,CORPORATE ASSURANCE-REMOVAL OF FURNITURE,MOTOR FREIGHT CARRIERS,GPC
WALSALL COUNCIL,HTTP://OPENDATACOMMUNITIES.ORG/ID/METROPOLITAN-DISTRICT-COUNCIL/WALSALL,30/06/2019,RESOURCES & TRANSFORMATION,JOHAL DAIRIES LTD,01/04/2019,H59620190403NPLJPRNHL-1,8.38,CA KINGSHILL SCHOOL-FOOD & DRINK SUPPLIES,OTHER NONDURABLE GOODS,GPC
WALSALL COUNCIL,HTTP://OPENDATACOMMUNITIES.ORG/ID/METROPOLITAN-DISTRICT-COUNCIL/WALSALL,30/06/2019,CHILDRENS SERVICES,W M MORRISONS.COM,01/04/2019,H59620190403OACOGNNTJ-1,36,57 LICHFIELD ROAD-FOOD AND BEVERAGES-PROVISIONS,GROCERY STORES AND SUPERMARKETS,GPC
WALSALL COUNCIL,HTTP://OPENDATACOMMUNITIES.ORG/ID/METROPOLITAN-DISTRICT-COUNCIL/WALSALL,30/06/2019,CHILDRENS SERVICES,W M MORRISONS.COM,01/04/2019,H59620190403OACOGNNTJ-2,111.63,57 LICHFIELD ROAD-FOOD AND BEVERAGES-PROVISIONS,GROCERY STORES AND SUPERMARKETS,GPC
WALSALL COUNCIL,HTTP://OPENDATACOMMUNITIES.ORG/ID/METROPOLITAN-DISTRICT-COUNCIL/WALSALL,30/06/2019,ECONOMY & ENVIRONMENT,AMZN MKTP UK*MZ5B63JC4 AM,01/04/2019,H59620190403OAEFXHEEX-1,43.01,OAK PARK-NEW-FURNITURE & EQUIPMENT,BOOK STORES,GPC
WALSALL COUNCIL,HTTP://OPENDATACOMMUNITIES.ORG/ID/METROPOLITAN-DISTRICT-COUNCIL/WALSALL,30/06/2019,ECONOMY & ENVIRONMENT,AMZN MKTP UK*MZ5B63JC4 AM,01/04/2019,H59620190403OAEFXHEEX-2,43.02,BLOXWICH LEISURE CENTRE-NEW-FURNITURE & EQUIPMENT,BOOK STORES,GPC
WALSALL COUNCIL,HTTP://OPENDATACOMMUNITIES.ORG/ID/METROPOLITAN-DISTRICT-COUNCIL/WALSALL,30/06/2019,ECONOMY & ENVIRONMENT,AMZN MKTP UK*MZ5B63JC4 AM,01/04/2019,H59620190403OAEFXHEEX-3,28.68,WALSALL GALA CENTRE-NEW-FURNITURE & EQUIPMENT,BOOK STORES,GPC
WALSALL COUNCIL,HTTP://OPENDATACOMMUNITIES.ORG/ID/METROPOLITAN-DISTRICT-COUNCIL/WALSALL,30/06/2019,ECONOMY & ENVIRONMENT,AMZN MKTP UK*MZ5B63JC4 AM,01/04/2019,H59620190403OAEFXHEEX-4,28.68,DARLASTON LEISURE CENTRE-NEW-FURNITURE & EQUIPMENT,BOOK STORES,GPC
WALSALL COUNCIL,HTTP://OPENDATACOMMUNITIES.ORG/ID/METROPOLITAN-DISTRICT-COUNCIL/WALSALL,30/06/2019,RESOURCES & TRANSFORMATION,JOHAL DAIRIES LTD,01/04/2019,H59620190403OBWDVMBDW-1,19.74,CA LEIGHSWOOD PRIMARY SCHOOL-FOOD & DRINK SUPPLIES,OTHER NONDURABLE GOODS,GPC
WALSALL COUNCIL,HTTP://OPENDATACOMMUNITIES.ORG/ID/METROPOLITAN-DISTRICT-COUNCIL/WALSALL,30/06/2019,RESOURCES & TRANSFORMATION,BLAKEMORE FOODSERVICE,01/04/2019,H59620190403OFXXSCXEW-1,-85.74,CA OAKWOOD SPECIAL SCHOOL-FROZEN FOODS-PROVISIONS,CATERERS,GPC
WALSALL COUNCIL,HTTP://OPENDATACOMMUNITIES.ORG/ID/METROPOLITAN-DISTRICT-COUNCIL/WALSALL,30/06/2019,CHILDRENS SERVICES,WM MORRISON FOOD.COM,01/04/2019,H59620190403OLNSSFJJE-1,78.18,PELSALL VILLAGE SCHOOL-FOOD AND BEVERAGES-PROVISIONS,GROCERY STORES AND SUPERMARKETS,GPC
WALSALL COUNCIL,HTTP://OPENDATACOMMUNITIES.ORG/ID/METROPOLITAN-DISTRICT-COUNCIL/WALSALL,30/06/2019,CHILDRENS SERVICES,WM MORRISON FOOD.COM,01/04/2019,H59620190403OLNSSFJJE-2,15.36,PELSALL VILLAGE SCHOOL-FOOD AND BEVERAGES-PROVISIONS,GROCERY STORES AND SUPERMARKETS,GPC
WALSALL COUNCIL,HTTP://OPENDATACOMMUNITIES.ORG/ID/METROPOLITAN-DISTRICT-COUNCIL/WALSALL,30/06/2019,RESOURCES & TRANSFORMATION,BLAKEMORE FOODSERVICE,01/04/2019,H59620190403OMINVTHRL-1,115.2,CA LINDENS PRIMARY SCHOOL-DRY FOODS-PROVISIONS,CATERERS,GPC
WALSALL COUNCIL,HTTP://OPENDATACOMMUNITIES.ORG/ID/METROPOLITAN-DISTRICT-COUNCIL/WALSALL,30/06/2019,RESOURCES & TRANSFORMATION,BLAKEMORE FOODSERVICE,01/04/2019,H59620190403OMINVTHRL-2,238,CA LINDENS PRIMARY SCHOOL-DRY FOODS-PROVISIONS,CATERERS,GPC
WALSALL COUNCIL,HTTP://OPENDATACOMMUNITIES.ORG/ID/METROPOLITAN-DISTRICT-COUNCIL/WALSALL,30/06/2019,RESOURCES & TRANSFORMATION,BLAKEMORE FOODSERVICE,01/04/2019,H59620190403PODMQLPOZ-1,17.28,CA RUSHALL JMI SCHOOL-DRY FOODS-PROVISIONS,CATERERS,GPC
WALSALL COUNCIL,HTTP://OPENDATACOMMUNITIES.ORG/ID/METROPOLITAN-DISTRICT-COUNCIL/WALSALL,30/06/2019,RESOURCES & TRANSFORMATION,BLAKEMORE FOODSERVICE,01/04/2019,H59620190403PODMQLPOZ-2,220.61,CA RUSHALL JMI SCHOOL-DRY FOODS-PROVISIONS,CATERERS,GPC
WALSALL COUNCIL,HTTP://OPENDATACOMMUNITIES.ORG/ID/METROPOLITAN-DISTRICT-COUNCIL/WALSALL,30/06/2019,CHILDRENS SERVICES,WM MORRISON FOOD.COM,01/04/2019,H59620190403POHWOUDWU-1,22.68,BIRCHILLS CHILDCARE SERVICES-FOOD AND BEVERAGES-PROVISIONS,GROCERY STORES AND SUPERMARKETS,GPC
WALSALL COUNCIL,HTTP://OPENDATACOMMUNITIES.ORG/ID/METROPOLITAN-DISTRICT-COUNCIL/WALSALL,30/06/2019,CHILDRENS SERVICES,WM MORRISON FOOD.COM,01/04/2019,H59620190403POHWOUDWU-2,126.29,BIRCHILLS CHILDCARE SERVICES-FOOD AND BEVERAGES-PROVISIONS,GROCERY STORES AND SUPERMARKETS,GPC
WALSALL COUNCIL,HTTP://OPENDATACOMMUNITIES.ORG/ID/METROPOLITAN-DISTRICT-COUNCIL/WALSALL,30/06/2019,RESOURCES & TRANSFORMATION,BLAKEMORE FOODSERVICE,01/04/2019,H59620190403PTSQCCZWG-1,149.76,CA ST MICHAELS C.E. PRIMARY SC-FOOD & DRINK SUPPLIES,CATERERS,GPC
WALSALL COUNCIL,HTTP://OPENDATACOMMUNITIES.ORG/ID/METROPOLITAN-DISTRICT-COUNCIL/WALSALL,30/06/2019,RESOURCES & TRANSFORMATION,BLAKEMORE FOODSERVICE,01/04/2019,H59620190403PTSQCCZWG-2,239.38,CA ST MICHAELS C.E. PRIMARY SC-FOOD & DRINK SUPPLIES,CATERERS,GPC
WALSALL COUNCIL,HTTP://OPENDATACOMMUNITIES.ORG/ID/METROPOLITAN-DISTRICT-COUNCIL/WALSALL,30/06/2019,CHILDRENS SERVICES,WILKO RETAIL LIMIT,01/04/2019,H59620190403PTSYRVKKE-1,13,57 LICHFIELD ROAD-EQUIP NEW-CLEANING,HOUSEHOLD APPLIANCE STORES,GPC
WALSALL COUNCIL,HTTP://OPENDATACOMMUNITIES.ORG/ID/METROPOLITAN-DISTRICT-COUNCIL/WALSALL,30/06/2019,RESOURCES & TRANSFORMATION,BLAKEMORE FOODSERVICE,01/04/2019,H59620190403QTWJTJCOI-1,93.2,CA CROFT COMMUNITY PRIMARY SCH-FROZEN FOODS-PROVISIONS,CATERERS,GPC
WALSALL COUNCIL,HTTP://OPENDATACOMMUNITIES.ORG/ID/METROPOLITAN-DISTRICT-COUNCIL/WALSALL,30/06/2019,CHILDRENS SERVICES,AMZNMKTPLACE,01/04/2019,H59620190403QXACVPPMJ-1,57.24,SALISBURY PRIMARY SCHOOL-OPERATIONAL MAINTENANCE,MISCELLANEOUS AND SPECIALTY RETAIL STORES,GPC
WALSALL COUNCIL,HTTP://OPENDATACOMMUNITIES.ORG/ID/METROPOLITAN-DISTRICT-COUNCIL/WALSALL,30/06/2019,CHILDRENS SERVICES,ASDA STORES,01/04/2019,H59620190403RRNJBEOMX-1,5.03,SALISBURY PRIMARY SCHOOL-MATERIALS,GROCERY STORES AND SUPERMARKETS,GPC
WALSALL COUNCIL,HTTP://OPENDATACOMMUNITIES.ORG/ID/METROPOLITAN-DISTRICT-COUNCIL/WALSALL,30/06/2019,SOCIAL CARE & INCLUSION,MOVECORP LIMITED,01/04/2019,H59620190403RYJIXNNHH-1,57.6,SHARED LIVES-REMOVAL OF FURNITURE,MOTOR FREIGHT CARRIERS,GPC
WALSALL COUNCIL,HTTP://OPENDATACOMMUNITIES.ORG/ID/METROPOLITAN-DISTRICT-COUNCIL/WALSALL,30/06/2019,CHILDRENS SERVICES,PAYPAL *IKEALIMITED,01/04/2019,H59620190403SCIELMMDL-1,49.95,ELMWOOD SCHOOL-CLEANING-MATERIALS (INC LIGHT ,DEPARTMENT STORES,GPC
WALSALL COUNCIL,HTTP://OPENDATACOMMUNITIES.ORG/ID/METROPOLITAN-DISTRICT-COUNCIL/WALSALL,30/06/2019,ECONOMY & ENVIRONMENT,WWW.BANNERUK.COM,01/04/2019,H59620190403SCIPKQYDW-1,18.01,STREETLY LIBRARY-MISCELLANEOUS SUPPLIES,"STATIONERY, OFFICE SUPPLIES AND WRITING PAPER",GPC
WALSALL COUNCIL,HTTP://OPENDATACOMMUNITIES.ORG/ID/METROPOLITAN-DISTRICT-COUNCIL/WALSALL,30/06/2019,RESOURCES & TRANSFORMATION,WILKO RETAIL LIMIT,01/04/2019,H59620190403SGIKMRXQA-1,46.65,WALSALL CRISIS SUPPORT SCHEME-PURCHASE OF FURNITURE & EQUIPM,HOUSEHOLD APPLIANCE STORES,GPC
WALSALL COUNCIL,HTTP://OPENDATACOMMUNITIES.ORG/ID/METROPOLITAN-DISTRICT-COUNCIL/WALSALL,30/06/2019,CHILDRENS SERVICES,W M MORRISONS.COM,01/04/2019,H59620190403SGWUNPDNX-1,6.54,REDRUTH ROAD-FOOD AND BEVERAGES-PROVISIONS,GROCERY STORES AND SUPERMARKETS,GPC
WALSALL COUNCIL,HTTP://OPENDATACOMMUNITIES.ORG/ID/METROPOLITAN-DISTRICT-COUNCIL/WALSALL,30/06/2019,CHILDRENS SERVICES,W M MORRISONS.COM,01/04/2019,H59620190403SGWUNPDNX-2,145.46,REDRUTH ROAD-FOOD AND BEVERAGES-PROVISIONS,GROCERY STORES AND SUPERMARKETS,GPC
WALSALL COUNCIL,HTTP://OPENDATACOMMUNITIES.ORG/ID/METROPOLITAN-DISTRICT-COUNCIL/WALSALL,30/06/2019,RESOURCES & TRANSFORMATION,BLAKEMORE FOODSERVICE,01/04/2019,H59620190403SIQNSLOOY-1,2.81,CA ST GILES C.E. PRIMARY SCHOO-DRY FOODS-PROVISIONS,CATERERS,GPC
WALSALL COUNCIL,HTTP://OPENDATACOMMUNITIES.ORG/ID/METROPOLITAN-DISTRICT-COUNCIL/WALSALL,30/06/2019,RESOURCES & TRANSFORMATION,BLAKEMORE FOODSERVICE,01/04/2019,H59620190403SIQNSLOOY-2,140.84,CA ST GILES C.E. PRIMARY SCHOO-DRY FOODS-PROVISIONS,CATERERS,GPC
WALSALL COUNCIL,HTTP://OPENDATACOMMUNITIES.ORG/ID/METROPOLITAN-DISTRICT-COUNCIL/WALSALL,30/06/2019,CHILDRENS SERVICES,MOVECORP LIMITED,01/04/2019,H59620190403SNDMVFGMJ-1,28.8,PARENTING TEAM-REMOVAL OF FURNITURE,MOTOR FREIGHT CARRIERS,GPC
WALSALL COUNCIL,HTTP://OPENDATACOMMUNITIES.ORG/ID/METROPOLITAN-DISTRICT-COUNCIL/WALSALL,30/06/2019,RESOURCES & TRANSFORMATION,PARK PLACE SHOE REPAIRS,01/04/2019,H59620190403SXXWIVEJN-1,7,CURATORIAL-OTHER EXPENSES,"HAT CLEANING SHOPS, SHOE REPAIR SHOPS, SHOE SHINE ",GPC
WALSALL COUNCIL,HTTP://OPENDATACOMMUNITIES.ORG/ID/METROPOLITAN-DISTRICT-COUNCIL/WALSALL,30/06/2019,CHILDRENS SERVICES,MOVECORP LIMITED,01/04/2019,H59620190403SYVXOLAHV-1,360,SAFEGUARDING & FAMILY SUPPORT-REMOVAL OF FURNITURE,MOTOR FREIGHT CARRIERS,GPC
WALSALL COUNCIL,HTTP://OPENDATACOMMUNITIES.ORG/ID/METROPOLITAN-DISTRICT-COUNCIL/WALSALL,30/06/2019,RESOURCES & TRANSFORMATION,TRAINLINE,01/04/2019,H59620190403TAHBJDBCO-1,136.3,INTEGRATED COMMUNITIES PROGRAM-OFFICERS & STAFF PUBLIC TRANSP,PASSENGER RAILWAYS,GPC
WALSALL COUNCIL,HTTP://OPENDATACOMMUNITIES.ORG/ID/METROPOLITAN-DISTRICT-COUNCIL/WALSALL,30/06/2019,CHILDRENS SERVICES (SCHOOLS),GOOGLE *GSUITE_ALUMWEL,01/04/2019,H59620190403THCYJTPWI-1,6,ADMINISTRATIVE SUPPLIES-MATERIALS,DIRECT MARKETING CONTINUITY SUBSCRIPTION MERCHANTS,GPC
WALSALL COUNCIL,HTTP://OPENDATACOMMUNITIES.ORG/ID/METROPOLITAN-DISTRICT-COUNCIL/WALSALL,30/06/2019,RESOURCES & TRANSFORMATION,BLAKEMORE FOODSERVICE,01/04/2019,H59620190403TIIJVKLCG-1,194.1,CA RADLEYS PRIMARY SCHOOL-FROZEN FOODS-PROVISIONS,CATERERS,GPC
WALSALL COUNCIL,HTTP://OPENDATACOMMUNITIES.ORG/ID/METROPOLITAN-DISTRICT-COUNCIL/WALSALL,30/06/2019,ECONOMY & ENVIRONMENT,WWW.BANNERUK.COM,01/04/2019,H59620190403TINGRNQQE-1,46.51,CENTRALISED STATIONARY-STATIONERY & GENERAL OFFICE SU,"STATIONERY, OFFICE SUPPLIES AND WRITING PAPER",GPC
WALSALL COUNCIL,HTTP://OPENDATACOMMUNITIES.ORG/ID/METROPOLITAN-DISTRICT-COUNCIL/WALSALL,30/06/2019,RESOURCES & TRANSFORMATION,JOHAL DAIRIES LTD,01/04/2019,H59620190403UBJPXMVHG-1,7.76,CA OLD HALL SPECIAL SCHOOL-FOOD & DRINK SUPPLIES,OTHER NONDURABLE GOODS,GPC
WALSALL COUNCIL,HTTP://OPENDATACOMMUNITIES.ORG/ID/METROPOLITAN-DISTRICT-COUNCIL/WALSALL,30/06/2019,ECONOMY & ENVIRONMENT,WWW.BANNERUK.COM,01/04/2019,H59620190403UCNFRHSIC-1,53.96,LIBRARY DEVELOPMENT 2-STATIONERY & GENERAL OFFICE SU,"STATIONERY, OFFICE SUPPLIES AND WRITING PAPER",GPC
WALSALL COUNCIL,HTTP://OPENDATACOMMUNITIES.ORG/ID/METROPOLITAN-DISTRICT-COUNCIL/WALSALL,30/06/2019,CHILDRENS SERVICES,VIRGIN TRAINS,01/04/2019,H59620190403UMQLCZBRH-1,126.5,CHILD PROTECTION & REVIEW SERV-OFFICERS & STAFF PUBLIC TRANSP,PASSENGER RAILWAYS,GPC
WALSALL COUNCIL,HTTP://OPENDATACOMMUNITIES.ORG/ID/METROPOLITAN-DISTRICT-COUNCIL/WALSALL,30/06/2019,RESOURCES & TRANSFORMATION,BLAKEMORE FOODSERVICE,01/04/2019,H59620190403UOWLVDSFJ-1,287.94,CA ST JOHNS C.E. PRIMARY SCHOO-DRY FOODS-PROVISIONS,CATERERS,GPC
WALSALL COUNCIL,HTTP://OPENDATACOMMUNITIES.ORG/ID/METROPOLITAN-DISTRICT-COUNCIL/WALSALL,30/06/2019,RESOURCES & TRANSFORMATION,JOHAL DAIRIES LTD,01/04/2019,H59620190403UOYOJLMDV-1,3.56,CA WALSALL WOOD PRIMARY SCHOOL-FOOD & DRINK SUPPLIES,OTHER NONDURABLE GOODS,GPC
WALSALL COUNCIL,HTTP://OPENDATACOMMUNITIES.ORG/ID/METROPOLITAN-DISTRICT-COUNCIL/WALSALL,30/06/2019,CHILDRENS SERVICES,MOVECORP LIMITED,01/04/2019,H59620190403URJABZRJS-1,57.6,SAFEGUARDING & FAMILY SUPPORT-REMOVAL OF FURNITURE,MOTOR FREIGHT CARRIERS,GPC
WALSALL COUNCIL,HTTP://OPENDATACOMMUNITIES.ORG/ID/METROPOLITAN-DISTRICT-COUNCIL/WALSALL,30/06/2019,CHILDRENS SERVICES (SCHOOLS),AMZNMKTPLACE,01/04/2019,H59620190403UTDONKWBM-1,50.97,E19-MATERIALS,MISCELLANEOUS AND SPECIALTY RETAIL STORES,GPC
WALSALL COUNCIL,HTTP://OPENDATACOMMUNITIES.ORG/ID/METROPOLITAN-DISTRICT-COUNCIL/WALSALL,30/06/2019,RESOURCES & TRANSFORMATION,JOHAL DAIRIES LTD,01/04/2019,H59620190403UZIPTVEQB-1,13.16,CA BROWNHILLS WEST PRIMARY SCH-FOOD & DRINK SUPPLIES,OTHER NONDURABLE GOODS,GPC
WALSALL COUNCIL,HTTP://OPENDATACOMMUNITIES.ORG/ID/METROPOLITAN-DISTRICT-COUNCIL/WALSALL,30/06/2019,RESOURCES & TRANSFORMATION,WWW.BANNERUK.COM,01/04/2019,H59620190403VTHGLUPNW-1,22.86,CORPORATE MANAGEMENT TEAM-STATIONERY & GENERAL OFFICE SU,"STATIONERY, OFFICE SUPPLIES AND WRITING PAPER",GPC
WALSALL COUNCIL,HTTP://OPENDATACOMMUNITIES.ORG/ID/METROPOLITAN-DISTRICT-COUNCIL/WALSALL,30/06/2019,ECONOMY & ENVIRONMENT,AMZNMKTPLACE,01/04/2019,H59620190403VVBPEGHLV-1,45.83,WALSALL OUTDOOR ADVENTURE CENT-OPERATIONAL MAINTENANCE,MISCELLANEOUS AND SPECIALTY RETAIL STORES,GPC
WALSALL COUNCIL,HTTP://OPENDATACOMMUNITIES.ORG/ID/METROPOLITAN-DISTRICT-COUNCIL/WALSALL,30/06/2019,RESOURCES & TRANSFORMATION,BLAKEMORE FOODSERVICE,01/04/2019,H59620190403WBVIFRHNL-1,225.01,CA BROWNHILLS WEST PRIMARY SCH-DRY FOODS-PROVISIONS,CATERERS,GPC
WALSALL COUNCIL,HTTP://OPENDATACOMMUNITIES.ORG/ID/METROPOLITAN-DISTRICT-COUNCIL/WALSALL,30/06/2019,RESOURCES & TRANSFORMATION,BLAKEMORE FOODSERVICE,01/04/2019,H59620190403WBVIFRHNL-2,172.8,CA BROWNHILLS WEST PRIMARY SCH-DRY FOODS-PROVISIONS,CATERERS,GPC
WALSALL COUNCIL,HTTP://OPENDATACOMMUNITIES.ORG/ID/METROPOLITAN-DISTRICT-COUNCIL/WALSALL,30/06/2019,RESOURCES & TRANSFORMATION,JOHAL DAIRIES LTD,01/04/2019,H59620190403WDEFGNDXA-1,5.39,CA ELMWOOD SPECIAL SCHOOL-FOOD & DRINK SUPPLIES,OTHER NONDURABLE GOODS,GPC
WALSALL COUNCIL,HTTP://OPENDATACOMMUNITIES.ORG/ID/METROPOLITAN-DISTRICT-COUNCIL/WALSALL,30/06/2019,RESOURCES & TRANSFORMATION,JOHAL DAIRIES LTD,01/04/2019,H59620190403WRJCHEOTP-1,53.45,CA ELMORE GREEN PRIMARY SCHOOL-FOOD & DRINK SUPPLIES,OTHER NONDURABLE GOODS,GPC
WALSALL COUNCIL,HTTP://OPENDATACOMMUNITIES.ORG/ID/METROPOLITAN-DISTRICT-COUNCIL/WALSALL,30/06/2019,CHILDRENS SERVICES,MOVECORP LIMITED,01/04/2019,H59620190403WVEPTQHKM-1,57.6,SAFEGUARDING & FAMILY SUPPORT-REMOVAL OF FURNITURE,MOTOR FREIGHT CARRIERS,GPC
WALSALL COUNCIL,HTTP://OPENDATACOMMUNITIES.ORG/ID/METROPOLITAN-DISTRICT-COUNCIL/WALSALL,30/06/2019,CHILDRENS SERVICES,WWW.BANNERUK.COM,01/04/2019,H59620190403XCFRBWUOD-1,44.83,LOCALITY FAMILY SUPPORT-NORTH-MISCELLANEOUS SUPPLIES,"STATIONERY, OFFICE SUPPLIES AND WRITING PAPER",GPC
WALSALL COUNCIL,HTTP://OPENDATACOMMUNITIES.ORG/ID/METROPOLITAN-DISTRICT-COUNCIL/WALSALL,30/06/2019,ECONOMY & ENVIRONMENT,WWW.BANNERUK.COM,01/04/2019,H59620190403XCICIMCGD-1,20.1,LIBRARY DEVELOPMENT 2-STATIONERY & GENERAL OFFICE SU,"STATIONERY, OFFICE SUPPLIES AND WRITING PAPER",GPC
WALSALL COUNCIL,HTTP://OPENDATACOMMUNITIES.ORG/ID/METROPOLITAN-DISTRICT-COUNCIL/WALSALL,30/06/2019,RESOURCES & TRANSFORMATION,JOHAL DAIRIES LTD,01/04/2019,H59620190403XVFFXKAGS-1,38.97,CA BUSILL JONES PRIMARY SCHOOL-FOOD & DRINK SUPPLIES,OTHER NONDURABLE GOODS,GPC
WALSALL COUNCIL,HTTP://OPENDATACOMMUNITIES.ORG/ID/METROPOLITAN-DISTRICT-COUNCIL/WALSALL,30/06/2019,CHILDRENS SERVICES,WALSALL COUNCIL,01/04/2019,H59620190403XZACSFNBM-1,139.02,ST JOHNS C.E. PRIMARY SCHOOL-POLICE CHECKS,GOVERNMENT SERVICES,GPC
WALSALL COUNCIL,HTTP://OPENDATACOMMUNITIES.ORG/ID/METROPOLITAN-DISTRICT-COUNCIL/WALSALL,30/06/2019,CHILDRENS SERVICES,FARMFOODS- WALSALL,01/04/2019,H59620190403YGWSSKMCU-1,17.71,MY PLACE (REVENUE)-FOOD AND BEVERAGES-PROVISIONS,GROCERY STORES AND SUPERMARKETS,GPC
WALSALL COUNCIL,HTTP://OPENDATACOMMUNITIES.ORG/ID/METROPOLITAN-DISTRICT-COUNCIL/WALSALL,30/06/2019,RESOURCES & TRANSFORMATION,BLAKEMORE FOODSERVICE,01/04/2019,H59620190403YILUIRNQK-1,41.77,CA BROWNHILLS WEST PRIMARY SCH-FROZEN FOODS-PROVISIONS,CATERERS,GPC
WALSALL COUNCIL,HTTP://OPENDATACOMMUNITIES.ORG/ID/METROPOLITAN-DISTRICT-COUNCIL/WALSALL,30/06/2019,RESOURCES & TRANSFORMATION,BLAKEMORE FOODSERVICE,01/04/2019,H59620190403YMYSXGPOA-1,32.04,CA KINGSHILL SCHOOL-DRY FOODS-PROVISIONS,CATERERS,GPC
WALSALL COUNCIL,HTTP://OPENDATACOMMUNITIES.ORG/ID/METROPOLITAN-DISTRICT-COUNCIL/WALSALL,30/06/2019,RESOURCES & TRANSFORMATION,BLAKEMORE FOODSERVICE,01/04/2019,H59620190403YMYSXGPOA-2,174.64,CA KINGSHILL SCHOOL-DRY FOODS-PROVISIONS,CATERERS,GPC
WALSALL COUNCIL,HTTP://OPENDATACOMMUNITIES.ORG/ID/METROPOLITAN-DISTRICT-COUNCIL/WALSALL,30/06/2019,RESOURCES & TRANSFORMATION,TESCO STORES 6161,01/04/2019,H59620190403YOEDGLUNT-1,50,WALSALL CRISIS SUPPORT SCHEME-CRISIS SUPPORT PAYMENTS,GROCERY STORES AND SUPERMARKETS,GPC
WALSALL COUNCIL,HTTP://OPENDATACOMMUNITIES.ORG/ID/METROPOLITAN-DISTRICT-COUNCIL/WALSALL,30/06/2019,CHILDRENS SERVICES,MOVECORP LIMITED,01/04/2019,H59620190403YUQJLJZQL-1,14.4,CHILDRENS ADMIN-REMOVAL OF FURNITURE,MOTOR FREIGHT CARRIERS,GPC
WALSALL COUNCIL,HTTP://OPENDATACOMMUNITIES.ORG/ID/METROPOLITAN-DISTRICT-COUNCIL/WALSALL,30/06/2019,RESOURCES & TRANSFORMATION,MOVECORP LIMITED,01/04/2019,H59620190403YWNKMBALD-1,37.8,CORPORATE PROCUREMENT-REMOVAL OF FURNITURE,MOTOR FREIGHT CARRIERS,GPC
WALSALL COUNCIL,HTTP://OPENDATACOMMUNITIES.ORG/ID/METROPOLITAN-DISTRICT-COUNCIL/WALSALL,30/06/2019,ECONOMY & ENVIRONMENT,WWW.BANNERUK.COM,01/04/2019,H59620190403YWYKKALGX-1,95.44,LIBRARY OPERATIONS CENTRAL-STATIONERY & GENERAL OFFICE SU,"STATIONERY, OFFICE SUPPLIES AND WRITING PAPER",GPC
WALSALL COUNCIL,HTTP://OPENDATACOMMUNITIES.ORG/ID/METROPOLITAN-DISTRICT-COUNCIL/WALSALL,30/06/2019,RESOURCES & TRANSFORMATION,BLAKEMORE FOODSERVICE,01/04/2019,H59620190403YXNQCGTMB-1,13.81,CA OAKWOOD SPECIAL SCHOOL-DRY FOODS-PROVISIONS,CATERERS,GPC
WALSALL COUNCIL,HTTP://OPENDATACOMMUNITIES.ORG/ID/METROPOLITAN-DISTRICT-COUNCIL/WALSALL,30/06/2019,RESOURCES & TRANSFORMATION,BLAKEMORE FOODSERVICE,01/04/2019,H59620190403YXNQCGTMB-2,188.82,CA OAKWOOD SPECIAL SCHOOL-DRY FOODS-PROVISIONS,CATERERS,GPC
WALSALL COUNCIL,HTTP://OPENDATACOMMUNITIES.ORG/ID/METROPOLITAN-DISTRICT-COUNCIL/WALSALL,30/06/2019,RESOURCES & TRANSFORMATION,JOHAL DAIRIES LTD,01/04/2019,H59620190403ZHECBDRTR-1,21.5,CA ST BERNADETTES CATHOLIC PRI-FOOD & DRINK SUPPLIES,OTHER NONDURABLE GOODS,GPC
WALSALL COUNCIL,HTTP://OPENDATACOMMUNITIES.ORG/ID/METROPOLITAN-DISTRICT-COUNCIL/WALSALL,30/06/2019,RESOURCES & TRANSFORMATION,JOHAL DAIRIES LTD,01/04/2019,H59620190403ZNPOLGOXR-1,21.94,CA CASTLEFORT JMI SCHOOL-FOOD & DRINK SUPPLIES,OTHER NONDURABLE GOODS,GPC
WALSALL COUNCIL,HTTP://OPENDATACOMMUNITIES.ORG/ID/METROPOLITAN-DISTRICT-COUNCIL/WALSALL,30/06/2019,RESOURCES & TRANSFORMATION,JOHAL DAIRIES LTD,01/04/2019,H59620190403ZTBZNRVDY-1,2.82,CA CROFT COMMUNITY PRIMARY SCH-FOOD & DRINK SUPPLIES,OTHER NONDURABLE GOODS,GPC
WALSALL COUNCIL,HTTP://OPENDATACOMMUNITIES.ORG/ID/METROPOLITAN-DISTRICT-COUNCIL/WALSALL,30/06/2019,ECONOMY & ENVIRONMENT,AMZNMKTPLACE AMAZON.CO.UK,01/04/2019,H59620190404DPUGXQWQT-1,35.85,OAK PARK-MISCELLANEOUS SUPPLIES,MISCELLANEOUS AND SPECIALTY RETAIL STORES,GPC
WALSALL COUNCIL,HTTP://OPENDATACOMMUNITIES.ORG/ID/METROPOLITAN-DISTRICT-COUNCIL/WALSALL,30/06/2019,CHILDRENS SERVICES,PAYPAL *IN8,01/04/2019,H59620190404ECKUPZCJJ-1,35.75,EDUCATIONAL PSYCHOLOGISTS-MISCELLANEOUS SUPPLIES,MISCELLANEOUS PUBLISHING AND PRINTING,GPC
WALSALL COUNCIL,HTTP://OPENDATACOMMUNITIES.ORG/ID/METROPOLITAN-DISTRICT-COUNCIL/WALSALL,30/06/2019,RESOURCES & TRANSFORMATION,CHICKEN JOES LTD,01/04/2019,H59620190405EXSWQVXCC-1,64.52,CA LINDENS PRIMARY SCHOOL-FROZEN FOODS-PROVISIONS,CATERERS,GPC
WALSALL COUNCIL,HTTP://OPENDATACOMMUNITIES.ORG/ID/METROPOLITAN-DISTRICT-COUNCIL/WALSALL,30/06/2019,RESOURCES & TRANSFORMATION,CHICKEN JOES LTD,01/04/2019,H59620190405NFYXLYFAK-1,40.14,CA LEIGHSWOOD PRIMARY SCHOOL-FROZEN FOODS-PROVISIONS,CATERERS,GPC
WALSALL COUNCIL,HTTP://OPENDATACOMMUNITIES.ORG/ID/METROPOLITAN-DISTRICT-COUNCIL/WALSALL,30/06/2019,RESOURCES & TRANSFORMATION,CHICKEN JOES LTD,01/04/2019,H59620190405NHNLGXFDD-1,69.3,CA ST JOHNS C.E. PRIMARY SCHOO-FROZEN FOODS-PROVISIONS,CATERERS,GPC
WALSALL COUNCIL,HTTP://OPENDATACOMMUNITIES.ORG/ID/METROPOLITAN-DISTRICT-COUNCIL/WALSALL,30/06/2019,RESOURCES & TRANSFORMATION,CHICKEN JOES LTD,01/04/2019,H59620190405OONMHLKVE-1,127.03,CA RADLEYS PRIMARY SCHOOL-FROZEN FOODS-PROVISIONS,CATERERS,GPC
WALSALL COUNCIL,HTTP://OPENDATACOMMUNITIES.ORG/ID/METROPOLITAN-DISTRICT-COUNCIL/WALSALL,30/06/2019,RESOURCES & TRANSFORMATION,CHICKEN JOES LTD,01/04/2019,H59620190405SMKQQMUMG-1,40.81,CA BEACON PRIMARY SCHOOL-FROZEN FOODS-PROVISIONS,CATERERS,GPC
WALSALL COUNCIL,HTTP://OPENDATACOMMUNITIES.ORG/ID/METROPOLITAN-DISTRICT-COUNCIL/WALSALL,30/06/2019,RESOURCES & TRANSFORMATION,CHICKEN JOES LTD,01/04/2019,H59620190405TDTGFOBGJ-1,36.48,CA COOPER JORDAN CE PRIMARY SC-FROZEN FOODS-PROVISIONS,CATERERS,GPC
WALSALL COUNCIL,HTTP://OPENDATACOMMUNITIES.ORG/ID/METROPOLITAN-DISTRICT-COUNCIL/WALSALL,30/06/2019,RESOURCES & TRANSFORMATION,CHICKEN JOES LTD,01/04/2019,H59620190405TKCVNPKND-1,42.82,CA OLD HALL SPECIAL SCHOOL-FROZEN FOODS-PROVISIONS,CATERERS,GPC
WALSALL COUNCIL,HTTP://OPENDATACOMMUNITIES.ORG/ID/METROPOLITAN-DISTRICT-COUNCIL/WALSALL,30/06/2019,RESOURCES & TRANSFORMATION,CHICKEN JOES LTD,01/04/2019,H59620190405TLGDMCRSJ-1,91.46,CA ST GILES C.E. PRIMARY SCHOO-FROZEN FOODS-PROVISIONS,CATERERS,GPC
WALSALL COUNCIL,HTTP://OPENDATACOMMUNITIES.ORG/ID/METROPOLITAN-DISTRICT-COUNCIL/WALSALL,30/06/2019,ECONOMY & ENVIRONMENT,T.MORGAN & SONS (L,01/04/2019,H59620190405TWHYCJBPL-1,40.56,INFRASTRUCTURE MAINTENANCE-MATERIALS,HARDWARE EQUIPMENT AND SUPPLIES,GPC
WALSALL COUNCIL,HTTP://OPENDATACOMMUNITIES.ORG/ID/METROPOLITAN-DISTRICT-COUNCIL/WALSALL,30/06/2019,RESOURCES & TRANSFORMATION,ARTHUR BRETT CATER,02/04/2019,H59620190404ARTGWGSBO-1,5.1,CA LEIGHSWOOD PRIMARY SCHOOL-FRUIT & VEGETABLES OTHER-PROVI,MISCELLANEOUS FOOD STORES & CONVENIENCE STORES,GPC
WALSALL COUNCIL,HTTP://OPENDATACOMMUNITIES.ORG/ID/METROPOLITAN-DISTRICT-COUNCIL/WALSALL,30/06/2019,CHILDRENS SERVICES,FARMFOODS- KINGSTA,02/04/2019,H59620190404AVVXFYQAU-1,19.98,REDRUTH ROAD-FOOD AND BEVERAGES-PROVISIONS,GROCERY STORES AND SUPERMARKETS,GPC
WALSALL COUNCIL,HTTP://OPENDATACOMMUNITIES.ORG/ID/METROPOLITAN-DISTRICT-COUNCIL/WALSALL,30/06/2019,CHILDRENS SERVICES,HM PASSPORT OFFICE,02/04/2019,H59620190404BFGNACLVU-1,58.5,LOOKED AFTER CHILDRENS SOCIAL -OTHER EMPLOYEES FEES & EXPENSE,GOVERNMENT SERVICES,GPC
WALSALL COUNCIL,HTTP://OPENDATACOMMUNITIES.ORG/ID/METROPOLITAN-DISTRICT-COUNCIL/WALSALL,30/06/2019,CHILDRENS SERVICES,WM MORRISONS STORE,02/04/2019,H59620190404BHURHCXPT-1,11.35,LOOKED AFTER CHILDRENS SOCIAL -FOOD AND BEVERAGES-PROVISIONS,GROCERY STORES AND SUPERMARKETS,GPC
WALSALL COUNCIL,HTTP://OPENDATACOMMUNITIES.ORG/ID/METROPOLITAN-DISTRICT-COUNCIL/WALSALL,30/06/2019,CHILDRENS SERVICES (SCHOOLS),WWW.SIXTYSTORES.CO.UK,02/04/2019,H59620190404BNUDWQBTG-1,169,E19-PRIVATE CONTRACTORS-EQUIPMENT,HOUSEHOLD APPLIANCE STORES,GPC
WALSALL COUNCIL,HTTP://OPENDATACOMMUNITIES.ORG/ID/METROPOLITAN-DISTRICT-COUNCIL/WALSALL,30/06/2019,RESOURCES & TRANSFORMATION,NOBISCO LIMITED,02/04/2019,H59620190404BTBOTXFZG-1,44.6,CA ELMORE GREEN PRIMARY SCHOOL-DISPOSABLES-PROVISIONS,OTHER INDUSTRIAL SUPPLIES,GPC
WALSALL COUNCIL,HTTP://OPENDATACOMMUNITIES.ORG/ID/METROPOLITAN-DISTRICT-COUNCIL/WALSALL,30/06/2019,ECONOMY & ENVIRONMENT,BGN BOARDS CO LTD,02/04/2019,H59620190404BXNVYCSTL-1,99.41,DEPOT-MATERIALS,MISCELLANEOUS AND SPECIALTY RETAIL STORES,GPC
WALSALL COUNCIL,HTTP://OPENDATACOMMUNITIES.ORG/ID/METROPOLITAN-DISTRICT-COUNCIL/WALSALL,30/06/2019,RESOURCES & TRANSFORMATION,ARTHUR BRETT CATER,02/04/2019,H59620190404COHHBIMDN-1,135.6,CA RUSHALL JMI SCHOOL-FRUIT & VEGETABLES OTHER-PROVI,MISCELLANEOUS FOOD STORES & CONVENIENCE STORES,GPC
WALSALL COUNCIL,HTTP://OPENDATACOMMUNITIES.ORG/ID/METROPOLITAN-DISTRICT-COUNCIL/WALSALL,30/06/2019,CHILDRENS SERVICES,AMZNMKTPLACE,02/04/2019,H59620190404CPCJDHAZJ-1,13.95,ST FRANCIS OF ASSISI CATHOLIC -OPERATIONAL MAINTENANCE,MISCELLANEOUS AND SPECIALTY RETAIL STORES,GPC
WALSALL COUNCIL,HTTP://OPENDATACOMMUNITIES.ORG/ID/METROPOLITAN-DISTRICT-COUNCIL/WALSALL,30/06/2019,RESOURCES & TRANSFORMATION,ARTHUR BRETT CATER,02/04/2019,H59620190404CQJUVUQOC-1,173.2,CA BEACON PRIMARY SCHOOL-FRUIT & VEGETABLES OTHER-PROVI,MISCELLANEOUS FOOD STORES & CONVENIENCE STORES,GPC
WALSALL COUNCIL,HTTP://OPENDATACOMMUNITIES.ORG/ID/METROPOLITAN-DISTRICT-COUNCIL/WALSALL,30/06/2019,CHILDRENS SERVICES,AMAZON PRIME*MZ4L26TH4,02/04/2019,H59620190404CYCUNVDXV-1,79,SALISBURY PRIMARY SCHOOL-MATERIALS,DIRECT MARKETING CONTINUITY SUBSCRIPTION MERCHANTS,GPC
WALSALL COUNCIL,HTTP://OPENDATACOMMUNITIES.ORG/ID/METROPOLITAN-DISTRICT-COUNCIL/WALSALL,30/06/2019,RESOURCES & TRANSFORMATION,ARTHUR BRETT CATER,02/04/2019,H59620190404DCXGIEPMC-1,32.93,CA JANE LANE SPECIAL SCHOOL-FOOD AND BEVERAGES-PROVISIONS,MISCELLANEOUS FOOD STORES & CONVENIENCE STORES,GPC
WALSALL COUNCIL,HTTP://OPENDATACOMMUNITIES.ORG/ID/METROPOLITAN-DISTRICT-COUNCIL/WALSALL,30/06/2019,RESOURCES & TRANSFORMATION,ASDA STORES,02/04/2019,H59620190404DFVLMKUMX-1,6,CA LEIGHSWOOD PRIMARY SCHOOL-DRY FOODS-PROVISIONS,GROCERY STORES AND SUPERMARKETS,GPC
WALSALL COUNCIL,HTTP://OPENDATACOMMUNITIES.ORG/ID/METROPOLITAN-DISTRICT-COUNCIL/WALSALL,30/06/2019,RESOURCES & TRANSFORMATION,ARTHUR BRETT CATER,02/04/2019,H59620190404DKONWUPPF-1,139.51,CA BARCROFT D/C-FRUIT & VEGETABLES OTHER-PROVI,MISCELLANEOUS FOOD STORES & CONVENIENCE STORES,GPC
WALSALL COUNCIL,HTTP://OPENDATACOMMUNITIES.ORG/ID/METROPOLITAN-DISTRICT-COUNCIL/WALSALL,30/06/2019,RESOURCES & TRANSFORMATION,NOBISCO LIMITED,02/04/2019,H59620190404DNNNMBEDJ-1,78.28,CA BARCROFT D/C-DISPOSABLES-PROVISIONS,OTHER INDUSTRIAL SUPPLIES,GPC
WALSALL COUNCIL,HTTP://OPENDATACOMMUNITIES.ORG/ID/METROPOLITAN-DISTRICT-COUNCIL/WALSALL,30/06/2019,RESOURCES & TRANSFORMATION,ARTHUR BRETT CATER,02/04/2019,H59620190404DQXGHIIHI-1,42.48,CA ABBEY PRIMARY SCHOOL-FRUIT & VEGETABLES OTHER-PROVI,MISCELLANEOUS FOOD STORES & CONVENIENCE STORES,GPC
WALSALL COUNCIL,HTTP://OPENDATACOMMUNITIES.ORG/ID/METROPOLITAN-DISTRICT-COUNCIL/WALSALL,30/06/2019,RESOURCES & TRANSFORMATION,ARTHUR BRETT CATER,02/04/2019,H59620190404EJYSDPXNN-1,83.63,CA KINGSHILL SCHOOL-FRUIT & VEGETABLES OTHER-PROVI,MISCELLANEOUS FOOD STORES & CONVENIENCE STORES,GPC
WALSALL COUNCIL,HTTP://OPENDATACOMMUNITIES.ORG/ID/METROPOLITAN-DISTRICT-COUNCIL/WALSALL,30/06/2019,RESOURCES & TRANSFORMATION,ARTHUR BRETT CATER,02/04/2019,H59620190404ESIOECBGD-1,86.99,CA MOORCROFT WOOD-FRUIT & VEGETABLES OTHER-PROVI,MISCELLANEOUS FOOD STORES & CONVENIENCE STORES,GPC
WALSALL COUNCIL,HTTP://OPENDATACOMMUNITIES.ORG/ID/METROPOLITAN-DISTRICT-COUNCIL/WALSALL,30/06/2019,RESOURCES & TRANSFORMATION,ARTHUR BRETT CATER,02/04/2019,H59620190404EWQFUPKIG-1,54.13,CA ST MICHAELS C.E. PRIMARY SC-FRUIT & VEGETABLES OTHER-PROVI,MISCELLANEOUS FOOD STORES & CONVENIENCE STORES,GPC
WALSALL COUNCIL,HTTP://OPENDATACOMMUNITIES.ORG/ID/METROPOLITAN-DISTRICT-COUNCIL/WALSALL,30/06/2019,RESOURCES & TRANSFORMATION,NORFOLK KENT,02/04/2019,H59620190404FDGBGRJYS-1,33,ACCOMMODATION SERVICES MANAGEM-BED & BREAKFAST PAYMENTS,"HOTELS, MOTELS, RESORTS",GPC
WALSALL COUNCIL,HTTP://OPENDATACOMMUNITIES.ORG/ID/METROPOLITAN-DISTRICT-COUNCIL/WALSALL,30/06/2019,RESOURCES & TRANSFORMATION,ARTHUR BRETT CATER,02/04/2019,H59620190404FEYTQGTOL-1,63.48,CA BROWNHILLS WEST PRIMARY SCH-FRUIT & VEGETABLES OTHER-PROVI,MISCELLANEOUS FOOD STORES & CONVENIENCE STORES,GPC
WALSALL COUNCIL,HTTP://OPENDATACOMMUNITIES.ORG/ID/METROPOLITAN-DISTRICT-COUNCIL/WALSALL,30/06/2019,RESOURCES & TRANSFORMATION,ARTHUR BRETT CATER,02/04/2019,H59620190404FOAVGPRHE-1,77.5,CA LINDENS PRIMARY SCHOOL-FRUIT & VEGETABLES OTHER-PROVI,MISCELLANEOUS FOOD STORES & CONVENIENCE STORES,GPC
WALSALL COUNCIL,HTTP://OPENDATACOMMUNITIES.ORG/ID/METROPOLITAN-DISTRICT-COUNCIL/WALSALL,30/06/2019,CHILDRENS SERVICES,WWW.THEWORKS.CO.UK,02/04/2019,H59620190404FPDYIYVGP-1,25,CONTINGENCY-MATERIALS,DISCOUNT STORES,GPC
WALSALL COUNCIL,HTTP://OPENDATACOMMUNITIES.ORG/ID/METROPOLITAN-DISTRICT-COUNCIL/WALSALL,30/06/2019,CHILDRENS SERVICES,WM MORRISONS STORE,02/04/2019,H59620190404GDEBISWQH-1,21,"43A HILTON ROAD, WILLENHALL-FOOD AND BEVERAGES-PROVISIONS",GROCERY STORES AND SUPERMARKETS,GPC
WALSALL COUNCIL,HTTP://OPENDATACOMMUNITIES.ORG/ID/METROPOLITAN-DISTRICT-COUNCIL/WALSALL,30/06/2019,CHILDRENS SERVICES,WM MORRISONS STORE,02/04/2019,H59620190404GDEBISWQH-2,78.83,"43A HILTON ROAD, WILLENHALL-FOOD AND BEVERAGES-PROVISIONS",GROCERY STORES AND SUPERMARKETS,GPC
WALSALL COUNCIL,HTTP://OPENDATACOMMUNITIES.ORG/ID/METROPOLITAN-DISTRICT-COUNCIL/WALSALL,30/06/2019,RESOURCES & TRANSFORMATION,ARTHUR BRETT CATER,02/04/2019,H59620190404GDNFZBXRH-1,26.76,CA OLD HALL SPECIAL SCHOOL-FRUIT & VEGETABLES OTHER-PROVI,MISCELLANEOUS FOOD STORES & CONVENIENCE STORES,GPC
WALSALL COUNCIL,HTTP://OPENDATACOMMUNITIES.ORG/ID/METROPOLITAN-DISTRICT-COUNCIL/WALSALL,30/06/2019,RESOURCES & TRANSFORMATION,ARTHUR BRETT CATER,02/04/2019,H59620190404GYLSWWXJP-1,23.46,CA CASTLEFORT JMI SCHOOL-FRUIT & VEGETABLES OTHER-PROVI,MISCELLANEOUS FOOD STORES & CONVENIENCE STORES,GPC
WALSALL COUNCIL,HTTP://OPENDATACOMMUNITIES.ORG/ID/METROPOLITAN-DISTRICT-COUNCIL/WALSALL,30/06/2019,RESOURCES & TRANSFORMATION,ARTHUR BRETT CATER,02/04/2019,H59620190404HFZXRFBVI-1,41.66,CA LITTLE BLOXWICH CE PRIMARY -FRUIT & VEGETABLES OTHER-PROVI,MISCELLANEOUS FOOD STORES & CONVENIENCE STORES,GPC
WALSALL COUNCIL,HTTP://OPENDATACOMMUNITIES.ORG/ID/METROPOLITAN-DISTRICT-COUNCIL/WALSALL,30/06/2019,CHILDRENS SERVICES,WM MORRISONS STORE,02/04/2019,H59620190404HMVIGLHLG-1,2.94,LOCALITY FAMILY SUPPORT-WEST-FOOD AND BEVERAGES-PROVISIONS,GROCERY STORES AND SUPERMARKETS,GPC
WALSALL COUNCIL,HTTP://OPENDATACOMMUNITIES.ORG/ID/METROPOLITAN-DISTRICT-COUNCIL/WALSALL,30/06/2019,ECONOMY & ENVIRONMENT,TNT UK LTD,02/04/2019,H59620190404IDUWGYGKE-1,40.73,POLLUTION DIVISION-POSTAGES & COURIER SERVICES,MOTOR FREIGHT CARRIERS,GPC
WALSALL COUNCIL,HTTP://OPENDATACOMMUNITIES.ORG/ID/METROPOLITAN-DISTRICT-COUNCIL/WALSALL,30/06/2019,ECONOMY & ENVIRONMENT,SECPRINT LIMITED,02/04/2019,H59620190404IGWUMQTNW-1,84,WALSALL TOWN HALL-MISCELLANEOUS SUPPLIES,"OFFICE, SCHOOL SUPPLY, AND STATIONERY STORES",GPC
WALSALL COUNCIL,HTTP://OPENDATACOMMUNITIES.ORG/ID/METROPOLITAN-DISTRICT-COUNCIL/WALSALL,30/06/2019,CHILDRENS SERVICES,WALSALL STN T/O,02/04/2019,H59620190404IKMEDXFDC-1,19.2,LOOKED AFTER CHILDRENS SOCIAL -SECTION 34 (CONTACT),PASSENGER RAILWAYS,GPC
WALSALL COUNCIL,HTTP://OPENDATACOMMUNITIES.ORG/ID/METROPOLITAN-DISTRICT-COUNCIL/WALSALL,30/06/2019,RESOURCES & TRANSFORMATION,NEW LOOK 1880,02/04/2019,H59620190404IOGKMPECT-1,24.99,YOUNG PERSONS HOMELESS SERVICE-CLOTHING & LAUNDRY,WOMENS READY TO WEAR STORES,GPC
WALSALL COUNCIL,HTTP://OPENDATACOMMUNITIES.ORG/ID/METROPOLITAN-DISTRICT-COUNCIL/WALSALL,30/06/2019,CHILDRENS SERVICES,TRAINLINE,02/04/2019,H59620190404JINIXBFYB-1,-95.5,FAMILY PLACEMENTS-OFFICERS & STAFF PUBLIC TRANSP,PASSENGER RAILWAYS,GPC
WALSALL COUNCIL,HTTP://OPENDATACOMMUNITIES.ORG/ID/METROPOLITAN-DISTRICT-COUNCIL/WALSALL,30/06/2019,RESOURCES & TRANSFORMATION,ARTHUR BRETT CATER,02/04/2019,H59620190404JPPMWLWBS-1,126.83,CA RADLEYS PRIMARY SCHOOL-FRUIT & VEGETABLES OTHER-PROVI,MISCELLANEOUS FOOD STORES & CONVENIENCE STORES,GPC
WALSALL COUNCIL,HTTP://OPENDATACOMMUNITIES.ORG/ID/METROPOLITAN-DISTRICT-COUNCIL/WALSALL,30/06/2019,CHILDRENS SERVICES (SCHOOLS),AMZNMKTPLACE,02/04/2019,H59620190404JROYRNXTT-1,19.99,E19-MATERIALS,MISCELLANEOUS AND SPECIALTY RETAIL STORES,GPC
WALSALL COUNCIL,HTTP://OPENDATACOMMUNITIES.ORG/ID/METROPOLITAN-DISTRICT-COUNCIL/WALSALL,30/06/2019,CHILDRENS SERVICES,GOODSTUFF EDU LTD,02/04/2019,H59620190404JTEUTXTDI-1,20.97,MATHEMATICS DEPARTMENT-MATERIALS,OTHER SCHOOLS AND EDUCATIONAL SERVICES,GPC
WALSALL COUNCIL,HTTP://OPENDATACOMMUNITIES.ORG/ID/METROPOLITAN-DISTRICT-COUNCIL/WALSALL,30/06/2019,RESOURCES & TRANSFORMATION,ARTHUR BRETT CATER,02/04/2019,H59620190404KDQLOUJXE-1,74.37,CA BUSILL JONES PRIMARY SCHOOL-FRUIT & VEGETABLES OTHER-PROVI,MISCELLANEOUS FOOD STORES & CONVENIENCE STORES,GPC
WALSALL COUNCIL,HTTP://OPENDATACOMMUNITIES.ORG/ID/METROPOLITAN-DISTRICT-COUNCIL/WALSALL,30/06/2019,ECONOMY & ENVIRONMENT,AMZN MKTP UK*MZ6V25TE4,02/04/2019,H59620190404KFJCLQEGD-1,22.98,NEW ART GALLERY - ADMIN-NEW-FURNITURE & EQUIPMENT,BOOK STORES,GPC
WALSALL COUNCIL,HTTP://OPENDATACOMMUNITIES.ORG/ID/METROPOLITAN-DISTRICT-COUNCIL/WALSALL,30/06/2019,ECONOMY & ENVIRONMENT,TOOLSTATION LTD,02/04/2019,H59620190404KHOLKPKIN-1,13.91,INFRASTRUCTURE MAINTENANCE-MATERIALS,HARDWARE STORES,GPC
WALSALL COUNCIL,HTTP://OPENDATACOMMUNITIES.ORG/ID/METROPOLITAN-DISTRICT-COUNCIL/WALSALL,30/06/2019,RESOURCES & TRANSFORMATION,ARTHUR BRETT CATER,02/04/2019,H59620190404KLTYBWWLF-1,27.86,CA BUSILL JONES PRIMARY SCHOOL-FRUIT & VEGETABLES OTHER-PROVI,MISCELLANEOUS FOOD STORES & CONVENIENCE STORES,GPC
WALSALL COUNCIL,HTTP://OPENDATACOMMUNITIES.ORG/ID/METROPOLITAN-DISTRICT-COUNCIL/WALSALL,30/06/2019,ECONOMY & ENVIRONMENT,B&M RETAIL LTD,02/04/2019,H59620190404KRQAPRXPK-1,12.96,BROWNHILLS LIBRARY-CLEANING-MATERIALS (INC LIGHT ,DISCOUNT STORES,GPC
WALSALL COUNCIL,HTTP://OPENDATACOMMUNITIES.ORG/ID/METROPOLITAN-DISTRICT-COUNCIL/WALSALL,30/06/2019,CHILDRENS SERVICES,SCREWFIX DIRECT,02/04/2019,H59620190404LDCSYYFDT-1,176.26,ST JOHNS C.E. PRIMARY SCHOOL-OPERATIONAL MAINTENANCE,HOME SUPPLY WAREHOUSE STORES,GPC
WALSALL COUNCIL,HTTP://OPENDATACOMMUNITIES.ORG/ID/METROPOLITAN-DISTRICT-COUNCIL/WALSALL,30/06/2019,RESOURCES & TRANSFORMATION,ASDA SUPERSTORE,02/04/2019,H59620190404LJDLNSPXY-1,15.11,ACCOMMODATION SERVICES MANAGEM-FOOD AND BEVERAGES-PROVISIONS,GROCERY STORES AND SUPERMARKETS,GPC
WALSALL COUNCIL,HTTP://OPENDATACOMMUNITIES.ORG/ID/METROPOLITAN-DISTRICT-COUNCIL/WALSALL,30/06/2019,RESOURCES & TRANSFORMATION,ARTHUR BRETT CATER,02/04/2019,H59620190404LQJOQHCPJ-1,87.42,CA ELMWOOD SPECIAL SCHOOL-FRUIT & VEGETABLES OTHER-PROVI,MISCELLANEOUS FOOD STORES & CONVENIENCE STORES,GPC
WALSALL COUNCIL,HTTP://OPENDATACOMMUNITIES.ORG/ID/METROPOLITAN-DISTRICT-COUNCIL/WALSALL,30/06/2019,CHILDRENS SERVICES,ONE STOP 6322,02/04/2019,H59620190404LQXQPWRMD-1,2,LOCALITY FAMILY SUPPORT-WEST-FOOD AND BEVERAGES-PROVISIONS,GROCERY STORES AND SUPERMARKETS,GPC
WALSALL COUNCIL,HTTP://OPENDATACOMMUNITIES.ORG/ID/METROPOLITAN-DISTRICT-COUNCIL/WALSALL,30/06/2019,CHILDRENS SERVICES,AMAZON.CO.UK*MZ0752T94,02/04/2019,H59620190404LRQQLQDLT-1,7.96,ICT LEARNING RESOURCES-NEW-FURNITURE & EQUIPMENT,OTHER DIRECT MARKETING-OTHER DIRECT MARKETERS,GPC
WALSALL COUNCIL,HTTP://OPENDATACOMMUNITIES.ORG/ID/METROPOLITAN-DISTRICT-COUNCIL/WALSALL,30/06/2019,CHILDRENS SERVICES,ASDA GROCERIES ONLINE,02/04/2019,H59620190404MCGWYNBKL-1,37.16,ROSEDALE C.E. PRIMARY SCHOOL-BREAD-GENERAL-PROVISIONS,GROCERY STORES AND SUPERMARKETS,GPC
WALSALL COUNCIL,HTTP://OPENDATACOMMUNITIES.ORG/ID/METROPOLITAN-DISTRICT-COUNCIL/WALSALL,30/06/2019,CHILDRENS SERVICES,ASDA GROCERIES ONLINE,02/04/2019,H59620190404MCGWYNBKL-2,6.13,ROSEDALE C.E. PRIMARY SCHOOL-BREAD-GENERAL-PROVISIONS,GROCERY STORES AND SUPERMARKETS,GPC
WALSALL COUNCIL,HTTP://OPENDATACOMMUNITIES.ORG/ID/METROPOLITAN-DISTRICT-COUNCIL/WALSALL,30/06/2019,RESOURCES & TRANSFORMATION,ARTHUR BRETT CATER,02/04/2019,H59620190404MRPYWVSSV-1,80.5,CA CROFT COMMUNITY PRIMARY SCH-FRUIT & VEGETABLES OTHER-PROVI,MISCELLANEOUS FOOD STORES & CONVENIENCE STORES,GPC
WALSALL COUNCIL,HTTP://OPENDATACOMMUNITIES.ORG/ID/METROPOLITAN-DISTRICT-COUNCIL/WALSALL,30/06/2019,CHILDRENS SERVICES,WEST MIDLAND CARD,02/04/2019,H59620190404NRCEKBEEE-1,3.4,TRANSITION AND LEAVING CARE PL-OFFICERS & STAFF PUBLIC TRANSP,BUS LINES,GPC
WALSALL COUNCIL,HTTP://OPENDATACOMMUNITIES.ORG/ID/METROPOLITAN-DISTRICT-COUNCIL/WALSALL,30/06/2019,ECONOMY & ENVIRONMENT,WWW.THEWORKS.CO.UK,02/04/2019,H59620190404NYESRUUDD-1,46.5,LEATHER MUSEUM-MATERIALS,DISCOUNT STORES,GPC
WALSALL COUNCIL,HTTP://OPENDATACOMMUNITIES.ORG/ID/METROPOLITAN-DISTRICT-COUNCIL/WALSALL,30/06/2019,ECONOMY & ENVIRONMENT,AMZNMKTPLACE AMAZON.CO.UK,02/04/2019,H59620190404OTSGSFCLG-1,5.92,ALDRIDGE LIBRARY-MATERIALS,MISCELLANEOUS AND SPECIALTY RETAIL STORES,GPC
WALSALL COUNCIL,HTTP://OPENDATACOMMUNITIES.ORG/ID/METROPOLITAN-DISTRICT-COUNCIL/WALSALL,30/06/2019,CHILDRENS SERVICES,POSTOFFICE SELFSERVICE,02/04/2019,H59620190404PHXMAKHFT-1,6.6,BLUEBELLS-POSTAGES & COURIER SERVICES,POSTAL SERVICES - GOVERNMENT ONLY,GPC
WALSALL COUNCIL,HTTP://OPENDATACOMMUNITIES.ORG/ID/METROPOLITAN-DISTRICT-COUNCIL/WALSALL,30/06/2019,CHILDRENS SERVICES (SCHOOLS),AMAZON.CO.UK*MZ4OW5TS4,02/04/2019,H59620190404PHYLLUUXQ-1,3.78,ADMINISTRATIVE SUPPLIES-MATERIALS,OTHER DIRECT MARKETING-OTHER DIRECT MARKETERS,GPC
WALSALL COUNCIL,HTTP://OPENDATACOMMUNITIES.ORG/ID/METROPOLITAN-DISTRICT-COUNCIL/WALSALL,30/06/2019,RESOURCES & TRANSFORMATION,HOTEL ON BOOKING.COM B.CO,02/04/2019,H59620190404QTVLLSWTK-1,524,BED & BREAKFAST PAYMENTS-BED & BREAKFAST PAYMENTS,"HOTELS, MOTELS, RESORTS",GPC
WALSALL COUNCIL,HTTP://OPENDATACOMMUNITIES.ORG/ID/METROPOLITAN-DISTRICT-COUNCIL/WALSALL,30/06/2019,RESOURCES & TRANSFORMATION,ARTHUR BRETT CATER,02/04/2019,H59620190404QWDPDFSHJ-1,11.15,CA LEAMORE PRIMARY SCHOOL-FRUIT & VEGETABLES OTHER-PROVI,MISCELLANEOUS FOOD STORES & CONVENIENCE STORES,GPC
WALSALL COUNCIL,HTTP://OPENDATACOMMUNITIES.ORG/ID/METROPOLITAN-DISTRICT-COUNCIL/WALSALL,30/06/2019,RESOURCES & TRANSFORMATION,ARTHUR BRETT CATER,02/04/2019,H59620190404RWRDBNFIJ-1,49.79,CA BLOXWICH C.E. JMI PRIMARY S-FRUIT & VEGETABLES OTHER-PROVI,MISCELLANEOUS FOOD STORES & CONVENIENCE STORES,GPC
WALSALL COUNCIL,HTTP://OPENDATACOMMUNITIES.ORG/ID/METROPOLITAN-DISTRICT-COUNCIL/WALSALL,30/06/2019,CHILDRENS SERVICES,PARTRIDGE & PRINT,02/04/2019,H59620190404SEZNHJYFL-1,382.5,FAMILY PLACEMENTS-FOSTER CARERS OTHER ALLOWANCES,OTHER SCHOOLS AND EDUCATIONAL SERVICES,GPC
WALSALL COUNCIL,HTTP://OPENDATACOMMUNITIES.ORG/ID/METROPOLITAN-DISTRICT-COUNCIL/WALSALL,30/06/2019,CHILDRENS SERVICES,PARTRIDGE & PRINT,02/04/2019,H59620190404SEZNHJYFL-2,15.6,FAMILY PLACEMENTS-FOSTER CARERS OTHER ALLOWANCES,OTHER SCHOOLS AND EDUCATIONAL SERVICES,GPC
WALSALL COUNCIL,HTTP://OPENDATACOMMUNITIES.ORG/ID/METROPOLITAN-DISTRICT-COUNCIL/WALSALL,30/06/2019,RESOURCES & TRANSFORMATION,PARK PLACE SHOE REPAIRS,02/04/2019,H59620190404SJQDEUBOL-1,5,CORPORATE MANAGEMENT TEAM-REPAIR & MAINTENANCE OF FURNIT,"HAT CLEANING SHOPS, SHOE REPAIR SHOPS, SHOE SHINE ",GPC
WALSALL COUNCIL,HTTP://OPENDATACOMMUNITIES.ORG/ID/METROPOLITAN-DISTRICT-COUNCIL/WALSALL,30/06/2019,RESOURCES & TRANSFORMATION,ARTHUR BRETT CATER,02/04/2019,H59620190404STGZPJVTK-1,141.5,CA COOPER JORDAN CE PRIMARY SC-FRUIT & VEGETABLES OTHER-PROVI,MISCELLANEOUS FOOD STORES & CONVENIENCE STORES,GPC
WALSALL COUNCIL,HTTP://OPENDATACOMMUNITIES.ORG/ID/METROPOLITAN-DISTRICT-COUNCIL/WALSALL,30/06/2019,CHILDRENS SERVICES,AMZNMKTPLACE,02/04/2019,H59620190404SXAQBJCGK-1,80.97,ST JOHNS C.E. PRIMARY SCHOOL-OPERATIONAL MAINTENANCE,MISCELLANEOUS AND SPECIALTY RETAIL STORES,GPC
WALSALL COUNCIL,HTTP://OPENDATACOMMUNITIES.ORG/ID/METROPOLITAN-DISTRICT-COUNCIL/WALSALL,30/06/2019,CHILDRENS SERVICES,W M MORRISONS.COM,02/04/2019,H59620190404TBOGHLQBH-1,37.44,BLUEBELLS-FOOD AND BEVERAGES-PROVISIONS,GROCERY STORES AND SUPERMARKETS,GPC
WALSALL COUNCIL,HTTP://OPENDATACOMMUNITIES.ORG/ID/METROPOLITAN-DISTRICT-COUNCIL/WALSALL,30/06/2019,CHILDRENS SERVICES,W M MORRISONS.COM,02/04/2019,H59620190404TBOGHLQBH-2,21.08,BLUEBELLS-FOOD AND BEVERAGES-PROVISIONS,GROCERY STORES AND SUPERMARKETS,GPC
WALSALL COUNCIL,HTTP://OPENDATACOMMUNITIES.ORG/ID/METROPOLITAN-DISTRICT-COUNCIL/WALSALL,30/06/2019,ECONOMY & ENVIRONMENT,WILKO RETAIL LIMIT,02/04/2019,H59620190404TOQCKKBOH-1,20,LIBRARY OPERATIONS - MOBILE SE-STATIONERY & GENERAL OFFICE SU,HOUSEHOLD APPLIANCE STORES,GPC
WALSALL COUNCIL,HTTP://OPENDATACOMMUNITIES.ORG/ID/METROPOLITAN-DISTRICT-COUNCIL/WALSALL,30/06/2019,ECONOMY & ENVIRONMENT,TRAINLINE,02/04/2019,H59620190404UCLOWGXJY-1,121.5,TRADING STANDARDS-OFFICERS & STAFF PUBLIC TRANSP,PASSENGER RAILWAYS,GPC
WALSALL COUNCIL,HTTP://OPENDATACOMMUNITIES.ORG/ID/METROPOLITAN-DISTRICT-COUNCIL/WALSALL,30/06/2019,ECONOMY & ENVIRONMENT,BUXTONS LIMITED,02/04/2019,H59620190404UGUNQKPIS-1,42,COUNTRYSIDE MANAGEMENT - OTHER-CLOTHING & LAUNDRY,FLORIST SUPPLIES AND NURSERY STOCK,GPC
WALSALL COUNCIL,HTTP://OPENDATACOMMUNITIES.ORG/ID/METROPOLITAN-DISTRICT-COUNCIL/WALSALL,30/06/2019,RESOURCES & TRANSFORMATION,ARTHUR BRETT CATER,02/04/2019,H59620190404UHLYGBSJJ-1,72.66,CA LEIGHSWOOD PRIMARY SCHOOL-DRY FOODS-PROVISIONS,MISCELLANEOUS FOOD STORES & CONVENIENCE STORES,GPC
WALSALL COUNCIL,HTTP://OPENDATACOMMUNITIES.ORG/ID/METROPOLITAN-DISTRICT-COUNCIL/WALSALL,30/06/2019,RESOURCES & TRANSFORMATION,ARTHUR BRETT CATER,02/04/2019,H59620190404UJNXUMQRL-1,67.55,CA ST GILES C.E. PRIMARY SCHOO-FRUIT & VEGETABLES OTHER-PROVI,MISCELLANEOUS FOOD STORES & CONVENIENCE STORES,GPC
WALSALL COUNCIL,HTTP://OPENDATACOMMUNITIES.ORG/ID/METROPOLITAN-DISTRICT-COUNCIL/WALSALL,30/06/2019,ECONOMY & ENVIRONMENT,THE BOOK PEOPLE,02/04/2019,H59620190404UTEQYEXVI-1,13.23,NAG - FAMILY GALLERY-LIBRARY BOOKS,BOOK STORES,GPC
WALSALL COUNCIL,HTTP://OPENDATACOMMUNITIES.ORG/ID/METROPOLITAN-DISTRICT-COUNCIL/WALSALL,30/06/2019,ECONOMY & ENVIRONMENT,TAYLORS NEWS - 16046,02/04/2019,H59620190404UVGVCNYEH-1,19.9,STREETLY LIBRARY-NEWSPAPERS/PERIODICALS/MAGAZIN,GROCERY STORES AND SUPERMARKETS,GPC
WALSALL COUNCIL,HTTP://OPENDATACOMMUNITIES.ORG/ID/METROPOLITAN-DISTRICT-COUNCIL/WALSALL,30/06/2019,RESOURCES & TRANSFORMATION,ARTHUR BRETT CATER,02/04/2019,H59620190404VLHDIIAGQ-1,70.57,CA ELMORE GREEN PRIMARY SCHOOL-FRUIT & VEGETABLES OTHER-PROVI,MISCELLANEOUS FOOD STORES & CONVENIENCE STORES,GPC
WALSALL COUNCIL,HTTP://OPENDATACOMMUNITIES.ORG/ID/METROPOLITAN-DISTRICT-COUNCIL/WALSALL,30/06/2019,RESOURCES & TRANSFORMATION,ARTHUR BRETT CATER,02/04/2019,H59620190404VOVHYRUQT-1,170.79,CA MEADOW VIEW JMI PRIMARY SCH-FRUIT & VEGETABLES OTHER-PROVI,MISCELLANEOUS FOOD STORES & CONVENIENCE STORES,GPC
WALSALL COUNCIL,HTTP://OPENDATACOMMUNITIES.ORG/ID/METROPOLITAN-DISTRICT-COUNCIL/WALSALL,30/06/2019,ECONOMY & ENVIRONMENT,WWW.THEWORKS.CO.UK,02/04/2019,H59620190404VVGDLWPEL-1,10,NAG - FAMILY GALLERY-LIBRARY BOOKS,DISCOUNT STORES,GPC
WALSALL COUNCIL,HTTP://OPENDATACOMMUNITIES.ORG/ID/METROPOLITAN-DISTRICT-COUNCIL/WALSALL,30/06/2019,CHILDRENS SERVICES (SCHOOLS),WM MORRISONS STORE,02/04/2019,H59620190404WBBVQGJDJ-1,5.17,CHUCKERY PRIMARY-BREAD-GENERAL-PROVISIONS,GROCERY STORES AND SUPERMARKETS,GPC
WALSALL COUNCIL,HTTP://OPENDATACOMMUNITIES.ORG/ID/METROPOLITAN-DISTRICT-COUNCIL/WALSALL,30/06/2019,CHILDRENS SERVICES (SCHOOLS),WM MORRISONS STORE,02/04/2019,H59620190404WBBVQGJDJ-2,0.1,CHUCKERY PRIMARY-BREAD-GENERAL-PROVISIONS,GROCERY STORES AND SUPERMARKETS,GPC
WALSALL COUNCIL,HTTP://OPENDATACOMMUNITIES.ORG/ID/METROPOLITAN-DISTRICT-COUNCIL/WALSALL,30/06/2019,CHILDRENS SERVICES (SCHOOLS),AMZN MKTP UK*MZ7S06JE4,02/04/2019,H59620190404WRFEZIIOX-1,6.75,CHUCKERY PRIMARY-OPERATIONAL MAINTENANCE,BOOK STORES,GPC
WALSALL COUNCIL,HTTP://OPENDATACOMMUNITIES.ORG/ID/METROPOLITAN-DISTRICT-COUNCIL/WALSALL,30/06/2019,RESOURCES & TRANSFORMATION,ARTHUR BRETT CATER,02/04/2019,H59620190404WUYYHLRPW-1,97.95,CA WATLING STREET PRIMARY SCHO-FRUIT & VEGETABLES OTHER-PROVI,MISCELLANEOUS FOOD STORES & CONVENIENCE STORES,GPC
WALSALL COUNCIL,HTTP://OPENDATACOMMUNITIES.ORG/ID/METROPOLITAN-DISTRICT-COUNCIL/WALSALL,30/06/2019,CHILDRENS SERVICES,VIRGIN TRAINS,02/04/2019,H59620190404YICKDMJBR-1,56,"43A HILTON ROAD, WILLENHALL-RESIDENTS PERSONAL EXPENSES-AL",PASSENGER RAILWAYS,GPC
WALSALL COUNCIL,HTTP://OPENDATACOMMUNITIES.ORG/ID/METROPOLITAN-DISTRICT-COUNCIL/WALSALL,30/06/2019,RESOURCES & TRANSFORMATION,PRIMARK 690,02/04/2019,H59620190405AMODLESKC-1,49,ACCOMMODATION SERVICES MANAGEM-CLOTHING & LAUNDRY,CLOTHING STORES,GPC
WALSALL COUNCIL,HTTP://OPENDATACOMMUNITIES.ORG/ID/METROPOLITAN-DISTRICT-COUNCIL/WALSALL,30/06/2019,SOCIAL CARE & INCLUSION,AMAZON.CO.UK*MZ3UI3TO4 AM,02/04/2019,H59620190405GKNOHSSDG-1,22.59,BLUE BADGES-STATIONERY & GENERAL OFFICE SU,MISCELLANEOUS AND SPECIALTY RETAIL STORES,GPC
WALSALL COUNCIL,HTTP://OPENDATACOMMUNITIES.ORG/ID/METROPOLITAN-DISTRICT-COUNCIL/WALSALL,30/06/2019,RESOURCES & TRANSFORMATION,PRIMARK 690,02/04/2019,H59620190405NTKTIDMFR-1,35,YOUNG PERSONS HOMELESS SERVICE-CLOTHING & LAUNDRY,CLOTHING STORES,GPC
WALSALL COUNCIL,HTTP://OPENDATACOMMUNITIES.ORG/ID/METROPOLITAN-DISTRICT-COUNCIL/WALSALL,30/06/2019,RESOURCES & TRANSFORMATION,ARTHUR BRETT CATER,02/04/2019,H59620190412WCJMHKIPM-1,-6.45,CA BARCROFT D/C-FRUIT & VEGETABLES OTHER-PROVI,MISCELLANEOUS FOOD STORES & CONVENIENCE STORES,GPC
WALSALL COUNCIL,HTTP://OPENDATACOMMUNITIES.ORG/ID/METROPOLITAN-DISTRICT-COUNCIL/WALSALL,30/06/2019,RESOURCES & TRANSFORMATION,ARTHUR BRETT CATER,02/04/2019,H59620190419FCRYZLTLC-1,-5.85,CA COOPER JORDAN CE PRIMARY SC-FRUIT & VEGETABLES OTHER-PROVI,MISCELLANEOUS FOOD STORES & CONVENIENCE STORES,GPC
WALSALL COUNCIL,HTTP://OPENDATACOMMUNITIES.ORG/ID/METROPOLITAN-DISTRICT-COUNCIL/WALSALL,30/06/2019,RESOURCES & TRANSFORMATION,BLAKEMORE FOODSERVICE,03/04/2019,H59620190405AHHKOLMIT-1,351.07,CA LINDENS PRIMARY SCHOOL-FROZEN FOODS-PROVISIONS,CATERERS,GPC
WALSALL COUNCIL,HTTP://OPENDATACOMMUNITIES.ORG/ID/METROPOLITAN-DISTRICT-COUNCIL/WALSALL,30/06/2019,CHILDRENS SERVICES,TRAINLINE,03/04/2019,H59620190405ALRQBFTDP-1,282.78,SAFEGUARDING & FAMILY SUPPORT-OFFICERS & STAFF PUBLIC TRANSP,PASSENGER RAILWAYS,GPC
WALSALL COUNCIL,HTTP://OPENDATACOMMUNITIES.ORG/ID/METROPOLITAN-DISTRICT-COUNCIL/WALSALL,30/06/2019,RESOURCES & TRANSFORMATION,BLAKEMORE FOODSERVICE,03/04/2019,H59620190405APTSCXXTD-1,315.5,CA ELMORE GREEN PRIMARY SCHOOL-FROZEN FOODS-PROVISIONS,CATERERS,GPC
WALSALL COUNCIL,HTTP://OPENDATACOMMUNITIES.ORG/ID/METROPOLITAN-DISTRICT-COUNCIL/WALSALL,30/06/2019,RESOURCES & TRANSFORMATION,TESCO STORES 6161,03/04/2019,H59620190405BBRCEIBMX-1,13.27,WALSALL CRISIS SUPPORT SCHEME-FOOD & DRINK SUPPLIES,GROCERY STORES AND SUPERMARKETS,GPC
WALSALL COUNCIL,HTTP://OPENDATACOMMUNITIES.ORG/ID/METROPOLITAN-DISTRICT-COUNCIL/WALSALL,30/06/2019,RESOURCES & TRANSFORMATION,TESCO STORES 6161,03/04/2019,H59620190405BBRCEIBMX-2,1.79,WALSALL CRISIS SUPPORT SCHEME-FOOD & DRINK SUPPLIES,GROCERY STORES AND SUPERMARKETS,GPC
WALSALL COUNCIL,HTTP://OPENDATACOMMUNITIES.ORG/ID/METROPOLITAN-DISTRICT-COUNCIL/WALSALL,30/06/2019,CHILDRENS SERVICES,AMZN MKTP UK*MZ1GU4AL4,03/04/2019,H59620190405BCCUJAGJM-1,11.72,GENERAL RESOURCES-MATERIALS,BOOK STORES,GPC
WALSALL COUNCIL,HTTP://OPENDATACOMMUNITIES.ORG/ID/METROPOLITAN-DISTRICT-COUNCIL/WALSALL,30/06/2019,CHILDRENS SERVICES,WALSALL STN T/O,03/04/2019,H59620190405BENRDXYDO-1,158,LOOKED AFTER CHILDRENS SOCIAL -OFFICERS & STAFF PUBLIC TRANSP,PASSENGER RAILWAYS,GPC
WALSALL COUNCIL,HTTP://OPENDATACOMMUNITIES.ORG/ID/METROPOLITAN-DISTRICT-COUNCIL/WALSALL,30/06/2019,RESOURCES & TRANSFORMATION,BLAKEMORE FOODSERVICE,03/04/2019,H59620190405BOYOOCLDH-1,17.97,CA BARCROFT D/C-DRY FOODS-PROVISIONS,CATERERS,GPC
WALSALL COUNCIL,HTTP://OPENDATACOMMUNITIES.ORG/ID/METROPOLITAN-DISTRICT-COUNCIL/WALSALL,30/06/2019,CHILDRENS SERVICES,BEVERLEY HOTEL LTD - T,03/04/2019,H59620190405CJAXGTUEH-1,25,DIRECTLY COMMISSIONED NURSING -OTHER TRAVEL ALLOWANCES,"HOTELS, MOTELS, RESORTS",GPC
WALSALL COUNCIL,HTTP://OPENDATACOMMUNITIES.ORG/ID/METROPOLITAN-DISTRICT-COUNCIL/WALSALL,30/06/2019,CHILDRENS SERVICES,ASDA SUPERSTORE,03/04/2019,H59620190405CNRHRWQSW-1,3.78,LOCALITY FAMILY SUPPORT-NORTH-FOOD AND BEVERAGES-PROVISIONS,GROCERY STORES AND SUPERMARKETS,GPC
WALSALL COUNCIL,HTTP://OPENDATACOMMUNITIES.ORG/ID/METROPOLITAN-DISTRICT-COUNCIL/WALSALL,30/06/2019,CHILDRENS SERVICES,ASDA SUPERSTORE,03/04/2019,H59620190405CNRHRWQSW-2,1,LOCALITY FAMILY SUPPORT-NORTH-FOOD AND BEVERAGES-PROVISIONS,GROCERY STORES AND SUPERMARKETS,GPC
WALSALL COUNCIL,HTTP://OPENDATACOMMUNITIES.ORG/ID/METROPOLITAN-DISTRICT-COUNCIL/WALSALL,30/06/2019,CHILDRENS SERVICES (SCHOOLS),AMZN MKTP UK*MZ1F06AX4,03/04/2019,H59620190405CSYBUFODD-1,13.5,ADMINISTRATIVE SUPPLIES-STATIONERY & GENERAL OFFICE SU,BOOK STORES,GPC
WALSALL COUNCIL,HTTP://OPENDATACOMMUNITIES.ORG/ID/METROPOLITAN-DISTRICT-COUNCIL/WALSALL,30/06/2019,RESOURCES & TRANSFORMATION,BLAKEMORE FOODSERVICE,03/04/2019,H59620190405CZWUPPQJX-1,2.42,CA BARCROFT D/C-DRY FOODS-PROVISIONS,CATERERS,GPC
WALSALL COUNCIL,HTTP://OPENDATACOMMUNITIES.ORG/ID/METROPOLITAN-DISTRICT-COUNCIL/WALSALL,30/06/2019,RESOURCES & TRANSFORMATION,ARTHUR BRETT CATER,03/04/2019,H59620190405DGYGKZUED-1,52.94,CA WALSALL WOOD PRIMARY SCHOOL-FRUIT & VEGETABLES OTHER-PROVI,MISCELLANEOUS FOOD STORES & CONVENIENCE STORES,GPC
WALSALL COUNCIL,HTTP://OPENDATACOMMUNITIES.ORG/ID/METROPOLITAN-DISTRICT-COUNCIL/WALSALL,30/06/2019,RESOURCES & TRANSFORMATION,BLAKEMORE FOODSERVICE,03/04/2019,H59620190405DLBUBSFUN-1,451.62,CA MEADOW VIEW JMI PRIMARY SCH-FROZEN FOODS-PROVISIONS,CATERERS,GPC
WALSALL COUNCIL,HTTP://OPENDATACOMMUNITIES.ORG/ID/METROPOLITAN-DISTRICT-COUNCIL/WALSALL,30/06/2019,RESOURCES & TRANSFORMATION,BLAKEMORE FOODSERVICE,03/04/2019,H59620190405ELXVMENJG-1,4.84,CA BEACON PRIMARY SCHOOL-DRY FOODS-PROVISIONS,CATERERS,GPC
WALSALL COUNCIL,HTTP://OPENDATACOMMUNITIES.ORG/ID/METROPOLITAN-DISTRICT-COUNCIL/WALSALL,30/06/2019,RESOURCES & TRANSFORMATION,WP ENGINE,03/04/2019,H59620190405EWSFMVJOF-1,265.28,APPLICATIONS-RECHARGE FOR MAINTENANCE/APPLI,"COMPUTER PROGRAM, SYSTEM DESIGN",GPC
WALSALL COUNCIL,HTTP://OPENDATACOMMUNITIES.ORG/ID/METROPOLITAN-DISTRICT-COUNCIL/WALSALL,30/06/2019,CHILDRENS SERVICES,WWW.ARGOS.CO.UK,03/04/2019,H59620190405FNZYFNPES-1,34.43,57 LICHFIELD ROAD-RESIDENTS PERSONAL EXPENSES-AL,DISCOUNT STORES,GPC
WALSALL COUNCIL,HTTP://OPENDATACOMMUNITIES.ORG/ID/METROPOLITAN-DISTRICT-COUNCIL/WALSALL,30/06/2019,RESOURCES & TRANSFORMATION,BLAKEMORE FOODSERVICE,03/04/2019,H59620190405FQTQDOORS-1,125.75,CA OLD HALL SPECIAL SCHOOL-DRY FOODS-PROVISIONS,CATERERS,GPC
WALSALL COUNCIL,HTTP://OPENDATACOMMUNITIES.ORG/ID/METROPOLITAN-DISTRICT-COUNCIL/WALSALL,30/06/2019,CHILDRENS SERVICES,WWW.ICELAND.CO.UK,03/04/2019,H59620190405FSJCVOKUJ-1,35.13,57 LICHFIELD ROAD-FOOD AND BEVERAGES-PROVISIONS,GROCERY STORES AND SUPERMARKETS,GPC
WALSALL COUNCIL,HTTP://OPENDATACOMMUNITIES.ORG/ID/METROPOLITAN-DISTRICT-COUNCIL/WALSALL,30/06/2019,CHILDRENS SERVICES,AMAZON.CO.UK*MZ16L1A24 AM,03/04/2019,H59620190405FWHFIMRQF-1,28.98,EDUCATIONAL PSYCHOLOGISTS-MISCELLANEOUS SUPPLIES,MISCELLANEOUS AND SPECIALTY RETAIL STORES,GPC
WALSALL COUNCIL,HTTP://OPENDATACOMMUNITIES.ORG/ID/METROPOLITAN-DISTRICT-COUNCIL/WALSALL,30/06/2019,RESOURCES & TRANSFORMATION,BLAKEMORE FOODSERVICE,03/04/2019,H59620190405FWKNSLFTH-1,560.97,CA BUSILL JONES PRIMARY SCHOOL-DRY FOODS-PROVISIONS,CATERERS,GPC
WALSALL COUNCIL,HTTP://OPENDATACOMMUNITIES.ORG/ID/METROPOLITAN-DISTRICT-COUNCIL/WALSALL,30/06/2019,RESOURCES & TRANSFORMATION,BLAKEMORE FOODSERVICE,03/04/2019,H59620190405FWKNSLFTH-2,51.84,CA BUSILL JONES PRIMARY SCHOOL-DRY FOODS-PROVISIONS,CATERERS,GPC
WALSALL COUNCIL,HTTP://OPENDATACOMMUNITIES.ORG/ID/METROPOLITAN-DISTRICT-COUNCIL/WALSALL,30/06/2019,CHILDRENS SERVICES,AMAZON.CO.UK*MZ7F86TC4,03/04/2019,H59620190405FYPMIBFWH-1,13.74,ST JOHNS C.E. PRIMARY SCHOOL-OPERATIONAL MAINTENANCE,OTHER DIRECT MARKETING-OTHER DIRECT MARKETERS,GPC
WALSALL COUNCIL,HTTP://OPENDATACOMMUNITIES.ORG/ID/METROPOLITAN-DISTRICT-COUNCIL/WALSALL,30/06/2019,RESOURCES & TRANSFORMATION,TRAVEL WEST MIDLAN,03/04/2019,H59620190405GBUNBUOHC-1,5,WALSALL CRISIS SUPPORT SCHEME-OTHER TRAVEL ALLOWANCES,BUS LINES,GPC
WALSALL COUNCIL,HTTP://OPENDATACOMMUNITIES.ORG/ID/METROPOLITAN-DISTRICT-COUNCIL/WALSALL,30/06/2019,CHILDRENS SERVICES,POUNDLAND,03/04/2019,H59620190405GXCWTKOYL-1,4,REDRUTH ROAD-NEW-FURNITURE & EQUIPMENT,DISCOUNT STORES,GPC
WALSALL COUNCIL,HTTP://OPENDATACOMMUNITIES.ORG/ID/METROPOLITAN-DISTRICT-COUNCIL/WALSALL,30/06/2019,RESOURCES & TRANSFORMATION,BLAKEMORE FOODSERVICE,03/04/2019,H59620190405GXKDDQBXP-1,30.27,CA BEACON PRIMARY SCHOOL-DRY FOODS-PROVISIONS,CATERERS,GPC
WALSALL COUNCIL,HTTP://OPENDATACOMMUNITIES.ORG/ID/METROPOLITAN-DISTRICT-COUNCIL/WALSALL,30/06/2019,ECONOMY & ENVIRONMENT,WWW.BLOCHOTELS.COM,03/04/2019,H59620190405HBEEGPYYM-1,90.3,NAG - TEMPORARY EXHIBITIONS-OTHER EXPENSES,"HOTELS, MOTELS, RESORTS",GPC
WALSALL COUNCIL,HTTP://OPENDATACOMMUNITIES.ORG/ID/METROPOLITAN-DISTRICT-COUNCIL/WALSALL,30/06/2019,CHILDRENS SERVICES,BCC REGISTER OFFIC,03/04/2019,H59620190405HOOUGLFXN-1,24.5,SAFEGUARDING & FAMILY SUPPORT-FEES & LICENCES,GOVERNMENT SERVICES,GPC
WALSALL COUNCIL,HTTP://OPENDATACOMMUNITIES.ORG/ID/METROPOLITAN-DISTRICT-COUNCIL/WALSALL,30/06/2019,CHILDRENS SERVICES,REGISTRATION SERVICES,03/04/2019,H59620190405HXRPQHCQR-1,44,SAFEGUARDING & FAMILY SUPPORT-OTHER EMPLOYEES FEES & EXPENSE,OTHER RECREATION SERVICES,GPC
WALSALL COUNCIL,HTTP://OPENDATACOMMUNITIES.ORG/ID/METROPOLITAN-DISTRICT-COUNCIL/WALSALL,30/06/2019,RESOURCES & TRANSFORMATION,BLAKEMORE FOODSERVICE,03/04/2019,H59620190405IAZHOMPWQ-1,107.23,CA CASTLEFORT JMI SCHOOL-DRY FOODS-PROVISIONS,CATERERS,GPC
WALSALL COUNCIL,HTTP://OPENDATACOMMUNITIES.ORG/ID/METROPOLITAN-DISTRICT-COUNCIL/WALSALL,30/06/2019,RESOURCES & TRANSFORMATION,BLAKEMORE FOODSERVICE,03/04/2019,H59620190405IPGBXQLKU-1,227.38,CA RADLEYS PRIMARY SCHOOL-FROZEN FOODS-PROVISIONS,CATERERS,GPC
WALSALL COUNCIL,HTTP://OPENDATACOMMUNITIES.ORG/ID/METROPOLITAN-DISTRICT-COUNCIL/WALSALL,30/06/2019,RESOURCES & TRANSFORMATION,BLAKEMORE FOODSERVICE,03/04/2019,H59620190405IQKDIUHCE-1,8.33,CA ST JOHNS C.E. PRIMARY SCHOO-FROZEN FOODS-PROVISIONS,CATERERS,GPC
WALSALL COUNCIL,HTTP://OPENDATACOMMUNITIES.ORG/ID/METROPOLITAN-DISTRICT-COUNCIL/WALSALL,30/06/2019,RESOURCES & TRANSFORMATION,BLAKEMORE FOODSERVICE,03/04/2019,H59620190405IQKDIUHCE-2,160.66,CA ST JOHNS C.E. PRIMARY SCHOO-FROZEN FOODS-PROVISIONS,CATERERS,GPC
WALSALL COUNCIL,HTTP://OPENDATACOMMUNITIES.ORG/ID/METROPOLITAN-DISTRICT-COUNCIL/WALSALL,30/06/2019,CHILDRENS SERVICES,IKEA LTD 142 BIRMINGHAM E,03/04/2019,H59620190405JDJKVTHYE-1,30,BIRCHILLS CHILDCARE SERVICES-MISCELLANEOUS SUPPLIES,"EQUIPMENT, FURNITURE, AND HOME FURNISHINGS STORES ",GPC
WALSALL COUNCIL,HTTP://OPENDATACOMMUNITIES.ORG/ID/METROPOLITAN-DISTRICT-COUNCIL/WALSALL,30/06/2019,ECONOMY & ENVIRONMENT,MIDLANDNEWS.COM,03/04/2019,H59620190405JFMRODEUH-1,208.2,DEVELOPMENT MANAGEMENT-PERIODICALS/MAGAZINES/NEWSPAPE,NEWS DEALERS AND NEWSSTANDS,GPC
WALSALL COUNCIL,HTTP://OPENDATACOMMUNITIES.ORG/ID/METROPOLITAN-DISTRICT-COUNCIL/WALSALL,30/06/2019,ECONOMY & ENVIRONMENT,AMZN MKTP UK*MZ8JR8A64 AM,03/04/2019,H59620190405JUPKQMOFD-1,1.45,CENTRALISED STATIONARY-STATIONERY & GENERAL OFFICE SU,BOOK STORES,GPC
WALSALL COUNCIL,HTTP://OPENDATACOMMUNITIES.ORG/ID/METROPOLITAN-DISTRICT-COUNCIL/WALSALL,30/06/2019,CHILDRENS SERVICES,TESCO STORES 6161,03/04/2019,H59620190405KTDNRSJMO-1,87,TRANSITION AND LEAVING CARE PL-MISCELLANEOUS SUPPLIES,GROCERY STORES AND SUPERMARKETS,GPC
WALSALL COUNCIL,HTTP://OPENDATACOMMUNITIES.ORG/ID/METROPOLITAN-DISTRICT-COUNCIL/WALSALL,30/06/2019,RESOURCES & TRANSFORMATION,BLAKEMORE FOODSERVICE,03/04/2019,H59620190405KUJQGGUZU-1,270.3,CA WATLING STREET PRIMARY SCHO-FROZEN FOODS-PROVISIONS,CATERERS,GPC
WALSALL COUNCIL,HTTP://OPENDATACOMMUNITIES.ORG/ID/METROPOLITAN-DISTRICT-COUNCIL/WALSALL,30/06/2019,RESOURCES & TRANSFORMATION,THE NEW BRIDGE GUEST HOUS,03/04/2019,H59620190405LEWYMBGXD-1,70,BED & BREAKFAST PAYMENTS-HOTEL ACCOMMODATION-EMPLOYEES,"HOTELS, MOTELS, RESORTS",GPC
WALSALL COUNCIL,HTTP://OPENDATACOMMUNITIES.ORG/ID/METROPOLITAN-DISTRICT-COUNCIL/WALSALL,30/06/2019,CHILDRENS SERVICES (SCHOOLS),AMZN MKTP UK*MZ31T9AR4,03/04/2019,H59620190405LMHCOIHMV-1,51.08,CHUCKERY PRIMARY-OPERATIONAL MAINTENANCE,BOOK STORES,GPC
WALSALL COUNCIL,HTTP://OPENDATACOMMUNITIES.ORG/ID/METROPOLITAN-DISTRICT-COUNCIL/WALSALL,30/06/2019,RESOURCES & TRANSFORMATION,BLAKEMORE FOODSERVICE,03/04/2019,H59620190405LPGMSELFD-1,2.42,CA OLD HALL SPECIAL SCHOOL-DRY FOODS-PROVISIONS,CATERERS,GPC
WALSALL COUNCIL,HTTP://OPENDATACOMMUNITIES.ORG/ID/METROPOLITAN-DISTRICT-COUNCIL/WALSALL,30/06/2019,ECONOMY & ENVIRONMENT,VIRGIN TRAINS,03/04/2019,H59620190405LRAHJOFNT-1,252.35,HEALTH & WELLBEING/CHILDREN-OFFICERS & STAFF PUBLIC TRANSP,PASSENGER RAILWAYS,GPC
WALSALL COUNCIL,HTTP://OPENDATACOMMUNITIES.ORG/ID/METROPOLITAN-DISTRICT-COUNCIL/WALSALL,30/06/2019,RESOURCES & TRANSFORMATION,BLAKEMORE FOODSERVICE,03/04/2019,H59620190405MECIULYXK-1,223.02,CA COOPER JORDAN CE PRIMARY SC-FROZEN FOODS-PROVISIONS,CATERERS,GPC
WALSALL COUNCIL,HTTP://OPENDATACOMMUNITIES.ORG/ID/METROPOLITAN-DISTRICT-COUNCIL/WALSALL,30/06/2019,CHILDRENS SERVICES,BEVERLEY HOTEL LTD - T,03/04/2019,H59620190405MKWHXIIVM-1,100,DIRECTLY COMMISSIONED NURSING -OTHER TRAVEL ALLOWANCES,"HOTELS, MOTELS, RESORTS",GPC
WALSALL COUNCIL,HTTP://OPENDATACOMMUNITIES.ORG/ID/METROPOLITAN-DISTRICT-COUNCIL/WALSALL,30/06/2019,RESOURCES & TRANSFORMATION,BLAKEMORE FOODSERVICE,03/04/2019,H59620190405NWCUQBQVN-1,4.84,CA BUSILL JONES PRIMARY SCHOOL-DRY FOODS-PROVISIONS,CATERERS,GPC
WALSALL COUNCIL,HTTP://OPENDATACOMMUNITIES.ORG/ID/METROPOLITAN-DISTRICT-COUNCIL/WALSALL,30/06/2019,RESOURCES & TRANSFORMATION,BLAKEMORE FOODSERVICE,03/04/2019,H59620190405NXBMJVQMN-1,245.38,CA ELMORE GREEN PRIMARY SCHOOL-DRY FOODS-PROVISIONS,CATERERS,GPC
WALSALL COUNCIL,HTTP://OPENDATACOMMUNITIES.ORG/ID/METROPOLITAN-DISTRICT-COUNCIL/WALSALL,30/06/2019,RESOURCES & TRANSFORMATION,BLAKEMORE FOODSERVICE,03/04/2019,H59620190405NXBMJVQMN-2,103.68,CA ELMORE GREEN PRIMARY SCHOOL-DRY FOODS-PROVISIONS,CATERERS,GPC
WALSALL COUNCIL,HTTP://OPENDATACOMMUNITIES.ORG/ID/METROPOLITAN-DISTRICT-COUNCIL/WALSALL,30/06/2019,CHILDRENS SERVICES,IKEA LTD 142 BIRMINGHAM M,03/04/2019,H59620190405NYEBPMTIC-1,84.25,TRANSITION AND LEAVING CARE PL-PURCHASE OF FURNITURE & EQUIPM,"EQUIPMENT, FURNITURE, AND HOME FURNISHINGS STORES ",GPC
WALSALL COUNCIL,HTTP://OPENDATACOMMUNITIES.ORG/ID/METROPOLITAN-DISTRICT-COUNCIL/WALSALL,30/06/2019,CHILDRENS SERVICES,MDE SPORTS UK LTD,03/04/2019,H59620190405OSXENVJYC-1,495.2,VIRTUAL SCHOOL - CENTRAL PUPIL-MISCELLANEOUS SUPPLIES,SPORTING GOODS STORES,GPC
WALSALL COUNCIL,HTTP://OPENDATACOMMUNITIES.ORG/ID/METROPOLITAN-DISTRICT-COUNCIL/WALSALL,30/06/2019,RESOURCES & TRANSFORMATION,BLAKEMORE FOODSERVICE,03/04/2019,H59620190405OURRSJFFY-1,16.02,CA ST MICHAELS C.E. PRIMARY SC-FROZEN FOODS-PROVISIONS,CATERERS,GPC
WALSALL COUNCIL,HTTP://OPENDATACOMMUNITIES.ORG/ID/METROPOLITAN-DISTRICT-COUNCIL/WALSALL,30/06/2019,RESOURCES & TRANSFORMATION,BLAKEMORE FOODSERVICE,03/04/2019,H59620190405OURRSJFFY-2,256.69,CA ST MICHAELS C.E. PRIMARY SC-FROZEN FOODS-PROVISIONS,CATERERS,GPC
WALSALL COUNCIL,HTTP://OPENDATACOMMUNITIES.ORG/ID/METROPOLITAN-DISTRICT-COUNCIL/WALSALL,30/06/2019,RESOURCES & TRANSFORMATION,BLAKEMORE FOODSERVICE,03/04/2019,H59620190405PDLPMIROE-1,48.81,CA CROFT COMMUNITY PRIMARY SCH-DRY FOODS-PROVISIONS,CATERERS,GPC
WALSALL COUNCIL,HTTP://OPENDATACOMMUNITIES.ORG/ID/METROPOLITAN-DISTRICT-COUNCIL/WALSALL,30/06/2019,RESOURCES & TRANSFORMATION,BLAKEMORE FOODSERVICE,03/04/2019,H59620190405PFEPYRZKU-1,74.29,CA OAKWOOD SPECIAL SCHOOL-FROZEN FOODS-PROVISIONS,CATERERS,GPC
WALSALL COUNCIL,HTTP://OPENDATACOMMUNITIES.ORG/ID/METROPOLITAN-DISTRICT-COUNCIL/WALSALL,30/06/2019,CHILDRENS SERVICES,WWW.ARGOS.CO.UK,03/04/2019,H59620190405POPFWJUAR-1,95.93,TRANSITION AND LEAVING CARE PL-NEW-FURNITURE & EQUIPMENT,DISCOUNT STORES,GPC
WALSALL COUNCIL,HTTP://OPENDATACOMMUNITIES.ORG/ID/METROPOLITAN-DISTRICT-COUNCIL/WALSALL,30/06/2019,ECONOMY & ENVIRONMENT,BOC GASES,03/04/2019,H59620190405PQCOIYMSS-1,10.08,WALSALL TOWN HALL-CHEMICALS & SCIENTIFIC MATERIA,OTHER CHEMICALS AND ALLIED PRODUCTS,GPC
WALSALL COUNCIL,HTTP://OPENDATACOMMUNITIES.ORG/ID/METROPOLITAN-DISTRICT-COUNCIL/WALSALL,30/06/2019,CHILDRENS SERVICES,W M MORRISONS.COM,03/04/2019,H59620190405QJANLHHHV-1,59,GENERAL MANAGEMENT SUPPORT (IN-FOOD AND BEVERAGES-PROVISIONS,GROCERY STORES AND SUPERMARKETS,GPC
WALSALL COUNCIL,HTTP://OPENDATACOMMUNITIES.ORG/ID/METROPOLITAN-DISTRICT-COUNCIL/WALSALL,30/06/2019,CHILDRENS SERVICES,ARGOS RETAIL GROUP,03/04/2019,H59620190405RCWHHLAMN-1,4,TRANSITION AND LEAVING CARE PL-PURCHASE OF FURNITURE & EQUIPM,DISCOUNT STORES,GPC
WALSALL COUNCIL,HTTP://OPENDATACOMMUNITIES.ORG/ID/METROPOLITAN-DISTRICT-COUNCIL/WALSALL,30/06/2019,CHILDRENS SERVICES,MILESTONE,03/04/2019,H59620190405RFEVXEKBI-1,7.3,"43A HILTON ROAD, WILLENHALL-RESIDENTS PERSONAL EXPENSES-AL","BARS, COCKTAIL LOUNGES, DISCOTHEQUES, NIGHTCLUBS",GPC
WALSALL COUNCIL,HTTP://OPENDATACOMMUNITIES.ORG/ID/METROPOLITAN-DISTRICT-COUNCIL/WALSALL,30/06/2019,CHILDRENS SERVICES,HM PASSPORT OFFICE,03/04/2019,H59620190405RITORXSDX-1,58.5,LOOKED AFTER CHILDRENS SOCIAL -OTHER EMPLOYEES FEES & EXPENSE,GOVERNMENT SERVICES,GPC
WALSALL COUNCIL,HTTP://OPENDATACOMMUNITIES.ORG/ID/METROPOLITAN-DISTRICT-COUNCIL/WALSALL,30/06/2019,RESOURCES & TRANSFORMATION,BLAKEMORE FOODSERVICE,03/04/2019,H59620190405RSURWTPQV-1,365.74,CA BROWNHILLS WEST PRIMARY SCH-FROZEN FOODS-PROVISIONS,CATERERS,GPC
WALSALL COUNCIL,HTTP://OPENDATACOMMUNITIES.ORG/ID/METROPOLITAN-DISTRICT-COUNCIL/WALSALL,30/06/2019,RESOURCES & TRANSFORMATION,BLAKEMORE FOODSERVICE,03/04/2019,H59620190405SILQPTHOJ-1,131.7,CA OLD HALL SPECIAL SCHOOL-FROZEN FOODS-PROVISIONS,CATERERS,GPC
WALSALL COUNCIL,HTTP://OPENDATACOMMUNITIES.ORG/ID/METROPOLITAN-DISTRICT-COUNCIL/WALSALL,30/06/2019,CHILDRENS SERVICES,ASDA SUPERSTORE,03/04/2019,H59620190405SJFLKCWLQ-1,4,MARY ELLIOTT SCHOOL-FOOD & DRINK SUPPLIES,GROCERY STORES AND SUPERMARKETS,GPC
WALSALL COUNCIL,HTTP://OPENDATACOMMUNITIES.ORG/ID/METROPOLITAN-DISTRICT-COUNCIL/WALSALL,30/06/2019,ECONOMY & ENVIRONMENT,PAYPAL *CARSPARESDI,03/04/2019,H59620190405SMCWZLCWF-1,22.58,FLEET-MATERIALS,"AUTOMOTIVE PARTS, ACCESSORIES STORES",GPC
WALSALL COUNCIL,HTTP://OPENDATACOMMUNITIES.ORG/ID/METROPOLITAN-DISTRICT-COUNCIL/WALSALL,30/06/2019,ECONOMY & ENVIRONMENT,TESCO PFS 4188,03/04/2019,H59620190405SZZFNCOYH-1,1.09,LEATHER MUSEUM-FUEL FOR VEHICLES,SERVICE STATIONS,GPC
WALSALL COUNCIL,HTTP://OPENDATACOMMUNITIES.ORG/ID/METROPOLITAN-DISTRICT-COUNCIL/WALSALL,30/06/2019,CHILDRENS SERVICES,HM PASSPORT OFFICE,03/04/2019,H59620190405TBRGLCBLI-1,58.5,LOOKED AFTER CHILDRENS SOCIAL -OTHER EMPLOYEES FEES & EXPENSE,GOVERNMENT SERVICES,GPC
WALSALL COUNCIL,HTTP://OPENDATACOMMUNITIES.ORG/ID/METROPOLITAN-DISTRICT-COUNCIL/WALSALL,30/06/2019,RESOURCES & TRANSFORMATION,ARTHUR BRETT CATER,03/04/2019,H59620190405THGXESNHB-1,5.47,CA ST BERNADETTES CATHOLIC PRI-FROZEN FOODS-PROVISIONS,MISCELLANEOUS FOOD STORES & CONVENIENCE STORES,GPC
WALSALL COUNCIL,HTTP://OPENDATACOMMUNITIES.ORG/ID/METROPOLITAN-DISTRICT-COUNCIL/WALSALL,30/06/2019,RESOURCES & TRANSFORMATION,BLAKEMORE FOODSERVICE,03/04/2019,H59620190405UWIQUTIZC-1,71.54,CA RADLEYS PRIMARY SCHOOL-FROZEN FOODS-PROVISIONS,CATERERS,GPC
WALSALL COUNCIL,HTTP://OPENDATACOMMUNITIES.ORG/ID/METROPOLITAN-DISTRICT-COUNCIL/WALSALL,30/06/2019,RESOURCES & TRANSFORMATION,BLAKEMORE FOODSERVICE,03/04/2019,H59620190405VHIFTYKJQ-1,193.54,CA BEACON PRIMARY SCHOOL-DRY FOODS-PROVISIONS,CATERERS,GPC
WALSALL COUNCIL,HTTP://OPENDATACOMMUNITIES.ORG/ID/METROPOLITAN-DISTRICT-COUNCIL/WALSALL,30/06/2019,RESOURCES & TRANSFORMATION,BLAKEMORE FOODSERVICE,03/04/2019,H59620190405VKNGUCTQQ-1,227.18,CA ST GILES C.E. PRIMARY SCHOO-FROZEN FOODS-PROVISIONS,CATERERS,GPC
WALSALL COUNCIL,HTTP://OPENDATACOMMUNITIES.ORG/ID/METROPOLITAN-DISTRICT-COUNCIL/WALSALL,30/06/2019,RESOURCES & TRANSFORMATION,CO-OPERATIVE FOOD,03/04/2019,H59620190405VSNHEMKMV-1,10,TENANCY SERVICE-ELECTRICITY,GROCERY STORES AND SUPERMARKETS,GPC
WALSALL COUNCIL,HTTP://OPENDATACOMMUNITIES.ORG/ID/METROPOLITAN-DISTRICT-COUNCIL/WALSALL,30/06/2019,RESOURCES & TRANSFORMATION,BLAKEMORE FOODSERVICE,03/04/2019,H59620190405VYCPWWYST-1,222.39,CA BUSILL JONES PRIMARY SCHOOL-FROZEN FOODS-PROVISIONS,CATERERS,GPC
WALSALL COUNCIL,HTTP://OPENDATACOMMUNITIES.ORG/ID/METROPOLITAN-DISTRICT-COUNCIL/WALSALL,30/06/2019,RESOURCES & TRANSFORMATION,BLAKEMORE FOODSERVICE,03/04/2019,H59620190405VYCPWWYST-2,16.66,CA BUSILL JONES PRIMARY SCHOOL-FROZEN FOODS-PROVISIONS,CATERERS,GPC
WALSALL COUNCIL,HTTP://OPENDATACOMMUNITIES.ORG/ID/METROPOLITAN-DISTRICT-COUNCIL/WALSALL,30/06/2019,ECONOMY & ENVIRONMENT,TOOLSTATION LTD,03/04/2019,H59620190405VYXXHIXDJ-1,162.98,INFRASTRUCTURE MAINTENANCE-MATERIALS,HARDWARE STORES,GPC
WALSALL COUNCIL,HTTP://OPENDATACOMMUNITIES.ORG/ID/METROPOLITAN-DISTRICT-COUNCIL/WALSALL,30/06/2019,CHILDRENS SERVICES,WALSALL COUNCIL,03/04/2019,H59620190405WDKZAQSMY-1,45,SAFEGUARDING & FAMILY SUPPORT-SECTION 1/17CHILD CARE ACT 198,GOVERNMENT SERVICES,GPC
WALSALL COUNCIL,HTTP://OPENDATACOMMUNITIES.ORG/ID/METROPOLITAN-DISTRICT-COUNCIL/WALSALL,30/06/2019,CHILDRENS SERVICES,AMAZON.CO.UK*MZ0WF5E04,03/04/2019,H59620190405WLIDLBYOL-1,20,REWARDS-MATERIALS,OTHER DIRECT MARKETING-OTHER DIRECT MARKETERS,GPC
WALSALL COUNCIL,HTTP://OPENDATACOMMUNITIES.ORG/ID/METROPOLITAN-DISTRICT-COUNCIL/WALSALL,30/06/2019,ECONOMY & ENVIRONMENT,WILKO RETAIL LIMIT,03/04/2019,H59620190405XDLPPRZQY-1,8,LEATHER MUSEUM-MATERIALS,HOUSEHOLD APPLIANCE STORES,GPC
WALSALL COUNCIL,HTTP://OPENDATACOMMUNITIES.ORG/ID/METROPOLITAN-DISTRICT-COUNCIL/WALSALL,30/06/2019,RESOURCES & TRANSFORMATION,BLAKEMORE FOODSERVICE,03/04/2019,H59620190405XQWEZBCIV-1,28.34,CA ST MICHAELS C.E. PRIMARY SC-FROZEN FOODS-PROVISIONS,CATERERS,GPC
WALSALL COUNCIL,HTTP://OPENDATACOMMUNITIES.ORG/ID/METROPOLITAN-DISTRICT-COUNCIL/WALSALL,30/06/2019,RESOURCES & TRANSFORMATION,ARTHUR BRETT CATER,03/04/2019,H59620190405XSITFFVEG-1,275.34,CA ST JOHNS C.E. PRIMARY SCHOO-FRUIT & VEGETABLES OTHER-PROVI,MISCELLANEOUS FOOD STORES & CONVENIENCE STORES,GPC
WALSALL COUNCIL,HTTP://OPENDATACOMMUNITIES.ORG/ID/METROPOLITAN-DISTRICT-COUNCIL/WALSALL,30/06/2019,RESOURCES & TRANSFORMATION,BLAKEMORE FOODSERVICE,03/04/2019,H59620190405XXBBPDQWH-1,198.23,CA RUSHALL JMI SCHOOL-FROZEN FOODS-PROVISIONS,CATERERS,GPC
WALSALL COUNCIL,HTTP://OPENDATACOMMUNITIES.ORG/ID/METROPOLITAN-DISTRICT-COUNCIL/WALSALL,30/06/2019,RESOURCES & TRANSFORMATION,EMAP PUBLISHING LTD OPP-6,03/04/2019,H59620190405YAMMZYQKQ-1,478.8,CORPORATE MANAGEMENT TEAM-CONFERENCE EXPENSES,MISCELLANEOUS PUBLISHING AND PRINTING,GPC
WALSALL COUNCIL,HTTP://OPENDATACOMMUNITIES.ORG/ID/METROPOLITAN-DISTRICT-COUNCIL/WALSALL,30/06/2019,CHILDRENS SERVICES,VIRGIN TRAINS,03/04/2019,H59620190405YBIMIVQYO-1,135,CHILD PROTECTION & REVIEW SERV-OFFICERS & STAFF PUBLIC TRANSP,PASSENGER RAILWAYS,GPC
WALSALL COUNCIL,HTTP://OPENDATACOMMUNITIES.ORG/ID/METROPOLITAN-DISTRICT-COUNCIL/WALSALL,30/06/2019,CHILDRENS SERVICES (SCHOOLS),MICROSOFT*OFFICE 365 HOME,03/04/2019,H59620190405YQMXMPTIU-1,79.99,ADMINISTRATIVE SUPPLIES-MATERIALS,DIGITAL GOODS - GAMES,GPC
WALSALL COUNCIL,HTTP://OPENDATACOMMUNITIES.ORG/ID/METROPOLITAN-DISTRICT-COUNCIL/WALSALL,30/06/2019,RESOURCES & TRANSFORMATION,BLAKEMORE FOODSERVICE,03/04/2019,H59620190405YXLPAOLDZ-1,292.02,CA LEIGHSWOOD PRIMARY SCHOOL-FROZEN FOODS-PROVISIONS,CATERERS,GPC
WALSALL COUNCIL,HTTP://OPENDATACOMMUNITIES.ORG/ID/METROPOLITAN-DISTRICT-COUNCIL/WALSALL,30/06/2019,RESOURCES & TRANSFORMATION,ARTHUR BRETT CATER,03/04/2019,H59620190405ZCSEFEVII-1,34.34,TOWN HALL RESTAURANT BISTRO-FRUIT & VEGETABLES OTHER-PROVI,MISCELLANEOUS FOOD STORES & CONVENIENCE STORES,GPC
WALSALL COUNCIL,HTTP://OPENDATACOMMUNITIES.ORG/ID/METROPOLITAN-DISTRICT-COUNCIL/WALSALL,30/06/2019,RESOURCES & TRANSFORMATION,BLAKEMORE FOODSERVICE,03/04/2019,H59620190405ZFXLNJKHC-1,80.64,CA MOORCROFT WOOD-DRY FOODS-PROVISIONS,CATERERS,GPC
WALSALL COUNCIL,HTTP://OPENDATACOMMUNITIES.ORG/ID/METROPOLITAN-DISTRICT-COUNCIL/WALSALL,30/06/2019,RESOURCES & TRANSFORMATION,BLAKEMORE FOODSERVICE,03/04/2019,H59620190405ZFXLNJKHC-2,317.13,CA MOORCROFT WOOD-DRY FOODS-PROVISIONS,CATERERS,GPC
WALSALL COUNCIL,HTTP://OPENDATACOMMUNITIES.ORG/ID/METROPOLITAN-DISTRICT-COUNCIL/WALSALL,30/06/2019,RESOURCES & TRANSFORMATION,BLAKEMORE FOODSERVICE,03/04/2019,H59620190405ZRBNUBYBM-1,629.99,CA BARCROFT D/C-DRY FOODS-PROVISIONS,CATERERS,GPC
WALSALL COUNCIL,HTTP://OPENDATACOMMUNITIES.ORG/ID/METROPOLITAN-DISTRICT-COUNCIL/WALSALL,30/06/2019,RESOURCES & TRANSFORMATION,BLAKEMORE FOODSERVICE,03/04/2019,H59620190405ZRBNUBYBM-2,10.07,CA BARCROFT D/C-DRY FOODS-PROVISIONS,CATERERS,GPC
WALSALL COUNCIL,HTTP://OPENDATACOMMUNITIES.ORG/ID/METROPOLITAN-DISTRICT-COUNCIL/WALSALL,30/06/2019,CHILDRENS SERVICES,AMZNMKTPLACE AMAZON.CO.UK,03/04/2019,H59620190406DPNDJKRVJ-1,19.47,ADMINISTRATIVE SUPPLIES-MATERIALS,MISCELLANEOUS AND SPECIALTY RETAIL STORES,GPC
WALSALL COUNCIL,HTTP://OPENDATACOMMUNITIES.ORG/ID/METROPOLITAN-DISTRICT-COUNCIL/WALSALL,30/06/2019,CHILDRENS SERVICES,247 CARS WILLENHALL LTD,03/04/2019,H59620190406GRRSPCOOF-1,6.7,INITIAL RESPONSE SERVICE-TAXI FARES,TAXI SERVICES,GPC
WALSALL COUNCIL,HTTP://OPENDATACOMMUNITIES.ORG/ID/METROPOLITAN-DISTRICT-COUNCIL/WALSALL,30/06/2019,CHILDRENS SERVICES,AMZNMKTPLACE AMAZON.CO.UK,03/04/2019,H59620190406NOPGWYDQS-1,13.99,CONSUMABLES-MATERIALS,MISCELLANEOUS AND SPECIALTY RETAIL STORES,GPC
WALSALL COUNCIL,HTTP://OPENDATACOMMUNITIES.ORG/ID/METROPOLITAN-DISTRICT-COUNCIL/WALSALL,30/06/2019,RESOURCES & TRANSFORMATION,FOREIGN EXCHANGE FEE,04/04/2019,H59620190405VOBHQSUQL-1,7.3,APPLICATIONS-RECHARGE FOR MAINTENANCE/APPLI,,GPC
WALSALL COUNCIL,HTTP://OPENDATACOMMUNITIES.ORG/ID/METROPOLITAN-DISTRICT-COUNCIL/WALSALL,30/06/2019,CHILDRENS SERVICES,AMZN MKTP UK*MZ3OQ00J4,04/04/2019,H59620190406BPONIQYQO-1,20.19,ADMINISTRATIVE SUPPLIES-MATERIALS,BOOK STORES,GPC
WALSALL COUNCIL,HTTP://OPENDATACOMMUNITIES.ORG/ID/METROPOLITAN-DISTRICT-COUNCIL/WALSALL,30/06/2019,CHILDRENS SERVICES,AMAZON.CO.UK*MZ91I2EW4,04/04/2019,H59620190406BRZBCOBOM-1,143,ST FRANCIS OF ASSISI CATHOLIC -OPERATIONAL MAINTENANCE,OTHER DIRECT MARKETING-OTHER DIRECT MARKETERS,GPC
WALSALL COUNCIL,HTTP://OPENDATACOMMUNITIES.ORG/ID/METROPOLITAN-DISTRICT-COUNCIL/WALSALL,30/06/2019,RESOURCES & TRANSFORMATION,ONLINE ERGONOMICS LTD,04/04/2019,H59620190406BTCUZDEVV-1,134.99,REVENUES-PURCHASE OF FURNITURE & EQUIPM,"EQUIPMENT, FURNITURE, AND HOME FURNISHINGS STORES ",GPC
WALSALL COUNCIL,HTTP://OPENDATACOMMUNITIES.ORG/ID/METROPOLITAN-DISTRICT-COUNCIL/WALSALL,30/06/2019,ECONOMY & ENVIRONMENT,WWW.BANNERUK.COM,04/04/2019,H59620190406CNYRCGFHJ-1,12.89,CENTRALISED STATIONARY-STATIONERY & GENERAL OFFICE SU,"STATIONERY, OFFICE SUPPLIES AND WRITING PAPER",GPC
WALSALL COUNCIL,HTTP://OPENDATACOMMUNITIES.ORG/ID/METROPOLITAN-DISTRICT-COUNCIL/WALSALL,30/06/2019,RESOURCES & TRANSFORMATION,AMZNMKTPLACE,04/04/2019,H59620190406COQQWTOSJ-1,7.98,ELECTED MEMBERS-COMPUTER EQUIPMENT,MISCELLANEOUS AND SPECIALTY RETAIL STORES,GPC
WALSALL COUNCIL,HTTP://OPENDATACOMMUNITIES.ORG/ID/METROPOLITAN-DISTRICT-COUNCIL/WALSALL,30/06/2019,RESOURCES & TRANSFORMATION,WWW.BANNERUK.COM,04/04/2019,H59620190406DWIOVBLGS-1,40.78,CA CATERING OPERATIONAL SUPPOR-MISCELLANEOUS SUPPLIES,"STATIONERY, OFFICE SUPPLIES AND WRITING PAPER",GPC
WALSALL COUNCIL,HTTP://OPENDATACOMMUNITIES.ORG/ID/METROPOLITAN-DISTRICT-COUNCIL/WALSALL,30/06/2019,ECONOMY & ENVIRONMENT,AMZNMKTPLACE,04/04/2019,H59620190406EHVFIGVVB-1,72.99,BLOXWICH LEISURE CENTRE-NEW-FURNITURE & EQUIPMENT,MISCELLANEOUS AND SPECIALTY RETAIL STORES,GPC
WALSALL COUNCIL,HTTP://OPENDATACOMMUNITIES.ORG/ID/METROPOLITAN-DISTRICT-COUNCIL/WALSALL,30/06/2019,CHILDRENS SERVICES,AMZNMKTPLACE,04/04/2019,H59620190406EPQGTJBST-1,299,ROSEDALE C.E. PRIMARY SCHOOL-MATERIALS,MISCELLANEOUS AND SPECIALTY RETAIL STORES,GPC
WALSALL COUNCIL,HTTP://OPENDATACOMMUNITIES.ORG/ID/METROPOLITAN-DISTRICT-COUNCIL/WALSALL,30/06/2019,ECONOMY & ENVIRONMENT,AMAZON.CO.UK*MZ21X1EC4,04/04/2019,H59620190406FEINHBVYU-1,34.39,COMMUNITY PROTECTION-MATERIALS,OTHER DIRECT MARKETING-OTHER DIRECT MARKETERS,GPC
WALSALL COUNCIL,HTTP://OPENDATACOMMUNITIES.ORG/ID/METROPOLITAN-DISTRICT-COUNCIL/WALSALL,30/06/2019,ECONOMY & ENVIRONMENT,POUNDLAND LTD,04/04/2019,H59620190406GGJVDKQEU-1,3,INFRASTRUCTURE MAINTENANCE-MATERIALS,DISCOUNT STORES,GPC
WALSALL COUNCIL,HTTP://OPENDATACOMMUNITIES.ORG/ID/METROPOLITAN-DISTRICT-COUNCIL/WALSALL,30/06/2019,RESOURCES & TRANSFORMATION,ACTIVIA TRAINING,04/04/2019,H59620190406HFPERDSNO-1,453.6,ASSET MANAGEMENT-EXTERNAL TRAINING,OTHER SCHOOLS AND EDUCATIONAL SERVICES,GPC
WALSALL COUNCIL,HTTP://OPENDATACOMMUNITIES.ORG/ID/METROPOLITAN-DISTRICT-COUNCIL/WALSALL,30/06/2019,CHILDRENS SERVICES,THE BANK SAFETY DE,04/04/2019,H59620190406HFPUXYKMW-1,870,LOOKED AFTER CHILDRENS SOCIAL -SCHOOL ONLY PAYMENTS - CATERIN,"DETECTIVE AGENCIES, PROTECTIVE AGENCIES, SECURITY ",GPC
WALSALL COUNCIL,HTTP://OPENDATACOMMUNITIES.ORG/ID/METROPOLITAN-DISTRICT-COUNCIL/WALSALL,30/06/2019,CHILDRENS SERVICES,WWW.BANNERUK.COM,04/04/2019,H59620190406HGKGNOMDD-1,152.71,CHILD PROTECTION & REVIEW SERV-MISCELLANEOUS SUPPLIES,"STATIONERY, OFFICE SUPPLIES AND WRITING PAPER",GPC
WALSALL COUNCIL,HTTP://OPENDATACOMMUNITIES.ORG/ID/METROPOLITAN-DISTRICT-COUNCIL/WALSALL,30/06/2019,CHILDRENS SERVICES,AMZNMKTPLACE,04/04/2019,H59620190406HNYPTIUBN-1,10.08,GENERAL RESOURCES-MATERIALS,MISCELLANEOUS AND SPECIALTY RETAIL STORES,GPC
WALSALL COUNCIL,HTTP://OPENDATACOMMUNITIES.ORG/ID/METROPOLITAN-DISTRICT-COUNCIL/WALSALL,30/06/2019,ECONOMY & ENVIRONMENT,PAYPAL *PSTA,04/04/2019,H59620190406HSOYTYJVH-1,174,LEISURE - MANAGEMENT AND ADMIN-PROFESSIONAL FEES & SERVICES,PROFESSIONAL SERVICES,GPC
WALSALL COUNCIL,HTTP://OPENDATACOMMUNITIES.ORG/ID/METROPOLITAN-DISTRICT-COUNCIL/WALSALL,30/06/2019,CHILDRENS SERVICES (SCHOOLS),AMAZON.CO.UK*MZ87O8EX4 AM,04/04/2019,H59620190406INHWJGQRV-1,80.04,E19-MATERIALS,MISCELLANEOUS AND SPECIALTY RETAIL STORES,GPC
WALSALL COUNCIL,HTTP://OPENDATACOMMUNITIES.ORG/ID/METROPOLITAN-DISTRICT-COUNCIL/WALSALL,30/06/2019,CHILDRENS SERVICES,TESCO STORES 6161,04/04/2019,H59620190406JDDSVNTKO-1,4.99,SUPPORT UNDER SECT 23 OF THE C-SUPPORT UNDER SECTION 23 OF TH,GROCERY STORES AND SUPERMARKETS,GPC
WALSALL COUNCIL,HTTP://OPENDATACOMMUNITIES.ORG/ID/METROPOLITAN-DISTRICT-COUNCIL/WALSALL,30/06/2019,CHILDRENS SERVICES,TESCO STORES 6161,04/04/2019,H59620190406JDDSVNTKO-2,10,SUPPORT UNDER SECT 23 OF THE C-SUPPORT UNDER SECTION 23 OF TH,GROCERY STORES AND SUPERMARKETS,GPC
WALSALL COUNCIL,HTTP://OPENDATACOMMUNITIES.ORG/ID/METROPOLITAN-DISTRICT-COUNCIL/WALSALL,30/06/2019,RESOURCES & TRANSFORMATION,WWW.BANNERUK.COM,04/04/2019,H59620190406JFLDKXESI-1,70.22,LAW LIBRARY-STATIONERY & GENERAL OFFICE SU,"STATIONERY, OFFICE SUPPLIES AND WRITING PAPER",GPC
WALSALL COUNCIL,HTTP://OPENDATACOMMUNITIES.ORG/ID/METROPOLITAN-DISTRICT-COUNCIL/WALSALL,30/06/2019,CHILDRENS SERVICES,TEXTHELP,04/04/2019,H59620190406JKOZOPPKM-1,180,CONTACT SESSIONAL STAFF-SOFTWARE ACQ-COMPUTER,COMPUTER SOFTWARE STORES,GPC
WALSALL COUNCIL,HTTP://OPENDATACOMMUNITIES.ORG/ID/METROPOLITAN-DISTRICT-COUNCIL/WALSALL,30/06/2019,ECONOMY & ENVIRONMENT,WWW.BANNERUK.COM,04/04/2019,H59620190406JKTGJEQNA-1,7.75,CENTRALISED STATIONARY-STATIONERY & GENERAL OFFICE SU,"STATIONERY, OFFICE SUPPLIES AND WRITING PAPER",GPC
WALSALL COUNCIL,HTTP://OPENDATACOMMUNITIES.ORG/ID/METROPOLITAN-DISTRICT-COUNCIL/WALSALL,30/06/2019,ECONOMY & ENVIRONMENT,NWS MARINE,04/04/2019,H59620190406JVRBLYHYR-1,299.88,WALSALL OUTDOOR ADVENTURE CENT-OPERATIONAL MAINTENANCE,"MARINAS, MARINE SERVICE AND SUPPLIES",GPC
WALSALL COUNCIL,HTTP://OPENDATACOMMUNITIES.ORG/ID/METROPOLITAN-DISTRICT-COUNCIL/WALSALL,30/06/2019,ECONOMY & ENVIRONMENT,T R MUSIC,04/04/2019,H59620190406KMVTJBOBK-1,32.4,WALSALL GALA CENTRE-NEW-FURNITURE & EQUIPMENT,MUSIC STORES & MUSICAL INSTRUMENTS,GPC
WALSALL COUNCIL,HTTP://OPENDATACOMMUNITIES.ORG/ID/METROPOLITAN-DISTRICT-COUNCIL/WALSALL,30/06/2019,ECONOMY & ENVIRONMENT,AMAZON.CO.UK*MZ83H5A64,04/04/2019,H59620190406KQELMZEQU-1,22.25,STREETLY LIBRARY-MISCELLANEOUS SUPPLIES,OTHER DIRECT MARKETING-OTHER DIRECT MARKETERS,GPC
WALSALL COUNCIL,HTTP://OPENDATACOMMUNITIES.ORG/ID/METROPOLITAN-DISTRICT-COUNCIL/WALSALL,30/06/2019,CHILDRENS SERVICES,AMAZON.CO.UK*MZ3KL4ES4,04/04/2019,H59620190406LQCSSGHDR-1,49.99,ICT LEARNING RESOURCES-NEW-FURNITURE & EQUIPMENT,OTHER DIRECT MARKETING-OTHER DIRECT MARKETERS,GPC
WALSALL COUNCIL,HTTP://OPENDATACOMMUNITIES.ORG/ID/METROPOLITAN-DISTRICT-COUNCIL/WALSALL,30/06/2019,ECONOMY & ENVIRONMENT,SAINSBURYS SMKTS,04/04/2019,H59620190406MJWJLPCKB-1,10.8,WALSALL TOWN HALL-FOOD AND BEVERAGES-PROVISIONS,GROCERY STORES AND SUPERMARKETS,GPC
WALSALL COUNCIL,HTTP://OPENDATACOMMUNITIES.ORG/ID/METROPOLITAN-DISTRICT-COUNCIL/WALSALL,30/06/2019,RESOURCES & TRANSFORMATION,PAYPAL *ROYALINSTIT,04/04/2019,H59620190406MRWSROCHR-1,570,SCHOOL HR TRANSACTIONAL TEAM-ADVERTISING STAFF VACANCIES,"ORGANIZATIONS, CHARITABLE AND SOCIAL SERVICE",GPC
WALSALL COUNCIL,HTTP://OPENDATACOMMUNITIES.ORG/ID/METROPOLITAN-DISTRICT-COUNCIL/WALSALL,30/06/2019,CHILDRENS SERVICES,AMZNMKTPLACE AMAZON.CO.UK,04/04/2019,H59620190406MVVJBOVYC-1,9.95,CURRICULUM STOCK-MATERIALS,MISCELLANEOUS AND SPECIALTY RETAIL STORES,GPC
WALSALL COUNCIL,HTTP://OPENDATACOMMUNITIES.ORG/ID/METROPOLITAN-DISTRICT-COUNCIL/WALSALL,30/06/2019,RESOURCES & TRANSFORMATION,AMZNMKTPLACE,04/04/2019,H59620190406NFAQEPBIM-1,33.98,CORPORATE MANAGEMENT TEAM-MISCELLANEOUS SUPPLIES,MISCELLANEOUS AND SPECIALTY RETAIL STORES,GPC
WALSALL COUNCIL,HTTP://OPENDATACOMMUNITIES.ORG/ID/METROPOLITAN-DISTRICT-COUNCIL/WALSALL,30/06/2019,CHILDRENS SERVICES,KFC,04/04/2019,H59620190406NJUFINZHW-1,15.47,LOOKED AFTER CHILDRENS SOCIAL -OFFICERS SUBSISTENCE EXPENSES,QUICK PAYMENT SERVICE-FAST-FOOD RESTAURANTS,GPC
WALSALL COUNCIL,HTTP://OPENDATACOMMUNITIES.ORG/ID/METROPOLITAN-DISTRICT-COUNCIL/WALSALL,30/06/2019,CHILDRENS SERVICES,WWW.YOUNGMINDS.ORG,04/04/2019,H59620190406OCLDCXNGN-1,234,VIRTUAL SCHOOL - CENTRAL PUPIL-OTHER EMPLOYEES FEES & EXPENSE,"ORGANIZATIONS, CHARITABLE AND SOCIAL SERVICE",GPC
WALSALL COUNCIL,HTTP://OPENDATACOMMUNITIES.ORG/ID/METROPOLITAN-DISTRICT-COUNCIL/WALSALL,30/06/2019,RESOURCES & TRANSFORMATION,AMZNMKTPLACE,04/04/2019,H59620190406ODWQBOBRW-1,34.9,ELECTED MEMBERS-COMPUTER EQUIPMENT,MISCELLANEOUS AND SPECIALTY RETAIL STORES,GPC
WALSALL COUNCIL,HTTP://OPENDATACOMMUNITIES.ORG/ID/METROPOLITAN-DISTRICT-COUNCIL/WALSALL,30/06/2019,CHILDRENS SERVICES,WWW ESPARES CO UK,04/04/2019,H59620190406OGEJLQSXN-1,24.9,CONTACT SESSIONAL STAFF-PURCHASE OF FURNITURE & EQUIPM,ELECTRICAL PARTS AND EQUIPMENT,GPC
WALSALL COUNCIL,HTTP://OPENDATACOMMUNITIES.ORG/ID/METROPOLITAN-DISTRICT-COUNCIL/WALSALL,30/06/2019,RESOURCES & TRANSFORMATION,TESCO STORE 3351,04/04/2019,H59620190406ORFOHRUDB-1,88.4,YOUNG PERSONS HOMELESS SERVICE-FOOD AND BEVERAGES-PROVISIONS,GROCERY STORES AND SUPERMARKETS,GPC
WALSALL COUNCIL,HTTP://OPENDATACOMMUNITIES.ORG/ID/METROPOLITAN-DISTRICT-COUNCIL/WALSALL,30/06/2019,ECONOMY & ENVIRONMENT,L & S ENGINEERS LTD,04/04/2019,H59620190406PBHSQOCSR-1,6.64,WALSALL MARKET-MATERIALS,HARDWARE STORES,GPC
WALSALL COUNCIL,HTTP://OPENDATACOMMUNITIES.ORG/ID/METROPOLITAN-DISTRICT-COUNCIL/WALSALL,30/06/2019,CHILDRENS SERVICES,AMZNMKTPLACE,04/04/2019,H59620190406PCCIMRMYP-1,7.77,GENERAL RESOURCES-MATERIALS,MISCELLANEOUS AND SPECIALTY RETAIL STORES,GPC
WALSALL COUNCIL,HTTP://OPENDATACOMMUNITIES.ORG/ID/METROPOLITAN-DISTRICT-COUNCIL/WALSALL,30/06/2019,RESOURCES & TRANSFORMATION,T R MUSIC,04/04/2019,H59620190406PGGDYXHTG-1,277,COMMUNICATIONS-PURCHASE OF FURNITURE & EQUIPM,MUSIC STORES & MUSICAL INSTRUMENTS,GPC
WALSALL COUNCIL,HTTP://OPENDATACOMMUNITIES.ORG/ID/METROPOLITAN-DISTRICT-COUNCIL/WALSALL,30/06/2019,RESOURCES & TRANSFORMATION,STOKE ON TRENT CITY CO,04/04/2019,H59620190406PGSLNVNPU-1,11,ACCOMMODATION SERVICES MANAGEM-FEES & LICENCES,GOVERNMENT SERVICES,GPC
WALSALL COUNCIL,HTTP://OPENDATACOMMUNITIES.ORG/ID/METROPOLITAN-DISTRICT-COUNCIL/WALSALL,30/06/2019,CHILDRENS SERVICES,MCDONALDS,04/04/2019,H59620190406QOECSFCTE-1,5.49,LOOKED AFTER CHILDRENS SOCIAL -OFFICERS SUBSISTENCE EXPENSES,QUICK PAYMENT SERVICE-FAST-FOOD RESTAURANTS,GPC
WALSALL COUNCIL,HTTP://OPENDATACOMMUNITIES.ORG/ID/METROPOLITAN-DISTRICT-COUNCIL/WALSALL,30/06/2019,CHILDRENS SERVICES,WWW.BANNERUK.COM,04/04/2019,H59620190406QPLRKWGOX-1,2.21,LOCALITY FAMILY SUPPORT-NORTH-MISCELLANEOUS SUPPLIES,"STATIONERY, OFFICE SUPPLIES AND WRITING PAPER",GPC
WALSALL COUNCIL,HTTP://OPENDATACOMMUNITIES.ORG/ID/METROPOLITAN-DISTRICT-COUNCIL/WALSALL,30/06/2019,CHILDRENS SERVICES,WALSALL STN T/O,04/04/2019,H59620190406QQZMVGLKD-1,46.65,LOOKED AFTER CHILDRENS SOCIAL -SECTION 34 (CONTACT),PASSENGER RAILWAYS,GPC
WALSALL COUNCIL,HTTP://OPENDATACOMMUNITIES.ORG/ID/METROPOLITAN-DISTRICT-COUNCIL/WALSALL,30/06/2019,ECONOMY & ENVIRONMENT,POST OFFICE COUNTER,04/04/2019,H59620190406QRHWSDRJX-1,110,YEI ESF FUNDING-MISCELLANEOUS SUPPLIES,POSTAL SERVICES - GOVERNMENT ONLY,GPC
WALSALL COUNCIL,HTTP://OPENDATACOMMUNITIES.ORG/ID/METROPOLITAN-DISTRICT-COUNCIL/WALSALL,30/06/2019,ECONOMY & ENVIRONMENT,POST OFFICE COUNTER,04/04/2019,H59620190406QRHWSDRJX-2,110,YEI (IMPACT) PROGRAMME-MISCELLANEOUS SUPPLIES,POSTAL SERVICES - GOVERNMENT ONLY,GPC
WALSALL COUNCIL,HTTP://OPENDATACOMMUNITIES.ORG/ID/METROPOLITAN-DISTRICT-COUNCIL/WALSALL,30/06/2019,CHILDRENS SERVICES,WALSALL COUNCIL,04/04/2019,H59620190406QTVYYZXFH-1,2.34,ST JOHNS C.E. PRIMARY SCHOOL-POLICE CHECKS,GOVERNMENT SERVICES,GPC
WALSALL COUNCIL,HTTP://OPENDATACOMMUNITIES.ORG/ID/METROPOLITAN-DISTRICT-COUNCIL/WALSALL,30/06/2019,ECONOMY & ENVIRONMENT,WWW.BANNERUK.COM,04/04/2019,H59620190406QXFTHJFRB-1,33.87,CENTRALISED STATIONARY-STATIONERY & GENERAL OFFICE SU,"STATIONERY, OFFICE SUPPLIES AND WRITING PAPER",GPC
WALSALL COUNCIL,HTTP://OPENDATACOMMUNITIES.ORG/ID/METROPOLITAN-DISTRICT-COUNCIL/WALSALL,30/06/2019,CHILDRENS SERVICES,RESTORE DATASHRED,04/04/2019,H59620190406QXNYHGOUW-1,144,LOOKED AFTER CHILDRENS SOCIAL -CONFIDENTIAL WASTE-SERVICES,SPECIAL TRADE CONTRACTORS,GPC
WALSALL COUNCIL,HTTP://OPENDATACOMMUNITIES.ORG/ID/METROPOLITAN-DISTRICT-COUNCIL/WALSALL,30/06/2019,RESOURCES & TRANSFORMATION,AMZ*JOIEL EU,04/04/2019,H59620190406RRYMQWDLZ-1,-89.9,RECHARGEABLE EQUIPMENT-COMPUTER EQUIPMENT,MISCELLANEOUS AND SPECIALTY RETAIL STORES,GPC
WALSALL COUNCIL,HTTP://OPENDATACOMMUNITIES.ORG/ID/METROPOLITAN-DISTRICT-COUNCIL/WALSALL,30/06/2019,CHILDRENS SERVICES,AMZNMKTPLACE,04/04/2019,H59620190406SMSCIFMNR-1,90.3,PELSALL VILLAGE SCHOOL-OTHER-OP MTCE,MISCELLANEOUS AND SPECIALTY RETAIL STORES,GPC
WALSALL COUNCIL,HTTP://OPENDATACOMMUNITIES.ORG/ID/METROPOLITAN-DISTRICT-COUNCIL/WALSALL,30/06/2019,CHILDRENS SERVICES,CARESHOP,04/04/2019,H59620190406SPFLISTCR-1,112.32,CONTACT SESSIONAL STAFF-MISCELLANEOUS SUPPLIES,MISCELLANEOUS AND SPECIALTY RETAIL STORES,GPC
WALSALL COUNCIL,HTTP://OPENDATACOMMUNITIES.ORG/ID/METROPOLITAN-DISTRICT-COUNCIL/WALSALL,30/06/2019,CHILDRENS SERVICES,ASDA SUPERSTORE,04/04/2019,H59620190406SRXZKEWMQ-1,70.68,REDRUTH ROAD-FOOD AND BEVERAGES-PROVISIONS,GROCERY STORES AND SUPERMARKETS,GPC
WALSALL COUNCIL,HTTP://OPENDATACOMMUNITIES.ORG/ID/METROPOLITAN-DISTRICT-COUNCIL/WALSALL,30/06/2019,CHILDRENS SERVICES,AMAZON.CO.UK*MZ37C8EI4,04/04/2019,H59620190406TFJZAPLDT-1,163.8,GENERAL RESOURCES-MATERIALS,OTHER DIRECT MARKETING-OTHER DIRECT MARKETERS,GPC
WALSALL COUNCIL,HTTP://OPENDATACOMMUNITIES.ORG/ID/METROPOLITAN-DISTRICT-COUNCIL/WALSALL,30/06/2019,ECONOMY & ENVIRONMENT,RINGGO,04/04/2019,H59620190406TNCETMCAC-1,13.11,ACTIVE ENGLAND-OTHER TRAVEL ALLOWANCES,AUTOMOBILE PARKING LOTS AND GARAGES,GPC
WALSALL COUNCIL,HTTP://OPENDATACOMMUNITIES.ORG/ID/METROPOLITAN-DISTRICT-COUNCIL/WALSALL,30/06/2019,RESOURCES & TRANSFORMATION,AMZNMKTPLACE,04/04/2019,H59620190406UIYXVSOUY-1,4.5,BUSINESS SUPPORT-MISCELLANEOUS SUPPLIES,MISCELLANEOUS AND SPECIALTY RETAIL STORES,GPC
WALSALL COUNCIL,HTTP://OPENDATACOMMUNITIES.ORG/ID/METROPOLITAN-DISTRICT-COUNCIL/WALSALL,30/06/2019,CHILDRENS SERVICES,WM MORRISONS STORE,04/04/2019,H59620190406UUEUEBOFT-1,14.3,LOOKED AFTER CHILDRENS SOCIAL -FOOD AND BEVERAGES-PROVISIONS,GROCERY STORES AND SUPERMARKETS,GPC
WALSALL COUNCIL,HTTP://OPENDATACOMMUNITIES.ORG/ID/METROPOLITAN-DISTRICT-COUNCIL/WALSALL,30/06/2019,ECONOMY & ENVIRONMENT,EDEN FARM,04/04/2019,H59620190406VFLFDEJUT-1,143.44,DARLASTON LEISURE CENTRE-CONFECTIONERY/SNACKS-PROVISION,MISCELLANEOUS FOOD STORES & CONVENIENCE STORES,GPC
WALSALL COUNCIL,HTTP://OPENDATACOMMUNITIES.ORG/ID/METROPOLITAN-DISTRICT-COUNCIL/WALSALL,30/06/2019,CHILDRENS SERVICES,REGISTRATION SERVICES,04/04/2019,H59620190406VPHQKQMYS-1,11,GENERAL MANAGEMENT SUPPORT (IN-SCHOOL ONLY PAYMENTS - CATERIN,OTHER RECREATION SERVICES,GPC
WALSALL COUNCIL,HTTP://OPENDATACOMMUNITIES.ORG/ID/METROPOLITAN-DISTRICT-COUNCIL/WALSALL,30/06/2019,CHILDRENS SERVICES (SCHOOLS),POST OFFICE COUNTER,04/04/2019,H59620190406WPXWRDXKS-1,3.17,CADMUS FEDERATION-MATERIALS,POSTAL SERVICES - GOVERNMENT ONLY,GPC
WALSALL COUNCIL,HTTP://OPENDATACOMMUNITIES.ORG/ID/METROPOLITAN-DISTRICT-COUNCIL/WALSALL,30/06/2019,ECONOMY & ENVIRONMENT,WWW.FFX.CO.UK,04/04/2019,H59620190406XNJQHMVXE-1,130.88,STREET CLEANSING-MATERIALS,LUMBER & BUILDING MATERIALS STORES,GPC
WALSALL COUNCIL,HTTP://OPENDATACOMMUNITIES.ORG/ID/METROPOLITAN-DISTRICT-COUNCIL/WALSALL,30/06/2019,ECONOMY & ENVIRONMENT,WWW.BANNERUK.COM,04/04/2019,H59620190406XREGFYQOX-1,4.48,CENTRALISED STATIONARY-STATIONERY & GENERAL OFFICE SU,"STATIONERY, OFFICE SUPPLIES AND WRITING PAPER",GPC
WALSALL COUNCIL,HTTP://OPENDATACOMMUNITIES.ORG/ID/METROPOLITAN-DISTRICT-COUNCIL/WALSALL,30/06/2019,ECONOMY & ENVIRONMENT,SCREWFIX WALSALL WOOD,04/04/2019,H59620190406YTAKLBKTC-1,6.98,INFRASTRUCTURE MAINTENANCE-MATERIALS,LUMBER & BUILDING MATERIALS STORES,GPC
WALSALL COUNCIL,HTTP://OPENDATACOMMUNITIES.ORG/ID/METROPOLITAN-DISTRICT-COUNCIL/WALSALL,30/06/2019,CHILDRENS SERVICES,ALDI 90 772,04/04/2019,H59620190406ZZUMHQKNG-1,6.38,EARLY YEARS DEPARTMENT-MATERIALS,GROCERY STORES AND SUPERMARKETS,GPC
WALSALL COUNCIL,HTTP://OPENDATACOMMUNITIES.ORG/ID/METROPOLITAN-DISTRICT-COUNCIL/WALSALL,30/06/2019,CHILDRENS SERVICES,ALDI 90 772,04/04/2019,H59620190406ZZUMHQKNG-2,12.93,EARLY YEARS DEPARTMENT-MATERIALS,GROCERY STORES AND SUPERMARKETS,GPC
WALSALL COUNCIL,HTTP://OPENDATACOMMUNITIES.ORG/ID/METROPOLITAN-DISTRICT-COUNCIL/WALSALL,30/06/2019,RESOURCES & TRANSFORMATION,PRIMARK 690,04/04/2019,H59620190409LPUBLAVPY-1,36.5,YOUNG PERSONS HOMELESS SERVICE-CLOTHING & LAUNDRY,CLOTHING STORES,GPC
WALSALL COUNCIL,HTTP://OPENDATACOMMUNITIES.ORG/ID/METROPOLITAN-DISTRICT-COUNCIL/WALSALL,30/06/2019,RESOURCES & TRANSFORMATION,ACTIVIA TRAINING,04/04/2019,H59620190409RYRKGJVNL-1,453.6,RECHARGEABLE EQUIPMENT-EXTERNAL TRAINING,OTHER SCHOOLS AND EDUCATIONAL SERVICES,GPC
WALSALL COUNCIL,HTTP://OPENDATACOMMUNITIES.ORG/ID/METROPOLITAN-DISTRICT-COUNCIL/WALSALL,30/06/2019,CHILDRENS SERVICES,AMZNMKTPLACE AMAZON.CO.UK,04/04/2019,H59620190409YMRQUHAMW-1,14.48,PELSALL VILLAGE SCHOOL-OTHER-OP MTCE,MISCELLANEOUS AND SPECIALTY RETAIL STORES,GPC
WALSALL COUNCIL,HTTP://OPENDATACOMMUNITIES.ORG/ID/METROPOLITAN-DISTRICT-COUNCIL/WALSALL,30/06/2019,RESOURCES & TRANSFORMATION,WWW.SCC.COM,04/04/2019,H59620190412OVHFADESG-1,93.52,RECHARGEABLE EQUIPMENT-COMPUTER EQUIPMENT,"COMPUTERS, COMPUTER PERIPHERAL EQUIPMENT, SOFTWARE",GPC
WALSALL COUNCIL,HTTP://OPENDATACOMMUNITIES.ORG/ID/METROPOLITAN-DISTRICT-COUNCIL/WALSALL,30/06/2019,RESOURCES & TRANSFORMATION,WWW.SCC.COM,04/04/2019,H59620190510GUXHQPTJY-1,645.3,RECHARGEABLE EQUIPMENT-COMPUTER EQUIPMENT,"COMPUTERS, COMPUTER PERIPHERAL EQUIPMENT, SOFTWARE",GPC
WALSALL COUNCIL,HTTP://OPENDATACOMMUNITIES.ORG/ID/METROPOLITAN-DISTRICT-COUNCIL/WALSALL,30/06/2019,RESOURCES & TRANSFORMATION,WWW.SCC.COM,04/04/2019,H59620190521DCSQUVWQL-1,466.49,RECHARGEABLE EQUIPMENT-COMPUTER EQUIPMENT,"COMPUTERS, COMPUTER PERIPHERAL EQUIPMENT, SOFTWARE",GPC
WALSALL COUNCIL,HTTP://OPENDATACOMMUNITIES.ORG/ID/METROPOLITAN-DISTRICT-COUNCIL/WALSALL,30/06/2019,ECONOMY & ENVIRONMENT,MIDLANDCHILLED.CO.,05/04/2019,H59620190409BQTTHCIAF-1,429.33,BLOXWICH LEISURE CENTRE-FOOD AND BEVERAGES-PROVISIONS,MOTOR FREIGHT CARRIERS,GPC
WALSALL COUNCIL,HTTP://OPENDATACOMMUNITIES.ORG/ID/METROPOLITAN-DISTRICT-COUNCIL/WALSALL,30/06/2019,CHILDRENS SERVICES,WALSALL COUNCIL,05/04/2019,H59620190409BUPBTJPGD-1,46.34,ST FRANCIS OF ASSISI CATHOLIC -OTHER EMPLOYEES FEES & EXPENSE,GOVERNMENT SERVICES,GPC
WALSALL COUNCIL,HTTP://OPENDATACOMMUNITIES.ORG/ID/METROPOLITAN-DISTRICT-COUNCIL/WALSALL,30/06/2019,RESOURCES & TRANSFORMATION,ARTHUR BRETT CATER,05/04/2019,H59620190409CJFVGQCLT-1,21.86,CA BUSILL JONES PRIMARY SCHOOL-FRUIT & VEGETABLES OTHER-PROVI,MISCELLANEOUS FOOD STORES & CONVENIENCE STORES,GPC
WALSALL COUNCIL,HTTP://OPENDATACOMMUNITIES.ORG/ID/METROPOLITAN-DISTRICT-COUNCIL/WALSALL,30/06/2019,ECONOMY & ENVIRONMENT,POST OFFICE COUNTER,05/04/2019,H59620190409DBISENUUS-1,1.9,FOREST ARTS CENTRE-POSTAGES & COURIER SERVICES,POSTAL SERVICES - GOVERNMENT ONLY,GPC
WALSALL COUNCIL,HTTP://OPENDATACOMMUNITIES.ORG/ID/METROPOLITAN-DISTRICT-COUNCIL/WALSALL,30/06/2019,CHILDRENS SERVICES,NEST.COM,05/04/2019,H59620190409DDFFNMRRL-1,40,ST FRANCIS OF ASSISI CATHOLIC -OPERATIONAL MAINTENANCE,ELECTRICAL PARTS AND EQUIPMENT,GPC
WALSALL COUNCIL,HTTP://OPENDATACOMMUNITIES.ORG/ID/METROPOLITAN-DISTRICT-COUNCIL/WALSALL,30/06/2019,RESOURCES & TRANSFORMATION,ARTHUR BRETT CATER,05/04/2019,H59620190409DFMLGUMSH-1,21.44,CA LEIGHSWOOD PRIMARY SCHOOL-FRUIT & VEGETABLES OTHER-PROVI,MISCELLANEOUS FOOD STORES & CONVENIENCE STORES,GPC
WALSALL COUNCIL,HTTP://OPENDATACOMMUNITIES.ORG/ID/METROPOLITAN-DISTRICT-COUNCIL/WALSALL,30/06/2019,ECONOMY & ENVIRONMENT,MIDLANDCHILLED.CO.,05/04/2019,H59620190409EIWSXNVTW-1,163.6,BLOXWICH LEISURE CENTRE-FOOD AND BEVERAGES-PROVISIONS,MOTOR FREIGHT CARRIERS,GPC
WALSALL COUNCIL,HTTP://OPENDATACOMMUNITIES.ORG/ID/METROPOLITAN-DISTRICT-COUNCIL/WALSALL,30/06/2019,ECONOMY & ENVIRONMENT,MIDLANDCHILLED.CO.,05/04/2019,H59620190409EIWSXNVTW-2,233.4,BLOXWICH LEISURE CENTRE-FOOD AND BEVERAGES-PROVISIONS,MOTOR FREIGHT CARRIERS,GPC
WALSALL COUNCIL,HTTP://OPENDATACOMMUNITIES.ORG/ID/METROPOLITAN-DISTRICT-COUNCIL/WALSALL,30/06/2019,ECONOMY & ENVIRONMENT,IKEA LTD 142 BIRMINGHAM M,05/04/2019,H59620190409EJFCSQHCH-1,27.9,LEATHER MUSEUM-MATERIALS,"EQUIPMENT, FURNITURE, AND HOME FURNISHINGS STORES ",GPC
WALSALL COUNCIL,HTTP://OPENDATACOMMUNITIES.ORG/ID/METROPOLITAN-DISTRICT-COUNCIL/WALSALL,30/06/2019,CHILDRENS SERVICES,TESCO STORES 6161,05/04/2019,H59620190409EVVFCBRVH-1,12.55,YOUTH JUSTICE SERVICE-FOOD AND BEVERAGES-PROVISIONS,GROCERY STORES AND SUPERMARKETS,GPC
WALSALL COUNCIL,HTTP://OPENDATACOMMUNITIES.ORG/ID/METROPOLITAN-DISTRICT-COUNCIL/WALSALL,30/06/2019,CHILDRENS SERVICES,TESCO STORES 6161,05/04/2019,H59620190409EVVFCBRVH-2,8.48,YOUTH JUSTICE SERVICE-FOOD AND BEVERAGES-PROVISIONS,GROCERY STORES AND SUPERMARKETS,GPC
WALSALL COUNCIL,HTTP://OPENDATACOMMUNITIES.ORG/ID/METROPOLITAN-DISTRICT-COUNCIL/WALSALL,30/06/2019,ECONOMY & ENVIRONMENT,L & S ENGINEERS LTD,05/04/2019,H59620190409EZMYPWKLK-1,14.89,GROUNDS-MATERIALS,HARDWARE STORES,GPC
WALSALL COUNCIL,HTTP://OPENDATACOMMUNITIES.ORG/ID/METROPOLITAN-DISTRICT-COUNCIL/WALSALL,30/06/2019,ECONOMY & ENVIRONMENT,AMZN MKTP UK*MZ80210U4,05/04/2019,H59620190409FBBKTPUFS-1,16.4,BLOXWICH LEISURE CENTRE-NEW-FURNITURE & EQUIPMENT,BOOK STORES,GPC
WALSALL COUNCIL,HTTP://OPENDATACOMMUNITIES.ORG/ID/METROPOLITAN-DISTRICT-COUNCIL/WALSALL,30/06/2019,CHILDRENS SERVICES (SCHOOLS),AMZNMKTPLACE,05/04/2019,H59620190409FFOAQKNMX-1,17.87,ADMINISTRATIVE SUPPLIES-MATERIALS,MISCELLANEOUS AND SPECIALTY RETAIL STORES,GPC
WALSALL COUNCIL,HTTP://OPENDATACOMMUNITIES.ORG/ID/METROPOLITAN-DISTRICT-COUNCIL/WALSALL,30/06/2019,ECONOMY & ENVIRONMENT,MIDLANDCHILLED.CO.,05/04/2019,H59620190409GBEYYKVTO-1,21.6,BLOXWICH LEISURE CENTRE-FOOD AND BEVERAGES-PROVISIONS,MOTOR FREIGHT CARRIERS,GPC
WALSALL COUNCIL,HTTP://OPENDATACOMMUNITIES.ORG/ID/METROPOLITAN-DISTRICT-COUNCIL/WALSALL,30/06/2019,ECONOMY & ENVIRONMENT,MIDLANDCHILLED.CO.,05/04/2019,H59620190409GBEYYKVTO-2,152.86,BLOXWICH LEISURE CENTRE-FOOD AND BEVERAGES-PROVISIONS,MOTOR FREIGHT CARRIERS,GPC
WALSALL COUNCIL,HTTP://OPENDATACOMMUNITIES.ORG/ID/METROPOLITAN-DISTRICT-COUNCIL/WALSALL,30/06/2019,CHILDRENS SERVICES,WM MORRISONS STORE,05/04/2019,H59620190409GCGGNYFUG-1,9.9,CONTACT SESSIONAL STAFF-FOOD AND BEVERAGES-PROVISIONS,GROCERY STORES AND SUPERMARKETS,GPC
WALSALL COUNCIL,HTTP://OPENDATACOMMUNITIES.ORG/ID/METROPOLITAN-DISTRICT-COUNCIL/WALSALL,30/06/2019,RESOURCES & TRANSFORMATION,ARTHUR BRETT CATER,05/04/2019,H59620190409GTTDCEJUD-1,6.45,CA BARCROFT D/C-FRUIT & VEGETABLES OTHER-PROVI,MISCELLANEOUS FOOD STORES & CONVENIENCE STORES,GPC
WALSALL COUNCIL,HTTP://OPENDATACOMMUNITIES.ORG/ID/METROPOLITAN-DISTRICT-COUNCIL/WALSALL,30/06/2019,CHILDRENS SERVICES,VIRGIN MEDIA PYMTS,05/04/2019,H59620190409GUEVFCTRG-1,44.19,57 LICHFIELD ROAD-PROFESSIONAL FEES & SERVICES,TELECOMMUNICATION SERVICES,GPC
WALSALL COUNCIL,HTTP://OPENDATACOMMUNITIES.ORG/ID/METROPOLITAN-DISTRICT-COUNCIL/WALSALL,30/06/2019,CHILDRENS SERVICES,VIRGIN TRAINS,05/04/2019,H59620190409HBEXZVMMW-1,282.55,CHILD PROTECTION & REVIEW SERV-OFFICERS & STAFF PUBLIC TRANSP,PASSENGER RAILWAYS,GPC
WALSALL COUNCIL,HTTP://OPENDATACOMMUNITIES.ORG/ID/METROPOLITAN-DISTRICT-COUNCIL/WALSALL,30/06/2019,RESOURCES & TRANSFORMATION,PRESCRIPTIONS CHG,05/04/2019,H59620190409HCFFRKDVY-1,126.4,CHARGING & PAYMENTS-MEDICAL REQUISITES-MATERIALS,GOVERNMENT SERVICES,GPC
WALSALL COUNCIL,HTTP://OPENDATACOMMUNITIES.ORG/ID/METROPOLITAN-DISTRICT-COUNCIL/WALSALL,30/06/2019,CHILDRENS SERVICES,WWW.BANNERUK.COM,05/04/2019,H59620190409HQZPOHVUM-1,9.65,SAFEGUARDING & FAMILY SUPPORT-MISCELLANEOUS SUPPLIES,"STATIONERY, OFFICE SUPPLIES AND WRITING PAPER",GPC
WALSALL COUNCIL,HTTP://OPENDATACOMMUNITIES.ORG/ID/METROPOLITAN-DISTRICT-COUNCIL/WALSALL,30/06/2019,CHILDRENS SERVICES,WWW.BANNERUK.COM,05/04/2019,H59620190409HQZPOHVUM-2,9.65,FAMILY PLACEMENTS-MISCELLANEOUS SUPPLIES,"STATIONERY, OFFICE SUPPLIES AND WRITING PAPER",GPC
WALSALL COUNCIL,HTTP://OPENDATACOMMUNITIES.ORG/ID/METROPOLITAN-DISTRICT-COUNCIL/WALSALL,30/06/2019,CHILDRENS SERVICES,WEST MID TRAVEL,05/04/2019,H59620190409IKZKVWUZW-1,307.5,SAFEGUARDING & FAMILY SUPPORT-OFFICERS & STAFF PUBLIC TRANSP,BUS LINES,GPC
WALSALL COUNCIL,HTTP://OPENDATACOMMUNITIES.ORG/ID/METROPOLITAN-DISTRICT-COUNCIL/WALSALL,30/06/2019,CHILDRENS SERVICES,WEST MID TRAVEL,05/04/2019,H59620190409IKZKVWUZW-2,6.35,SAFEGUARDING & FAMILY SUPPORT-POSTAGES & COURIER SERVICES,BUS LINES,GPC
WALSALL COUNCIL,HTTP://OPENDATACOMMUNITIES.ORG/ID/METROPOLITAN-DISTRICT-COUNCIL/WALSALL,30/06/2019,RESOURCES & TRANSFORMATION,PRIMARK 690,05/04/2019,H59620190409INUHJMDET-1,10,ACCOMMODATION SERVICES MANAGEM-CLOTHING & LAUNDRY,CLOTHING STORES,GPC
WALSALL COUNCIL,HTTP://OPENDATACOMMUNITIES.ORG/ID/METROPOLITAN-DISTRICT-COUNCIL/WALSALL,30/06/2019,CHILDRENS SERVICES,WM MORRISONS STORE,05/04/2019,H59620190409KGVMLQJDG-1,16.62,57 LICHFIELD ROAD-FOOD AND BEVERAGES-PROVISIONS,GROCERY STORES AND SUPERMARKETS,GPC
WALSALL COUNCIL,HTTP://OPENDATACOMMUNITIES.ORG/ID/METROPOLITAN-DISTRICT-COUNCIL/WALSALL,30/06/2019,RESOURCES & TRANSFORMATION,TRAVEL WEST MIDLAN,05/04/2019,H59620190409LGVFXFHDG-1,88,WALSALL CRISIS SUPPORT SCHEME-CRISIS SUPPORT PAYMENTS,BUS LINES,GPC
WALSALL COUNCIL,HTTP://OPENDATACOMMUNITIES.ORG/ID/METROPOLITAN-DISTRICT-COUNCIL/WALSALL,30/06/2019,RESOURCES & TRANSFORMATION,WWW.BANNERUK.COM,05/04/2019,H59620190409LPKJNHGVC-1,18.72,LAW LIBRARY-STATIONERY & GENERAL OFFICE SU,"STATIONERY, OFFICE SUPPLIES AND WRITING PAPER",GPC
WALSALL COUNCIL,HTTP://OPENDATACOMMUNITIES.ORG/ID/METROPOLITAN-DISTRICT-COUNCIL/WALSALL,30/06/2019,ECONOMY & ENVIRONMENT,BELL PLUMBING SUPPLIES,05/04/2019,H59620190409LSCVNROBY-1,50.39,DEPOT-MATERIALS,PLUMBING AND HEATING EQUIPMENT,GPC
WALSALL COUNCIL,HTTP://OPENDATACOMMUNITIES.ORG/ID/METROPOLITAN-DISTRICT-COUNCIL/WALSALL,30/06/2019,RESOURCES & TRANSFORMATION,PRIMARK 690,05/04/2019,H59620190409LUMUUIRFC-1,30,ACCOMMODATION SERVICES MANAGEM-CLOTHING & LAUNDRY,CLOTHING STORES,GPC
WALSALL COUNCIL,HTTP://OPENDATACOMMUNITIES.ORG/ID/METROPOLITAN-DISTRICT-COUNCIL/WALSALL,30/06/2019,CHILDRENS SERVICES,AMZNMKTPLACE,05/04/2019,H59620190409MQVHYUGMR-1,11.9,ROSEDALE C.E. PRIMARY SCHOOL-MATERIALS,MISCELLANEOUS AND SPECIALTY RETAIL STORES,GPC
WALSALL COUNCIL,HTTP://OPENDATACOMMUNITIES.ORG/ID/METROPOLITAN-DISTRICT-COUNCIL/WALSALL,30/06/2019,ECONOMY & ENVIRONMENT,FACEBK *NASUHJSW82,05/04/2019,H59620190409MXQEEKOVT-1,3,WALSALL WORKS-PUBLICITY & ADVERTISING (NON S,ADVERTISING SERVICES,GPC
WALSALL COUNCIL,HTTP://OPENDATACOMMUNITIES.ORG/ID/METROPOLITAN-DISTRICT-COUNCIL/WALSALL,30/06/2019,CHILDRENS SERVICES,ONE STOP 6322,05/04/2019,H59620190409PIJXQUQIJ-1,3.35,PARENTING TEAM-FOOD AND BEVERAGES-PROVISIONS,GROCERY STORES AND SUPERMARKETS,GPC
WALSALL COUNCIL,HTTP://OPENDATACOMMUNITIES.ORG/ID/METROPOLITAN-DISTRICT-COUNCIL/WALSALL,30/06/2019,CHILDRENS SERVICES,WILKO RETAIL LIMIT,05/04/2019,H59620190409QERCUTDMF-1,6,YOUTH JUSTICE SERVICE-PURCHASE OF FURNITURE & EQUIPM,HOUSEHOLD APPLIANCE STORES,GPC
WALSALL COUNCIL,HTTP://OPENDATACOMMUNITIES.ORG/ID/METROPOLITAN-DISTRICT-COUNCIL/WALSALL,30/06/2019,CHILDRENS SERVICES,WWW.STUART-BATHURST.OR,05/04/2019,H59620190409QUODVMQOM-1,10,"43A HILTON ROAD, WILLENHALL-RESIDENTS PERSONAL EXPENSES-AL","SCHOOLS, ELEMENTARY AND SECONDARY",GPC
WALSALL COUNCIL,HTTP://OPENDATACOMMUNITIES.ORG/ID/METROPOLITAN-DISTRICT-COUNCIL/WALSALL,30/06/2019,CHILDRENS SERVICES,WWW.BANNERUK.COM,05/04/2019,H59620190409QWJUXHGBB-1,90.7,SEN ASSESSMENT-MISCELLANEOUS SUPPLIES,"STATIONERY, OFFICE SUPPLIES AND WRITING PAPER",GPC
WALSALL COUNCIL,HTTP://OPENDATACOMMUNITIES.ORG/ID/METROPOLITAN-DISTRICT-COUNCIL/WALSALL,30/06/2019,CHILDRENS SERVICES,TESCO STORES 5503,05/04/2019,H59620190409QZMCYLPTG-1,4.6,LOCALITY FAMILY SUPPORT-WEST-FOOD AND BEVERAGES-PROVISIONS,GROCERY STORES AND SUPERMARKETS,GPC
WALSALL COUNCIL,HTTP://OPENDATACOMMUNITIES.ORG/ID/METROPOLITAN-DISTRICT-COUNCIL/WALSALL,30/06/2019,CHILDRENS SERVICES,TESCO STORES 5503,05/04/2019,H59620190409QZMCYLPTG-2,0.75,LOCALITY FAMILY SUPPORT-WEST-FOOD AND BEVERAGES-PROVISIONS,GROCERY STORES AND SUPERMARKETS,GPC
WALSALL COUNCIL,HTTP://OPENDATACOMMUNITIES.ORG/ID/METROPOLITAN-DISTRICT-COUNCIL/WALSALL,30/06/2019,ECONOMY & ENVIRONMENT,CROFT NEWS,05/04/2019,H59620190409RCBJPOIDS-1,132.45,ALDRIDGE LIBRARY-NEWSPAPERS - GENERAL,GROCERY STORES AND SUPERMARKETS,GPC
WALSALL COUNCIL,HTTP://OPENDATACOMMUNITIES.ORG/ID/METROPOLITAN-DISTRICT-COUNCIL/WALSALL,30/06/2019,RESOURCES & TRANSFORMATION,ARTHUR BRETT CATER,05/04/2019,H59620190409RFVLLDXHU-1,34.73,CA CASTLEFORT JMI SCHOOL-DRY FOODS-PROVISIONS,MISCELLANEOUS FOOD STORES & CONVENIENCE STORES,GPC
WALSALL COUNCIL,HTTP://OPENDATACOMMUNITIES.ORG/ID/METROPOLITAN-DISTRICT-COUNCIL/WALSALL,30/06/2019,ECONOMY & ENVIRONMENT,TESCO STORES 6161,05/04/2019,H59620190409RMGEYOFQB-1,6,LEATHER MUSEUM-BEVERAGES-PROVISIONS,GROCERY STORES AND SUPERMARKETS,GPC
WALSALL COUNCIL,HTTP://OPENDATACOMMUNITIES.ORG/ID/METROPOLITAN-DISTRICT-COUNCIL/WALSALL,30/06/2019,ECONOMY & ENVIRONMENT,TESCO STORES 6161,05/04/2019,H59620190409RMGEYOFQB-2,27.18,LEATHER MUSEUM-BEVERAGES-PROVISIONS,GROCERY STORES AND SUPERMARKETS,GPC
WALSALL COUNCIL,HTTP://OPENDATACOMMUNITIES.ORG/ID/METROPOLITAN-DISTRICT-COUNCIL/WALSALL,30/06/2019,CHILDRENS SERVICES,WM MORRISONS STORE,05/04/2019,H59620190409RWMZGOCNN-1,14.3,"43A HILTON ROAD, WILLENHALL-FOOD AND BEVERAGES-PROVISIONS",GROCERY STORES AND SUPERMARKETS,GPC
WALSALL COUNCIL,HTTP://OPENDATACOMMUNITIES.ORG/ID/METROPOLITAN-DISTRICT-COUNCIL/WALSALL,30/06/2019,CHILDRENS SERVICES,WM MORRISONS STORE,05/04/2019,H59620190409RWMZGOCNN-2,151.06,"43A HILTON ROAD, WILLENHALL-FOOD AND BEVERAGES-PROVISIONS",GROCERY STORES AND SUPERMARKETS,GPC
WALSALL COUNCIL,HTTP://OPENDATACOMMUNITIES.ORG/ID/METROPOLITAN-DISTRICT-COUNCIL/WALSALL,30/06/2019,ECONOMY & ENVIRONMENT,AMZNMKTPLACE AMAZON.CO.UK,05/04/2019,H59620190409SPTHKGLYG-1,128.82,EXTEND-NEW-FURNITURE & EQUIPMENT,MISCELLANEOUS AND SPECIALTY RETAIL STORES,GPC
WALSALL COUNCIL,HTTP://OPENDATACOMMUNITIES.ORG/ID/METROPOLITAN-DISTRICT-COUNCIL/WALSALL,30/06/2019,ECONOMY & ENVIRONMENT,OSCAR NEWS,05/04/2019,H59620190409TJDSLKIKC-1,66.74,BLOXWICH LIBRARY-NEWSPAPERS/PERIODICALS/MAGAZIN,GROCERY STORES AND SUPERMARKETS,GPC
WALSALL COUNCIL,HTTP://OPENDATACOMMUNITIES.ORG/ID/METROPOLITAN-DISTRICT-COUNCIL/WALSALL,30/06/2019,RESOURCES & TRANSFORMATION,ARTHUR BRETT CATER,05/04/2019,H59620190409TTJWNFNFE-1,77.44,CA BUSILL JONES PRIMARY SCHOOL-FRUIT & VEGETABLES OTHER-PROVI,MISCELLANEOUS FOOD STORES & CONVENIENCE STORES,GPC
WALSALL COUNCIL,HTTP://OPENDATACOMMUNITIES.ORG/ID/METROPOLITAN-DISTRICT-COUNCIL/WALSALL,30/06/2019,CHILDRENS SERVICES,ONE STOP 6322,05/04/2019,H59620190409VILLCRDFB-1,4,LOCALITY FAMILY SUPPORT-WEST-FOOD AND BEVERAGES-PROVISIONS,GROCERY STORES AND SUPERMARKETS,GPC
WALSALL COUNCIL,HTTP://OPENDATACOMMUNITIES.ORG/ID/METROPOLITAN-DISTRICT-COUNCIL/WALSALL,30/06/2019,RESOURCES & TRANSFORMATION,TESCO STORES 6161,05/04/2019,H59620190409VJALONMEG-1,14.99,YOUNG PERSONS HOMELESS SERVICE-MISCELLANEOUS SUPPLIES,GROCERY STORES AND SUPERMARKETS,GPC
WALSALL COUNCIL,HTTP://OPENDATACOMMUNITIES.ORG/ID/METROPOLITAN-DISTRICT-COUNCIL/WALSALL,30/06/2019,ECONOMY & ENVIRONMENT,MIDLANDNEWS.COM,05/04/2019,H59620190409VJXQRRIBF-1,168.48,DEVELOPMENT MANAGEMENT-PERIODICALS/MAGAZINES/NEWSPAPE,NEWS DEALERS AND NEWSSTANDS,GPC
WALSALL COUNCIL,HTTP://OPENDATACOMMUNITIES.ORG/ID/METROPOLITAN-DISTRICT-COUNCIL/WALSALL,30/06/2019,RESOURCES & TRANSFORMATION,AMZN MKTP UK*MZ5BV60F4,05/04/2019,H59620190409VYSCHCLZH-1,71.92,RECHARGEABLE EQUIPMENT-COMPUTER EQUIPMENT,BOOK STORES,GPC
WALSALL COUNCIL,HTTP://OPENDATACOMMUNITIES.ORG/ID/METROPOLITAN-DISTRICT-COUNCIL/WALSALL,30/06/2019,ECONOMY & ENVIRONMENT,SCREWFIX WALSALL WOOD,05/04/2019,H59620190409WEJZIIEWL-1,22.99,BLOXWICH LEISURE CENTRE-NEW-FURNITURE & EQUIPMENT,LUMBER & BUILDING MATERIALS STORES,GPC
WALSALL COUNCIL,HTTP://OPENDATACOMMUNITIES.ORG/ID/METROPOLITAN-DISTRICT-COUNCIL/WALSALL,30/06/2019,ECONOMY & ENVIRONMENT,BESTWAY WALSALL,05/04/2019,H59620190409WGHOWKHTB-1,16.66,LEATHER MUSEUM-BEVERAGES-PROVISIONS,DAIRY PRODUCTS STORES,GPC
WALSALL COUNCIL,HTTP://OPENDATACOMMUNITIES.ORG/ID/METROPOLITAN-DISTRICT-COUNCIL/WALSALL,30/06/2019,ECONOMY & ENVIRONMENT,BESTWAY WALSALL,05/04/2019,H59620190409WGHOWKHTB-2,1.54,LEATHER MUSEUM-BEVERAGES-PROVISIONS,DAIRY PRODUCTS STORES,GPC
WALSALL COUNCIL,HTTP://OPENDATACOMMUNITIES.ORG/ID/METROPOLITAN-DISTRICT-COUNCIL/WALSALL,30/06/2019,ECONOMY & ENVIRONMENT,WWW.STA.CO.UK,05/04/2019,H59620190409WKGJGDSMG-1,63,DARLASTON LEISURE CENTRE-FEES & LICENCES-SERVICES,OTHER RECREATION SERVICES,GPC
WALSALL COUNCIL,HTTP://OPENDATACOMMUNITIES.ORG/ID/METROPOLITAN-DISTRICT-COUNCIL/WALSALL,30/06/2019,ECONOMY & ENVIRONMENT,WWW.STA.CO.UK,05/04/2019,H59620190409WKGJGDSMG-2,63,OAK PARK-FEES & LICENCES-SERVICES,OTHER RECREATION SERVICES,GPC
WALSALL COUNCIL,HTTP://OPENDATACOMMUNITIES.ORG/ID/METROPOLITAN-DISTRICT-COUNCIL/WALSALL,30/06/2019,ECONOMY & ENVIRONMENT,WWW.STA.CO.UK,05/04/2019,H59620190409WKGJGDSMG-3,63,BLOXWICH LEISURE CENTRE-FEES & LICENCES-SERVICES,OTHER RECREATION SERVICES,GPC
WALSALL COUNCIL,HTTP://OPENDATACOMMUNITIES.ORG/ID/METROPOLITAN-DISTRICT-COUNCIL/WALSALL,30/06/2019,ECONOMY & ENVIRONMENT,WWW.STA.CO.UK,05/04/2019,H59620190409WKGJGDSMG-4,63,WALSALL GALA CENTRE-FEES & LICENCES-SERVICES,OTHER RECREATION SERVICES,GPC
WALSALL COUNCIL,HTTP://OPENDATACOMMUNITIES.ORG/ID/METROPOLITAN-DISTRICT-COUNCIL/WALSALL,30/06/2019,CHILDRENS SERVICES (SCHOOLS),BT BILL PAYMENT 2,05/04/2019,H59620190409WQSQFVCSP-1,88.56,ADMINISTRATIVE SUPPLIES-COST OF RENTAL-TELEPHONES,TELECOMMUNICATION EQUIPMENT & SALES,GPC
WALSALL COUNCIL,HTTP://OPENDATACOMMUNITIES.ORG/ID/METROPOLITAN-DISTRICT-COUNCIL/WALSALL,30/06/2019,ECONOMY & ENVIRONMENT,WWW.STA.CO.UK,05/04/2019,H59620190409WRBNLOTHN-1,11.25,OAK PARK-FEES & LICENCES,OTHER RECREATION SERVICES,GPC
WALSALL COUNCIL,HTTP://OPENDATACOMMUNITIES.ORG/ID/METROPOLITAN-DISTRICT-COUNCIL/WALSALL,30/06/2019,RESOURCES & TRANSFORMATION,AMZN MKTP UK*MZ4CQ90T4,05/04/2019,H59620190409WWDTQJFPK-1,17.45,SCHOOL HR TRANSACTIONAL TEAM-STATIONERY & GENERAL OFFICE SU,BOOK STORES,GPC
WALSALL COUNCIL,HTTP://OPENDATACOMMUNITIES.ORG/ID/METROPOLITAN-DISTRICT-COUNCIL/WALSALL,30/06/2019,CHILDRENS SERVICES,AMZN MKTP UK*MZ1FB81S4,05/04/2019,H59620190409YFRBBQPCO-1,20.98,ROSEDALE C.E. PRIMARY SCHOOL-MATERIALS,BOOK STORES,GPC
WALSALL COUNCIL,HTTP://OPENDATACOMMUNITIES.ORG/ID/METROPOLITAN-DISTRICT-COUNCIL/WALSALL,30/06/2019,CHILDRENS SERVICES (SCHOOLS),AMZNMKTPLACE,05/04/2019,H59620190409YGKFDGMDU-1,13.99,ADMINISTRATIVE SUPPLIES-MATERIALS,MISCELLANEOUS AND SPECIALTY RETAIL STORES,GPC
WALSALL COUNCIL,HTTP://OPENDATACOMMUNITIES.ORG/ID/METROPOLITAN-DISTRICT-COUNCIL/WALSALL,30/06/2019,RESOURCES & TRANSFORMATION,ARTHUR BRETT CATER,05/04/2019,H59620190409YXNHNNIEF-1,7.43,CA ELMWOOD SPECIAL SCHOOL-FRUIT & VEGETABLES OTHER-PROVI,MISCELLANEOUS FOOD STORES & CONVENIENCE STORES,GPC
WALSALL COUNCIL,HTTP://OPENDATACOMMUNITIES.ORG/ID/METROPOLITAN-DISTRICT-COUNCIL/WALSALL,30/06/2019,RESOURCES & TRANSFORMATION,ARTHUR BRETT CATER,05/04/2019,H59620190409ZFZIICHRP-1,47.85,CA OAKWOOD SPECIAL SCHOOL-FRUIT & VEGETABLES OTHER-PROVI,MISCELLANEOUS FOOD STORES & CONVENIENCE STORES,GPC
WALSALL COUNCIL,HTTP://OPENDATACOMMUNITIES.ORG/ID/METROPOLITAN-DISTRICT-COUNCIL/WALSALL,30/06/2019,CHILDRENS SERVICES,AMZNMKTPLACE,06/04/2019,H59620190409CUIOOBSZY-1,12.95,VIRTUAL SCHOOL - CENTRAL PUPIL-MISCELLANEOUS SUPPLIES,MISCELLANEOUS AND SPECIALTY RETAIL STORES,GPC
WALSALL COUNCIL,HTTP://OPENDATACOMMUNITIES.ORG/ID/METROPOLITAN-DISTRICT-COUNCIL/WALSALL,30/06/2019,ECONOMY & ENVIRONMENT,THE RANGE,06/04/2019,H59620190409EGDJSQJFW-1,1,LEATHER MUSEUM-BEVERAGES-PROVISIONS,DEPARTMENT STORES,GPC
WALSALL COUNCIL,HTTP://OPENDATACOMMUNITIES.ORG/ID/METROPOLITAN-DISTRICT-COUNCIL/WALSALL,30/06/2019,ECONOMY & ENVIRONMENT,THE RANGE,06/04/2019,H59620190409EGDJSQJFW-2,5.99,LEATHER MUSEUM-MATERIALS,DEPARTMENT STORES,GPC
WALSALL COUNCIL,HTTP://OPENDATACOMMUNITIES.ORG/ID/METROPOLITAN-DISTRICT-COUNCIL/WALSALL,30/06/2019,CHILDRENS SERVICES,RYMANS 1186,06/04/2019,H59620190409EYAKOKIKI-1,14.97,ADMINISTRATIVE SUPPLIES-STATIONERY & GENERAL OFFICE SU,"OFFICE, SCHOOL SUPPLY, AND STATIONERY STORES",GPC
WALSALL COUNCIL,HTTP://OPENDATACOMMUNITIES.ORG/ID/METROPOLITAN-DISTRICT-COUNCIL/WALSALL,30/06/2019,RESOURCES & TRANSFORMATION,AMZNMKTPLACE,06/04/2019,H59620190409IAKPRRXUY-1,26.99,PROGRAMME DELIVERY TEAM-STATIONERY & GENERAL OFFICE SU,MISCELLANEOUS AND SPECIALTY RETAIL STORES,GPC
WALSALL COUNCIL,HTTP://OPENDATACOMMUNITIES.ORG/ID/METROPOLITAN-DISTRICT-COUNCIL/WALSALL,30/06/2019,CHILDRENS SERVICES,AMZNMKTPLACE,06/04/2019,H59620190409JCGITAEYZ-1,26.48,ROSEDALE C.E. PRIMARY SCHOOL-MATERIALS,MISCELLANEOUS AND SPECIALTY RETAIL STORES,GPC
WALSALL COUNCIL,HTTP://OPENDATACOMMUNITIES.ORG/ID/METROPOLITAN-DISTRICT-COUNCIL/WALSALL,30/06/2019,CHILDRENS SERVICES,J D SPORTS 177,06/04/2019,H59620190409JUEKJMIID-1,75,REDRUTH ROAD-RESIDENTS PERSONAL EXPENSES-AL,SPORTING GOODS STORES,GPC
WALSALL COUNCIL,HTTP://OPENDATACOMMUNITIES.ORG/ID/METROPOLITAN-DISTRICT-COUNCIL/WALSALL,30/06/2019,CHILDRENS SERVICES,J D SPORTS 177,06/04/2019,H59620190409JUEKJMIID-2,50,REDRUTH ROAD-RESIDENTS PERSONAL EXPENSES-AL,SPORTING GOODS STORES,GPC
WALSALL COUNCIL,HTTP://OPENDATACOMMUNITIES.ORG/ID/METROPOLITAN-DISTRICT-COUNCIL/WALSALL,30/06/2019,CHILDRENS SERVICES (SCHOOLS),123 REG R/T,06/04/2019,H59620190409KOWZXNXIP-1,11.99,ADMINISTRATIVE SUPPLIES-MATERIALS,DIRECT MARKETING CONTINUITY SUBSCRIPTION MERCHANTS,GPC
WALSALL COUNCIL,HTTP://OPENDATACOMMUNITIES.ORG/ID/METROPOLITAN-DISTRICT-COUNCIL/WALSALL,30/06/2019,CHILDRENS SERVICES,CLIVE MARK SCHOOLWEAR,06/04/2019,H59620190409OHUUHWGPT-1,20.5,REDRUTH ROAD-RESIDENTS PERSONAL EXPENSES-AL,CLOTHING STORES,GPC
WALSALL COUNCIL,HTTP://OPENDATACOMMUNITIES.ORG/ID/METROPOLITAN-DISTRICT-COUNCIL/WALSALL,30/06/2019,CHILDRENS SERVICES,FOOTASYLUM,06/04/2019,H59620190409PIPMPFPST-1,54.99,REDRUTH ROAD-RESIDENTS PERSONAL EXPENSES-AL,SPORTING GOODS STORES,GPC
WALSALL COUNCIL,HTTP://OPENDATACOMMUNITIES.ORG/ID/METROPOLITAN-DISTRICT-COUNCIL/WALSALL,30/06/2019,ADULT SOCIAL CARE,AMAZON.CO.UK*MZ6KT71N4,06/04/2019,H59620190409QXDSWWLRL-1,48.37,ASC PARTNERSHIPS-MISCELLANEOUS SUPPLIES,OTHER DIRECT MARKETING-OTHER DIRECT MARKETERS,GPC
WALSALL COUNCIL,HTTP://OPENDATACOMMUNITIES.ORG/ID/METROPOLITAN-DISTRICT-COUNCIL/WALSALL,30/06/2019,CHILDRENS SERVICES,ASDA STORES LTD 4225,06/04/2019,H59620190409SCWUGLLVQ-1,21.1,REDRUTH ROAD-RESIDENTS PERSONAL EXPENSES-AL,GROCERY STORES AND SUPERMARKETS,GPC
WALSALL COUNCIL,HTTP://OPENDATACOMMUNITIES.ORG/ID/METROPOLITAN-DISTRICT-COUNCIL/WALSALL,30/06/2019,CHILDRENS SERVICES,ASDA STORES LTD 4225,06/04/2019,H59620190409SCWUGLLVQ-2,5.55,REDRUTH ROAD-RESIDENTS PERSONAL EXPENSES-AL,GROCERY STORES AND SUPERMARKETS,GPC
WALSALL COUNCIL,HTTP://OPENDATACOMMUNITIES.ORG/ID/METROPOLITAN-DISTRICT-COUNCIL/WALSALL,30/06/2019,CHILDRENS SERVICES,AMZNMKTPLACE,06/04/2019,H59620190409VVXAPBHED-1,9.58,ROSEDALE C.E. PRIMARY SCHOOL-MATERIALS,MISCELLANEOUS AND SPECIALTY RETAIL STORES,GPC
WALSALL COUNCIL,HTTP://OPENDATACOMMUNITIES.ORG/ID/METROPOLITAN-DISTRICT-COUNCIL/WALSALL,30/06/2019,CHILDRENS SERVICES,AMAZON.CO.UK*MZ0A331R4,06/04/2019,H59620190409XNBYYVJSB-1,9.65,CURRICULUM STOCK-MATERIALS,OTHER DIRECT MARKETING-OTHER DIRECT MARKETERS,GPC
WALSALL COUNCIL,HTTP://OPENDATACOMMUNITIES.ORG/ID/METROPOLITAN-DISTRICT-COUNCIL/WALSALL,30/06/2019,RESOURCES & TRANSFORMATION,COUNTY HOTEL - THE,06/04/2019,H59620190409YAYLVOBEB-1,413.55,BED & BREAKFAST PAYMENTS-HOTEL ACCOMMODATION-EMPLOYEES,"HOTELS, MOTELS, RESORTS",GPC
WALSALL COUNCIL,HTTP://OPENDATACOMMUNITIES.ORG/ID/METROPOLITAN-DISTRICT-COUNCIL/WALSALL,30/06/2019,CHILDRENS SERVICES,AMAZON.CO.UK*MZ4L18114,06/04/2019,H59620190409ZIMOKHIDB-1,26.97,ENGLISH DEPARTMENT-LIBRARY BOOKS,OTHER DIRECT MARKETING-OTHER DIRECT MARKETERS,GPC
WALSALL COUNCIL,HTTP://OPENDATACOMMUNITIES.ORG/ID/METROPOLITAN-DISTRICT-COUNCIL/WALSALL,30/06/2019,CHILDRENS SERVICES,WLY*COMPLETESAVE.CO.UK,06/04/2019,H59620190410DXKRLPDGS-1,-15,SPINDLETREE-TRANSFER PAYMENTS - SOCIAL SER,DIRECT MARKETING CONTINUITY SUBSCRIPTION MERCHANTS,GPC
WALSALL COUNCIL,HTTP://OPENDATACOMMUNITIES.ORG/ID/METROPOLITAN-DISTRICT-COUNCIL/WALSALL,30/06/2019,CHILDRENS SERVICES,WLY*COMPLETESAVE.CO.UK,06/04/2019,H59620190410QJWCOLXII-1,-15,SPINDLETREE-TRANSFER PAYMENTS - SOCIAL SER,DIRECT MARKETING CONTINUITY SUBSCRIPTION MERCHANTS,GPC
WALSALL COUNCIL,HTTP://OPENDATACOMMUNITIES.ORG/ID/METROPOLITAN-DISTRICT-COUNCIL/WALSALL,30/06/2019,CHILDRENS SERVICES,WLY*COMPLETESAVE.CO.UK,06/04/2019,H59620190410WXMJKSJWL-1,-15,SPINDLETREE-TRANSFER PAYMENTS - SOCIAL SER,DIRECT MARKETING CONTINUITY SUBSCRIPTION MERCHANTS,GPC
WALSALL COUNCIL,HTTP://OPENDATACOMMUNITIES.ORG/ID/METROPOLITAN-DISTRICT-COUNCIL/WALSALL,30/06/2019,CHILDRENS SERVICES,AMAZON.CO.UK*MZ3TF5PN4,07/04/2019,H59620190409FOSYYYNNE-1,52.72,CONTINGENCY-MATERIALS,OTHER DIRECT MARKETING-OTHER DIRECT MARKETERS,GPC
WALSALL COUNCIL,HTTP://OPENDATACOMMUNITIES.ORG/ID/METROPOLITAN-DISTRICT-COUNCIL/WALSALL,30/06/2019,RESOURCES & TRANSFORMATION,VIRGIN TRAINS,07/04/2019,H59620190409GYJYMDKED-1,6.1,CORPORATE MANAGEMENT TEAM-OFFICERS & STAFF PUBLIC TRANSP,PASSENGER RAILWAYS,GPC
WALSALL COUNCIL,HTTP://OPENDATACOMMUNITIES.ORG/ID/METROPOLITAN-DISTRICT-COUNCIL/WALSALL,30/06/2019,ECONOMY & ENVIRONMENT,AMZNMKTPLACE AMAZON.CO.UK,07/04/2019,H59620190409JUFGVPHIO-1,28.63,EXTEND-NEW-FURNITURE & EQUIPMENT,MISCELLANEOUS AND SPECIALTY RETAIL STORES,GPC
WALSALL COUNCIL,HTTP://OPENDATACOMMUNITIES.ORG/ID/METROPOLITAN-DISTRICT-COUNCIL/WALSALL,30/06/2019,ADULT SOCIAL CARE,AMAZON.CO.UK*MZ46P2PO4,07/04/2019,H59620190409KZMTXXDLG-1,63.83,ASC PARTNERSHIPS-MISCELLANEOUS SUPPLIES,OTHER DIRECT MARKETING-OTHER DIRECT MARKETERS,GPC
WALSALL COUNCIL,HTTP://OPENDATACOMMUNITIES.ORG/ID/METROPOLITAN-DISTRICT-COUNCIL/WALSALL,30/06/2019,CHILDRENS SERVICES,AMZNMKTPLACE,07/04/2019,H59620190409WGSTMRKLO-1,8.95,VIRTUAL SCHOOL - CENTRAL PUPIL-MISCELLANEOUS SUPPLIES,MISCELLANEOUS AND SPECIALTY RETAIL STORES,GPC
WALSALL COUNCIL,HTTP://OPENDATACOMMUNITIES.ORG/ID/METROPOLITAN-DISTRICT-COUNCIL/WALSALL,30/06/2019,CHILDRENS SERVICES,W M MORRISONS.COM,08/04/2019,H59620190410AGDKEUOAS-1,20.22,57 LICHFIELD ROAD-FOOD AND BEVERAGES-PROVISIONS,GROCERY STORES AND SUPERMARKETS,GPC
WALSALL COUNCIL,HTTP://OPENDATACOMMUNITIES.ORG/ID/METROPOLITAN-DISTRICT-COUNCIL/WALSALL,30/06/2019,CHILDRENS SERVICES,W M MORRISONS.COM,08/04/2019,H59620190410AGDKEUOAS-2,124.62,57 LICHFIELD ROAD-FOOD AND BEVERAGES-PROVISIONS,GROCERY STORES AND SUPERMARKETS,GPC
WALSALL COUNCIL,HTTP://OPENDATACOMMUNITIES.ORG/ID/METROPOLITAN-DISTRICT-COUNCIL/WALSALL,30/06/2019,RESOURCES & TRANSFORMATION,BLAKEMORE FOODSERVICE,08/04/2019,H59620190410AGPAKDAWS-1,357.56,CA BUSILL JONES PRIMARY SCHOOL-FROZEN FOODS-PROVISIONS,CATERERS,GPC
WALSALL COUNCIL,HTTP://OPENDATACOMMUNITIES.ORG/ID/METROPOLITAN-DISTRICT-COUNCIL/WALSALL,30/06/2019,RESOURCES & TRANSFORMATION,BLAKEMORE FOODSERVICE,08/04/2019,H59620190410AJZJHSBEI-1,2.42,CA COOPER JORDAN CE PRIMARY SC-DRY FOODS-PROVISIONS,CATERERS,GPC
WALSALL COUNCIL,HTTP://OPENDATACOMMUNITIES.ORG/ID/METROPOLITAN-DISTRICT-COUNCIL/WALSALL,30/06/2019,CHILDRENS SERVICES,WWW.ARGOS.CO.UK,08/04/2019,H59620190410AQAAFQMWB-1,399.98,TRANSITION AND LEAVING CARE PL-NEW-FURNITURE & EQUIPMENT,DISCOUNT STORES,GPC
WALSALL COUNCIL,HTTP://OPENDATACOMMUNITIES.ORG/ID/METROPOLITAN-DISTRICT-COUNCIL/WALSALL,30/06/2019,RESOURCES & TRANSFORMATION,JOHAL DAIRIES LTD,08/04/2019,H59620190410ARYYHWDTN-1,17.8,CA WATLING STREET PRIMARY SCHO-FOOD & DRINK SUPPLIES,OTHER NONDURABLE GOODS,GPC
WALSALL COUNCIL,HTTP://OPENDATACOMMUNITIES.ORG/ID/METROPOLITAN-DISTRICT-COUNCIL/WALSALL,30/06/2019,CHILDRENS SERVICES,WM MORRISON FOOD.COM,08/04/2019,H59620190410AVTYPSLRJ-1,29.58,PELSALL VILLAGE SCHOOL-FOOD AND BEVERAGES-PROVISIONS,GROCERY STORES AND SUPERMARKETS,GPC
WALSALL COUNCIL,HTTP://OPENDATACOMMUNITIES.ORG/ID/METROPOLITAN-DISTRICT-COUNCIL/WALSALL,30/06/2019,CHILDRENS SERVICES,WM MORRISON FOOD.COM,08/04/2019,H59620190410AVTYPSLRJ-2,55.84,PELSALL VILLAGE SCHOOL-FOOD AND BEVERAGES-PROVISIONS,GROCERY STORES AND SUPERMARKETS,GPC
WALSALL COUNCIL,HTTP://OPENDATACOMMUNITIES.ORG/ID/METROPOLITAN-DISTRICT-COUNCIL/WALSALL,30/06/2019,RESOURCES & TRANSFORMATION,JOHAL DAIRIES LTD,08/04/2019,H59620190410BFMXHRDUM-1,10.68,CA LITTLE BLOXWICH CE PRIMARY -FOOD & DRINK SUPPLIES,OTHER NONDURABLE GOODS,GPC
WALSALL COUNCIL,HTTP://OPENDATACOMMUNITIES.ORG/ID/METROPOLITAN-DISTRICT-COUNCIL/WALSALL,30/06/2019,RESOURCES & TRANSFORMATION,BLAKEMORE FOODSERVICE,08/04/2019,H59620190410BQVLZOOGG-1,184.47,CA CROFT COMMUNITY PRIMARY SCH-DRY FOODS-PROVISIONS,CATERERS,GPC
WALSALL COUNCIL,HTTP://OPENDATACOMMUNITIES.ORG/ID/METROPOLITAN-DISTRICT-COUNCIL/WALSALL,30/06/2019,RESOURCES & TRANSFORMATION,JOHAL DAIRIES LTD,08/04/2019,H59620190410BYOCEGOTQ-1,6.87,CA OLD HALL SPECIAL SCHOOL-FOOD & DRINK SUPPLIES,OTHER NONDURABLE GOODS,GPC
WALSALL COUNCIL,HTTP://OPENDATACOMMUNITIES.ORG/ID/METROPOLITAN-DISTRICT-COUNCIL/WALSALL,30/06/2019,SOCIAL CARE & INCLUSION,AMZNMKTPLACE,08/04/2019,H59620190410CHIIUKACS-1,57.9,GOSCOTE-MISCELLANEOUS SUPPLIES,MISCELLANEOUS AND SPECIALTY RETAIL STORES,GPC
WALSALL COUNCIL,HTTP://OPENDATACOMMUNITIES.ORG/ID/METROPOLITAN-DISTRICT-COUNCIL/WALSALL,30/06/2019,RESOURCES & TRANSFORMATION,BLAKEMORE FOODSERVICE,08/04/2019,H59620190410CIRMQCQWM-1,45.04,CA RADLEYS PRIMARY SCHOOL-DRY FOODS-PROVISIONS,CATERERS,GPC
WALSALL COUNCIL,HTTP://OPENDATACOMMUNITIES.ORG/ID/METROPOLITAN-DISTRICT-COUNCIL/WALSALL,30/06/2019,RESOURCES & TRANSFORMATION,BLAKEMORE FOODSERVICE,08/04/2019,H59620190410CIRMQCQWM-2,383.01,CA RADLEYS PRIMARY SCHOOL-DRY FOODS-PROVISIONS,CATERERS,GPC
WALSALL COUNCIL,HTTP://OPENDATACOMMUNITIES.ORG/ID/METROPOLITAN-DISTRICT-COUNCIL/WALSALL,30/06/2019,RESOURCES & TRANSFORMATION,BLAKEMORE FOODSERVICE,08/04/2019,H59620190410CLSKNDIUU-1,2.42,CA CASTLEFORT JMI SCHOOL-DRY FOODS-PROVISIONS,CATERERS,GPC
WALSALL COUNCIL,HTTP://OPENDATACOMMUNITIES.ORG/ID/METROPOLITAN-DISTRICT-COUNCIL/WALSALL,30/06/2019,ECONOMY & ENVIRONMENT,AMZNMKTPLACE,08/04/2019,H59620190410CZHPOEGKO-1,7.23,COMMUNITY LIASON-MATERIALS,MISCELLANEOUS AND SPECIALTY RETAIL STORES,GPC
WALSALL COUNCIL,HTTP://OPENDATACOMMUNITIES.ORG/ID/METROPOLITAN-DISTRICT-COUNCIL/WALSALL,30/06/2019,CHILDRENS SERVICES,CURRYS ONLINE,08/04/2019,H59620190410DBITJBNKB-1,184,TRANSITION AND LEAVING CARE PL-PURCHASE OF FURNITURE & EQUIPM,ELECTRONIC SALES,GPC
WALSALL COUNCIL,HTTP://OPENDATACOMMUNITIES.ORG/ID/METROPOLITAN-DISTRICT-COUNCIL/WALSALL,30/06/2019,CHILDRENS SERVICES,O2,08/04/2019,H59620190410DMPNMARGO-1,35.22,ADMIN-MOBILE PHONES,TELECOMMUNICATION SERVICES,GPC
WALSALL COUNCIL,HTTP://OPENDATACOMMUNITIES.ORG/ID/METROPOLITAN-DISTRICT-COUNCIL/WALSALL,30/06/2019,CHILDRENS SERVICES,PARENTPAY E-COM R,08/04/2019,H59620190410DPDVAFBEU-1,10,SPINDLETREE-FOOD AND BEVERAGES-PROVISIONS,"COLLEGES, UNIVERSITIES, PROFESSIONAL SCHOOLS",GPC
WALSALL COUNCIL,HTTP://OPENDATACOMMUNITIES.ORG/ID/METROPOLITAN-DISTRICT-COUNCIL/WALSALL,30/06/2019,RESOURCES & TRANSFORMATION,BLAKEMORE FOODSERVICE,08/04/2019,H59620190410DQFBCVWLZ-1,71.15,CA KINGSHILL SCHOOL-FROZEN FOODS-PROVISIONS,CATERERS,GPC
WALSALL COUNCIL,HTTP://OPENDATACOMMUNITIES.ORG/ID/METROPOLITAN-DISTRICT-COUNCIL/WALSALL,30/06/2019,RESOURCES & TRANSFORMATION,BLAKEMORE FOODSERVICE,08/04/2019,H59620190410DTXKNYUJA-1,115.2,CA LINDENS PRIMARY SCHOOL-FROZEN FOODS-PROVISIONS,CATERERS,GPC
WALSALL COUNCIL,HTTP://OPENDATACOMMUNITIES.ORG/ID/METROPOLITAN-DISTRICT-COUNCIL/WALSALL,30/06/2019,RESOURCES & TRANSFORMATION,BLAKEMORE FOODSERVICE,08/04/2019,H59620190410DTXKNYUJA-2,198.25,CA LINDENS PRIMARY SCHOOL-FROZEN FOODS-PROVISIONS,CATERERS,GPC
WALSALL COUNCIL,HTTP://OPENDATACOMMUNITIES.ORG/ID/METROPOLITAN-DISTRICT-COUNCIL/WALSALL,30/06/2019,RESOURCES & TRANSFORMATION,WILKO.COM,08/04/2019,H59620190410DWTQBGWUG-1,129,TENANCY SERVICE-PURCHASE OF FURNITURE & EQUIPM,MISCELLANEOUS GENERAL MERCHANDISE,GPC
WALSALL COUNCIL,HTTP://OPENDATACOMMUNITIES.ORG/ID/METROPOLITAN-DISTRICT-COUNCIL/WALSALL,30/06/2019,RESOURCES & TRANSFORMATION,BLAKEMORE FOODSERVICE,08/04/2019,H59620190410DYMDSJSIF-1,424.18,CA ST JOHNS C.E. PRIMARY SCHOO-DRY FOODS-PROVISIONS,CATERERS,GPC
WALSALL COUNCIL,HTTP://OPENDATACOMMUNITIES.ORG/ID/METROPOLITAN-DISTRICT-COUNCIL/WALSALL,30/06/2019,CHILDRENS SERVICES,REGISTRATION SERVICES,08/04/2019,H59620190410EHKQRVWUR-1,11,SAFEGUARDING & FAMILY SUPPORT-OTHER EMPLOYEES FEES & EXPENSE,OTHER RECREATION SERVICES,GPC
WALSALL COUNCIL,HTTP://OPENDATACOMMUNITIES.ORG/ID/METROPOLITAN-DISTRICT-COUNCIL/WALSALL,30/06/2019,CHILDRENS SERVICES,WWW.PARENTMAIL.CO.,08/04/2019,H59620190410ERXYJHSVK-1,15,REDRUTH ROAD-FOOD AND BEVERAGES-PROVISIONS,OTHER SCHOOLS AND EDUCATIONAL SERVICES,GPC
WALSALL COUNCIL,HTTP://OPENDATACOMMUNITIES.ORG/ID/METROPOLITAN-DISTRICT-COUNCIL/WALSALL,30/06/2019,ECONOMY & ENVIRONMENT,B & Q 1276,08/04/2019,H59620190410ETEDZNHKC-1,23.22,DARLASTON LEISURE CENTRE-MATERIALS,LUMBER & BUILDING MATERIALS STORES,GPC
WALSALL COUNCIL,HTTP://OPENDATACOMMUNITIES.ORG/ID/METROPOLITAN-DISTRICT-COUNCIL/WALSALL,30/06/2019,CHILDRENS SERVICES,WM MORRISON FOOD.COM,08/04/2019,H59620190410EWETDIUHH-1,22.8,BIRCHILLS CHILDCARE SERVICES-FOOD AND BEVERAGES-PROVISIONS,GROCERY STORES AND SUPERMARKETS,GPC
WALSALL COUNCIL,HTTP://OPENDATACOMMUNITIES.ORG/ID/METROPOLITAN-DISTRICT-COUNCIL/WALSALL,30/06/2019,CHILDRENS SERVICES,WM MORRISON FOOD.COM,08/04/2019,H59620190410EWETDIUHH-2,125.03,BIRCHILLS CHILDCARE SERVICES-FOOD AND BEVERAGES-PROVISIONS,GROCERY STORES AND SUPERMARKETS,GPC
WALSALL COUNCIL,HTTP://OPENDATACOMMUNITIES.ORG/ID/METROPOLITAN-DISTRICT-COUNCIL/WALSALL,30/06/2019,CHILDRENS SERVICES,W M MORRISONS.COM,08/04/2019,H59620190410EWZYNNTZO-1,22.8,REDRUTH ROAD-FOOD AND BEVERAGES-PROVISIONS,GROCERY STORES AND SUPERMARKETS,GPC
WALSALL COUNCIL,HTTP://OPENDATACOMMUNITIES.ORG/ID/METROPOLITAN-DISTRICT-COUNCIL/WALSALL,30/06/2019,CHILDRENS SERVICES,W M MORRISONS.COM,08/04/2019,H59620190410EWZYNNTZO-2,136.1,REDRUTH ROAD-FOOD AND BEVERAGES-PROVISIONS,GROCERY STORES AND SUPERMARKETS,GPC
WALSALL COUNCIL,HTTP://OPENDATACOMMUNITIES.ORG/ID/METROPOLITAN-DISTRICT-COUNCIL/WALSALL,30/06/2019,RESOURCES & TRANSFORMATION,JOHAL DAIRIES LTD,08/04/2019,H59620190410EYUXYEYGB-1,1.78,CA ST JOHNS C.E. PRIMARY SCHOO-FOOD & DRINK SUPPLIES,OTHER NONDURABLE GOODS,GPC
WALSALL COUNCIL,HTTP://OPENDATACOMMUNITIES.ORG/ID/METROPOLITAN-DISTRICT-COUNCIL/WALSALL,30/06/2019,RESOURCES & TRANSFORMATION,JOHAL LUCKY STORES,08/04/2019,H59620190410FFUXLRRVZ-1,10,TENANCY SERVICE-ELECTRICITY,GROCERY STORES AND SUPERMARKETS,GPC
WALSALL COUNCIL,HTTP://OPENDATACOMMUNITIES.ORG/ID/METROPOLITAN-DISTRICT-COUNCIL/WALSALL,30/06/2019,CHILDRENS SERVICES,TOOLSTATION LTD,08/04/2019,H59620190410FHTGIKISJ-1,18.47,REDRUTH ROAD-OPERATIONAL MAINTENANCE,HARDWARE STORES,GPC
WALSALL COUNCIL,HTTP://OPENDATACOMMUNITIES.ORG/ID/METROPOLITAN-DISTRICT-COUNCIL/WALSALL,30/06/2019,CHILDRENS SERVICES,VIRTUAL COLLEGE LIMITE,08/04/2019,H59620190410FIJTFJQTH-1,86.4,57 LICHFIELD ROAD-EXTERNAL TRAINING,OTHER SCHOOLS AND EDUCATIONAL SERVICES,GPC
WALSALL COUNCIL,HTTP://OPENDATACOMMUNITIES.ORG/ID/METROPOLITAN-DISTRICT-COUNCIL/WALSALL,30/06/2019,RESOURCES & TRANSFORMATION,BLAKEMORE FOODSERVICE,08/04/2019,H59620190410FWXQSIWQW-1,56.79,CA CASTLEFORT JMI SCHOOL-DRY FOODS-PROVISIONS,CATERERS,GPC
WALSALL COUNCIL,HTTP://OPENDATACOMMUNITIES.ORG/ID/METROPOLITAN-DISTRICT-COUNCIL/WALSALL,30/06/2019,RESOURCES & TRANSFORMATION,JOHAL LUCKY STORES,08/04/2019,H59620190410FXPKBLGXE-1,45,TENANCY SERVICE-ELECTRICITY,GROCERY STORES AND SUPERMARKETS,GPC
WALSALL COUNCIL,HTTP://OPENDATACOMMUNITIES.ORG/ID/METROPOLITAN-DISTRICT-COUNCIL/WALSALL,30/06/2019,RESOURCES & TRANSFORMATION,JOHAL DAIRIES LTD,08/04/2019,H59620190410FXZJEMEVX-1,17.8,CA RADLEYS PRIMARY SCHOOL-FOOD & DRINK SUPPLIES,OTHER NONDURABLE GOODS,GPC
WALSALL COUNCIL,HTTP://OPENDATACOMMUNITIES.ORG/ID/METROPOLITAN-DISTRICT-COUNCIL/WALSALL,30/06/2019,CHILDRENS SERVICES,RB KEN&CHELSEA,08/04/2019,H59620190410FYHEQLOFW-1,11,SAFEGUARDING & FAMILY SUPPORT-FEES & LICENCES,GOVERNMENT SERVICES,GPC
WALSALL COUNCIL,HTTP://OPENDATACOMMUNITIES.ORG/ID/METROPOLITAN-DISTRICT-COUNCIL/WALSALL,30/06/2019,CHILDRENS SERVICES,W M MORRISONS.COM,08/04/2019,H59620190410GHGJOCCVF-1,22.38,BLUEBELLS-FOOD AND BEVERAGES-PROVISIONS,GROCERY STORES AND SUPERMARKETS,GPC
WALSALL COUNCIL,HTTP://OPENDATACOMMUNITIES.ORG/ID/METROPOLITAN-DISTRICT-COUNCIL/WALSALL,30/06/2019,CHILDRENS SERVICES,W M MORRISONS.COM,08/04/2019,H59620190410GHGJOCCVF-2,124.77,BLUEBELLS-FOOD AND BEVERAGES-PROVISIONS,GROCERY STORES AND SUPERMARKETS,GPC
WALSALL COUNCIL,HTTP://OPENDATACOMMUNITIES.ORG/ID/METROPOLITAN-DISTRICT-COUNCIL/WALSALL,30/06/2019,RESOURCES & TRANSFORMATION,BLAKEMORE FOODSERVICE,08/04/2019,H59620190410GKNOCYZIF-1,-15.16,CA KINGSHILL SCHOOL-FROZEN FOODS-PROVISIONS,CATERERS,GPC
WALSALL COUNCIL,HTTP://OPENDATACOMMUNITIES.ORG/ID/METROPOLITAN-DISTRICT-COUNCIL/WALSALL,30/06/2019,RESOURCES & TRANSFORMATION,JOHAL DAIRIES LTD,08/04/2019,H59620190410GOFLZIUNI-1,17.4,CA RUSHALL JMI SCHOOL-FOOD & DRINK SUPPLIES,OTHER NONDURABLE GOODS,GPC
WALSALL COUNCIL,HTTP://OPENDATACOMMUNITIES.ORG/ID/METROPOLITAN-DISTRICT-COUNCIL/WALSALL,30/06/2019,RESOURCES & TRANSFORMATION,AMZNMKTPLACE AMAZON.CO.UK,08/04/2019,H59620190410GTNZCRDYD-1,160.4,ADMIN SUPPORT-STATIONERY & GENERAL OFFICE SU,MISCELLANEOUS AND SPECIALTY RETAIL STORES,GPC
WALSALL COUNCIL,HTTP://OPENDATACOMMUNITIES.ORG/ID/METROPOLITAN-DISTRICT-COUNCIL/WALSALL,30/06/2019,ECONOMY & ENVIRONMENT,HOME BARGAINS WOLVERHA,08/04/2019,H59620190410HOJYAKWTF-1,6.66,"WALSALL TOWN HALL-CROCKERY,HARDWARE & DISPOSABLE",HARDWARE STORES,GPC
WALSALL COUNCIL,HTTP://OPENDATACOMMUNITIES.ORG/ID/METROPOLITAN-DISTRICT-COUNCIL/WALSALL,30/06/2019,RESOURCES & TRANSFORMATION,BLAKEMORE FOODSERVICE,08/04/2019,H59620190410HRHOTRKKB-1,163.36,CA KINGSHILL SCHOOL-FROZEN FOODS-PROVISIONS,CATERERS,GPC
WALSALL COUNCIL,HTTP://OPENDATACOMMUNITIES.ORG/ID/METROPOLITAN-DISTRICT-COUNCIL/WALSALL,30/06/2019,RESOURCES & TRANSFORMATION,TRAVEL WEST MIDLAN,08/04/2019,H59620190410HUDYTLCTO-1,12,ACCOMMODATION SERVICES MANAGEM-OFFICERS & STAFF PUBLIC TRANSP,BUS LINES,GPC
WALSALL COUNCIL,HTTP://OPENDATACOMMUNITIES.ORG/ID/METROPOLITAN-DISTRICT-COUNCIL/WALSALL,30/06/2019,CHILDRENS SERVICES,PAYPAL *LAMPSHOPONL,08/04/2019,H59620190410HUGQAGMSJ-1,49.45,ELMWOOD SCHOOL-OTHER-OP MTCE,MISCELLANEOUS HOUSE FURNISHING SPECIALTY SHOPS,GPC
WALSALL COUNCIL,HTTP://OPENDATACOMMUNITIES.ORG/ID/METROPOLITAN-DISTRICT-COUNCIL/WALSALL,30/06/2019,CHILDRENS SERVICES,WWW.ARGOS.CO.UK,08/04/2019,H59620190410IEXGNLPOW-1,200.95,TRANSITION AND LEAVING CARE PL-NEW-FURNITURE & EQUIPMENT,DISCOUNT STORES,GPC
WALSALL COUNCIL,HTTP://OPENDATACOMMUNITIES.ORG/ID/METROPOLITAN-DISTRICT-COUNCIL/WALSALL,30/06/2019,CHILDRENS SERVICES,WWW.BARRBEACON.WALSALL,08/04/2019,H59620190410IHIHGFYTF-1,15,REDRUTH ROAD-FOOD AND BEVERAGES-PROVISIONS,"SCHOOLS, ELEMENTARY AND SECONDARY",GPC
WALSALL COUNCIL,HTTP://OPENDATACOMMUNITIES.ORG/ID/METROPOLITAN-DISTRICT-COUNCIL/WALSALL,30/06/2019,RESOURCES & TRANSFORMATION,JOHAL DAIRIES LTD,08/04/2019,H59620190410IVINQIIOQ-1,31.88,CA ABBEY PRIMARY SCHOOL-FOOD & DRINK SUPPLIES,OTHER NONDURABLE GOODS,GPC
WALSALL COUNCIL,HTTP://OPENDATACOMMUNITIES.ORG/ID/METROPOLITAN-DISTRICT-COUNCIL/WALSALL,30/06/2019,RESOURCES & TRANSFORMATION,JOHAL DAIRIES LTD,08/04/2019,H59620190410IYYLGPNTJ-1,36.4,CA LEIGHSWOOD PRIMARY SCHOOL-FOOD & DRINK SUPPLIES,OTHER NONDURABLE GOODS,GPC
WALSALL COUNCIL,HTTP://OPENDATACOMMUNITIES.ORG/ID/METROPOLITAN-DISTRICT-COUNCIL/WALSALL,30/06/2019,RESOURCES & TRANSFORMATION,BLAKEMORE FOODSERVICE,08/04/2019,H59620190410JCHXBSLRI-1,374.92,CA BEACON PRIMARY SCHOOL-FROZEN FOODS-PROVISIONS,CATERERS,GPC
WALSALL COUNCIL,HTTP://OPENDATACOMMUNITIES.ORG/ID/METROPOLITAN-DISTRICT-COUNCIL/WALSALL,30/06/2019,RESOURCES & TRANSFORMATION,BLAKEMORE FOODSERVICE,08/04/2019,H59620190410JCHXBSLRI-2,96.43,CA BEACON PRIMARY SCHOOL-FROZEN FOODS-PROVISIONS,CATERERS,GPC
WALSALL COUNCIL,HTTP://OPENDATACOMMUNITIES.ORG/ID/METROPOLITAN-DISTRICT-COUNCIL/WALSALL,30/06/2019,SOCIAL CARE & INCLUSION,ASN FIRST AID AND HYGIENE,08/04/2019,H59620190410JWSOWQSVZ-1,10.74,GOSCOTE-MEDICAL REQUISITES-MATERIALS,DENTAL/LABORATORY/MEDICAL EQUIPMENT & SUPPLIES,GPC
WALSALL COUNCIL,HTTP://OPENDATACOMMUNITIES.ORG/ID/METROPOLITAN-DISTRICT-COUNCIL/WALSALL,30/06/2019,RESOURCES & TRANSFORMATION,JOHAL DAIRIES LTD,08/04/2019,H59620190410KMQJCSSMM-1,37.76,CA BARCROFT D/C-FOOD & DRINK SUPPLIES,OTHER NONDURABLE GOODS,GPC
WALSALL COUNCIL,HTTP://OPENDATACOMMUNITIES.ORG/ID/METROPOLITAN-DISTRICT-COUNCIL/WALSALL,30/06/2019,RESOURCES & TRANSFORMATION,BLAKEMORE FOODSERVICE,08/04/2019,H59620190410KTGDBRKHC-1,63.36,CA COOPER JORDAN CE PRIMARY SC-DRY FOODS-PROVISIONS,CATERERS,GPC
WALSALL COUNCIL,HTTP://OPENDATACOMMUNITIES.ORG/ID/METROPOLITAN-DISTRICT-COUNCIL/WALSALL,30/06/2019,RESOURCES & TRANSFORMATION,BLAKEMORE FOODSERVICE,08/04/2019,H59620190410KTGDBRKHC-2,207.39,CA COOPER JORDAN CE PRIMARY SC-DRY FOODS-PROVISIONS,CATERERS,GPC
WALSALL COUNCIL,HTTP://OPENDATACOMMUNITIES.ORG/ID/METROPOLITAN-DISTRICT-COUNCIL/WALSALL,30/06/2019,RESOURCES & TRANSFORMATION,BLAKEMORE FOODSERVICE,08/04/2019,H59620190410LURDRWCWZ-1,-10.26,CA TOWN HALL RESTAURANT - CATE-DRY FOODS-PROVISIONS,CATERERS,GPC
WALSALL COUNCIL,HTTP://OPENDATACOMMUNITIES.ORG/ID/METROPOLITAN-DISTRICT-COUNCIL/WALSALL,30/06/2019,RESOURCES & TRANSFORMATION,JOHAL DAIRIES LTD,08/04/2019,H59620190410MAFMSAKUH-1,21.94,CA CASTLEFORT JMI SCHOOL-FOOD & DRINK SUPPLIES,OTHER NONDURABLE GOODS,GPC
WALSALL COUNCIL,HTTP://OPENDATACOMMUNITIES.ORG/ID/METROPOLITAN-DISTRICT-COUNCIL/WALSALL,30/06/2019,CHILDRENS SERVICES,CARD FACTORY,08/04/2019,H59620190410MJHTPQKNL-1,6,CHILDRENS UNIVERSITY-MATERIALS,"CARD, GIFT, NOVELTY, AND SOUVENIR SHOPS",GPC
WALSALL COUNCIL,HTTP://OPENDATACOMMUNITIES.ORG/ID/METROPOLITAN-DISTRICT-COUNCIL/WALSALL,30/06/2019,RESOURCES & TRANSFORMATION,JOHAL DAIRIES LTD,08/04/2019,H59620190410MPLSWEMNT-1,34.15,CA MOORCROFT WOOD-FOOD & DRINK SUPPLIES,OTHER NONDURABLE GOODS,GPC
WALSALL COUNCIL,HTTP://OPENDATACOMMUNITIES.ORG/ID/METROPOLITAN-DISTRICT-COUNCIL/WALSALL,30/06/2019,ECONOMY & ENVIRONMENT,WILKO.COM,08/04/2019,H59620190410MRMKKSXML-1,24,BLOXWICH LEISURE CENTRE-CLEANING MATERIALS,MISCELLANEOUS GENERAL MERCHANDISE,GPC
WALSALL COUNCIL,HTTP://OPENDATACOMMUNITIES.ORG/ID/METROPOLITAN-DISTRICT-COUNCIL/WALSALL,30/06/2019,RESOURCES & TRANSFORMATION,ACCA,08/04/2019,H59620190410MYIAGWOWL-1,136,FINANCE TRAINING-EXTERNAL TRAINING,"ASSOCIATIONS-CIVIC, SOCIAL, AND FRATERNAL",GPC
WALSALL COUNCIL,HTTP://OPENDATACOMMUNITIES.ORG/ID/METROPOLITAN-DISTRICT-COUNCIL/WALSALL,30/06/2019,RESOURCES & TRANSFORMATION,JOHAL DAIRIES LTD,08/04/2019,H59620190410NJPTMRUNF-1,17.36,CA LINDENS PRIMARY SCHOOL-FOOD & DRINK SUPPLIES,OTHER NONDURABLE GOODS,GPC
WALSALL COUNCIL,HTTP://OPENDATACOMMUNITIES.ORG/ID/METROPOLITAN-DISTRICT-COUNCIL/WALSALL,30/06/2019,RESOURCES & TRANSFORMATION,BLAKEMORE FOODSERVICE,08/04/2019,H59620190410NOEPZCSQZ-1,344.66,CA RADLEYS PRIMARY SCHOOL-FROZEN FOODS-PROVISIONS,CATERERS,GPC
WALSALL COUNCIL,HTTP://OPENDATACOMMUNITIES.ORG/ID/METROPOLITAN-DISTRICT-COUNCIL/WALSALL,30/06/2019,RESOURCES & TRANSFORMATION,BLAKEMORE FOODSERVICE,08/04/2019,H59620190410NVTCVQRCX-1,242.93,CA BARCROFT D/C-FROZEN FOODS-PROVISIONS,CATERERS,GPC
WALSALL COUNCIL,HTTP://OPENDATACOMMUNITIES.ORG/ID/METROPOLITAN-DISTRICT-COUNCIL/WALSALL,30/06/2019,RESOURCES & TRANSFORMATION,BLAKEMORE FOODSERVICE,08/04/2019,H59620190410NVTCVQRCX-2,68.88,CA ELMWOOD SPECIAL SCHOOL-FROZEN FOODS-PROVISIONS,CATERERS,GPC
WALSALL COUNCIL,HTTP://OPENDATACOMMUNITIES.ORG/ID/METROPOLITAN-DISTRICT-COUNCIL/WALSALL,30/06/2019,ECONOMY & ENVIRONMENT,DULUX DECORATOR CENTRE,08/04/2019,H59620190410NYLOQGWWU-1,19.19,DEPOT-MATERIALS,"PAINTS, VARNISHES, AND SUPPLIES",GPC
WALSALL COUNCIL,HTTP://OPENDATACOMMUNITIES.ORG/ID/METROPOLITAN-DISTRICT-COUNCIL/WALSALL,30/06/2019,RESOURCES & TRANSFORMATION,BLAKEMORE FOODSERVICE,08/04/2019,H59620190410OBBNRINYN-1,108.61,CA MOORCROFT WOOD-FROZEN FOODS-PROVISIONS,CATERERS,GPC
WALSALL COUNCIL,HTTP://OPENDATACOMMUNITIES.ORG/ID/METROPOLITAN-DISTRICT-COUNCIL/WALSALL,30/06/2019,RESOURCES & TRANSFORMATION,NOBISCO LIMITED,08/04/2019,H59620190410OLGLLGBWM-1,16.81,CA CROFT COMMUNITY PRIMARY SCH-DISPOSABLES-PROVISIONS,OTHER INDUSTRIAL SUPPLIES,GPC
WALSALL COUNCIL,HTTP://OPENDATACOMMUNITIES.ORG/ID/METROPOLITAN-DISTRICT-COUNCIL/WALSALL,30/06/2019,ECONOMY & ENVIRONMENT,TROPICANA HEALTH & FIT,08/04/2019,H59620190410OYKXNSFWI-1,69.08,BLOXWICH LEISURE CENTRE-FOOD AND BEVERAGES-PROVISIONS,MISCELLANEOUS FOOD STORES & CONVENIENCE STORES,GPC
WALSALL COUNCIL,HTTP://OPENDATACOMMUNITIES.ORG/ID/METROPOLITAN-DISTRICT-COUNCIL/WALSALL,30/06/2019,RESOURCES & TRANSFORMATION,REGISTRATION SERVICES,08/04/2019,H59620190410PKRDKPGLY-1,35,YOUNG PERSONS HOMELESS SERVICE-MISCELLANEOUS SUPPLIES,OTHER RECREATION SERVICES,GPC
WALSALL COUNCIL,HTTP://OPENDATACOMMUNITIES.ORG/ID/METROPOLITAN-DISTRICT-COUNCIL/WALSALL,30/06/2019,RESOURCES & TRANSFORMATION,HOTEL ON BOOKING.COM B.CO,08/04/2019,H59620190410PUFNQUPFH-1,36,BED & BREAKFAST PAYMENTS-BED & BREAKFAST PAYMENTS,"HOTELS, MOTELS, RESORTS",GPC
WALSALL COUNCIL,HTTP://OPENDATACOMMUNITIES.ORG/ID/METROPOLITAN-DISTRICT-COUNCIL/WALSALL,30/06/2019,SOCIAL CARE & INCLUSION,ASN FIRST AID AND HYGIENE,08/04/2019,H59620190410PWDVQFNEY-1,64.44,GOSCOTE-MEDICAL REQUISITES-MATERIALS,DENTAL/LABORATORY/MEDICAL EQUIPMENT & SUPPLIES,GPC
WALSALL COUNCIL,HTTP://OPENDATACOMMUNITIES.ORG/ID/METROPOLITAN-DISTRICT-COUNCIL/WALSALL,30/06/2019,RESOURCES & TRANSFORMATION,JOHAL DAIRIES LTD,08/04/2019,H59620190410QKICNLQYY-1,26.7,CA COOPER JORDAN CE PRIMARY SC-FOOD & DRINK SUPPLIES,OTHER NONDURABLE GOODS,GPC
WALSALL COUNCIL,HTTP://OPENDATACOMMUNITIES.ORG/ID/METROPOLITAN-DISTRICT-COUNCIL/WALSALL,30/06/2019,RESOURCES & TRANSFORMATION,TRAVEL WEST MIDLAN,08/04/2019,H59620190410QOMNYDVHS-1,66,WALSALL CRISIS SUPPORT SCHEME-OFFICERS & STAFF PUBLIC TRANSP,BUS LINES,GPC
WALSALL COUNCIL,HTTP://OPENDATACOMMUNITIES.ORG/ID/METROPOLITAN-DISTRICT-COUNCIL/WALSALL,30/06/2019,RESOURCES & TRANSFORMATION,JOHAL DAIRIES LTD,08/04/2019,H59620190410QSDKLGWID-1,39.36,CA ST MICHAELS C.E. PRIMARY SC-FOOD & DRINK SUPPLIES,OTHER NONDURABLE GOODS,GPC
WALSALL COUNCIL,HTTP://OPENDATACOMMUNITIES.ORG/ID/METROPOLITAN-DISTRICT-COUNCIL/WALSALL,30/06/2019,RESOURCES & TRANSFORMATION,JOHAL DAIRIES LTD,08/04/2019,H59620190410QVFPHPKNO-1,18.72,CA TOWN HALL RESTAURANT - CATE-FOOD & DRINK SUPPLIES,OTHER NONDURABLE GOODS,GPC
WALSALL COUNCIL,HTTP://OPENDATACOMMUNITIES.ORG/ID/METROPOLITAN-DISTRICT-COUNCIL/WALSALL,30/06/2019,RESOURCES & TRANSFORMATION,WWW.SCC.COM,08/04/2019,H59620190410RGBBNOPWU-1,39929.4,RECHARGEABLE EQUIPMENT-COMPUTER EQUIPMENT,"COMPUTERS, COMPUTER PERIPHERAL EQUIPMENT, SOFTWARE",GPC
WALSALL COUNCIL,HTTP://OPENDATACOMMUNITIES.ORG/ID/METROPOLITAN-DISTRICT-COUNCIL/WALSALL,30/06/2019,CHILDRENS SERVICES,JOHAL DAIRIES LTD,08/04/2019,H59620190410RUGULDSMR-1,7.2,57 LICHFIELD ROAD-FOOD & DRINK SUPPLIES,OTHER NONDURABLE GOODS,GPC
WALSALL COUNCIL,HTTP://OPENDATACOMMUNITIES.ORG/ID/METROPOLITAN-DISTRICT-COUNCIL/WALSALL,30/06/2019,RESOURCES & TRANSFORMATION,JOHAL DAIRIES LTD,08/04/2019,H59620190410RXSNEGLBY-1,3.56,CA WALSALL WOOD PRIMARY SCHOOL-FOOD & DRINK SUPPLIES,OTHER NONDURABLE GOODS,GPC
WALSALL COUNCIL,HTTP://OPENDATACOMMUNITIES.ORG/ID/METROPOLITAN-DISTRICT-COUNCIL/WALSALL,30/06/2019,RESOURCES & TRANSFORMATION,JOHAL DAIRIES LTD,08/04/2019,H59620190410RYVPJRFGR-1,34.26,CA KINGSHILL SCHOOL-FOOD & DRINK SUPPLIES,OTHER NONDURABLE GOODS,GPC
WALSALL COUNCIL,HTTP://OPENDATACOMMUNITIES.ORG/ID/METROPOLITAN-DISTRICT-COUNCIL/WALSALL,30/06/2019,RESOURCES & TRANSFORMATION,JOHAL DAIRIES LTD,08/04/2019,H59620190410SPICNCSKP-1,42.77,CA ELMORE GREEN PRIMARY SCHOOL-FOOD & DRINK SUPPLIES,OTHER NONDURABLE GOODS,GPC
WALSALL COUNCIL,HTTP://OPENDATACOMMUNITIES.ORG/ID/METROPOLITAN-DISTRICT-COUNCIL/WALSALL,30/06/2019,RESOURCES & TRANSFORMATION,BLAKEMORE FOODSERVICE,08/04/2019,H59620190410STICJOXWM-1,15.16,CA BARCROFT D/C-FROZEN FOODS-PROVISIONS,CATERERS,GPC
WALSALL COUNCIL,HTTP://OPENDATACOMMUNITIES.ORG/ID/METROPOLITAN-DISTRICT-COUNCIL/WALSALL,30/06/2019,RESOURCES & TRANSFORMATION,CO-OPERATIVE FOOD,08/04/2019,H59620190410SXFIRXPCW-1,8.38,CORPORATE MANAGEMENT TEAM-FOOD AND BEVERAGES-PROVISIONS,GROCERY STORES AND SUPERMARKETS,GPC
WALSALL COUNCIL,HTTP://OPENDATACOMMUNITIES.ORG/ID/METROPOLITAN-DISTRICT-COUNCIL/WALSALL,30/06/2019,RESOURCES & TRANSFORMATION,WILKO.COM,08/04/2019,H59620190410TNIYCSLPE-1,295.5,TENANCY SERVICE-PURCHASE OF FURNITURE & EQUIPM,MISCELLANEOUS GENERAL MERCHANDISE,GPC
WALSALL COUNCIL,HTTP://OPENDATACOMMUNITIES.ORG/ID/METROPOLITAN-DISTRICT-COUNCIL/WALSALL,30/06/2019,RESOURCES & TRANSFORMATION,BLAKEMORE FOODSERVICE,08/04/2019,H59620190410TRGCXKUBX-1,162.1,CA CROFT COMMUNITY PRIMARY SCH-FROZEN FOODS-PROVISIONS,CATERERS,GPC
WALSALL COUNCIL,HTTP://OPENDATACOMMUNITIES.ORG/ID/METROPOLITAN-DISTRICT-COUNCIL/WALSALL,30/06/2019,RESOURCES & TRANSFORMATION,BLAKEMORE FOODSERVICE,08/04/2019,H59620190410TRGYPGPHT-1,300.68,TOWN HALL RESTAURANT BISTRO-DRY FOODS-PROVISIONS,CATERERS,GPC
WALSALL COUNCIL,HTTP://OPENDATACOMMUNITIES.ORG/ID/METROPOLITAN-DISTRICT-COUNCIL/WALSALL,30/06/2019,RESOURCES & TRANSFORMATION,BLAKEMORE FOODSERVICE,08/04/2019,H59620190410TRGYPGPHT-2,159.65,TOWN HALL RESTAURANT BISTRO-DRY FOODS-PROVISIONS,CATERERS,GPC
WALSALL COUNCIL,HTTP://OPENDATACOMMUNITIES.ORG/ID/METROPOLITAN-DISTRICT-COUNCIL/WALSALL,30/06/2019,RESOURCES & TRANSFORMATION,BLAKEMORE FOODSERVICE,08/04/2019,H59620190410TVLWSBLVV-1,92.16,CA ST MICHAELS C.E. PRIMARY SC-DRY FOODS-PROVISIONS,CATERERS,GPC
WALSALL COUNCIL,HTTP://OPENDATACOMMUNITIES.ORG/ID/METROPOLITAN-DISTRICT-COUNCIL/WALSALL,30/06/2019,RESOURCES & TRANSFORMATION,BLAKEMORE FOODSERVICE,08/04/2019,H59620190410TVLWSBLVV-2,243.32,CA ST MICHAELS C.E. PRIMARY SC-DRY FOODS-PROVISIONS,CATERERS,GPC
WALSALL COUNCIL,HTTP://OPENDATACOMMUNITIES.ORG/ID/METROPOLITAN-DISTRICT-COUNCIL/WALSALL,30/06/2019,ECONOMY & ENVIRONMENT,TESCO STORE 3351,08/04/2019,H59620190410UAJSSXCMJ-1,34,DEPOT-MATERIALS,GROCERY STORES AND SUPERMARKETS,GPC
WALSALL COUNCIL,HTTP://OPENDATACOMMUNITIES.ORG/ID/METROPOLITAN-DISTRICT-COUNCIL/WALSALL,30/06/2019,RESOURCES & TRANSFORMATION,JOHAL DAIRIES LTD,08/04/2019,H59620190410UBGRKDUUP-1,5.39,CA ELMWOOD SPECIAL SCHOOL-FOOD & DRINK SUPPLIES,OTHER NONDURABLE GOODS,GPC
WALSALL COUNCIL,HTTP://OPENDATACOMMUNITIES.ORG/ID/METROPOLITAN-DISTRICT-COUNCIL/WALSALL,30/06/2019,CHILDRENS SERVICES,BEVERLEY HOTEL LTD - T,08/04/2019,H59620190410VKQURHSLP-1,-125,DIRECTLY COMMISSIONED NURSING -OTHER TRAVEL ALLOWANCES,"HOTELS, MOTELS, RESORTS",GPC
WALSALL COUNCIL,HTTP://OPENDATACOMMUNITIES.ORG/ID/METROPOLITAN-DISTRICT-COUNCIL/WALSALL,30/06/2019,ECONOMY & ENVIRONMENT,PP*GLMS,08/04/2019,H59620190410VOFRIGQPJ-1,198,NAG - FAMILY GALLERY-SKIPS/PORTALOOS/PORTACABINS-HI,"AUTOMOTIVE PARTS, ACCESSORIES STORES",GPC
WALSALL COUNCIL,HTTP://OPENDATACOMMUNITIES.ORG/ID/METROPOLITAN-DISTRICT-COUNCIL/WALSALL,30/06/2019,RESOURCES & TRANSFORMATION,BLAKEMORE FOODSERVICE,08/04/2019,H59620190410VOWYPPWGJ-1,144,CA LEIGHSWOOD PRIMARY SCHOOL-DRY FOODS-PROVISIONS,CATERERS,GPC
WALSALL COUNCIL,HTTP://OPENDATACOMMUNITIES.ORG/ID/METROPOLITAN-DISTRICT-COUNCIL/WALSALL,30/06/2019,RESOURCES & TRANSFORMATION,BLAKEMORE FOODSERVICE,08/04/2019,H59620190410VOWYPPWGJ-2,322.99,CA LEIGHSWOOD PRIMARY SCHOOL-DRY FOODS-PROVISIONS,CATERERS,GPC
WALSALL COUNCIL,HTTP://OPENDATACOMMUNITIES.ORG/ID/METROPOLITAN-DISTRICT-COUNCIL/WALSALL,30/06/2019,CHILDRENS SERVICES,DVLA DRIVER ONLINE,08/04/2019,H59620190410VQPCGLQTK-1,34,SUPPORT UNDER SECT 23 OF THE C-SUPPORT UNDER SECTION 23 OF TH,GOVERNMENT SERVICES,GPC
WALSALL COUNCIL,HTTP://OPENDATACOMMUNITIES.ORG/ID/METROPOLITAN-DISTRICT-COUNCIL/WALSALL,30/06/2019,RESOURCES & TRANSFORMATION,JOHAL DAIRIES LTD,08/04/2019,H59620190410VQQICKKEV-1,22.45,CA ST GILES C.E. PRIMARY SCHOO-FOOD & DRINK SUPPLIES,OTHER NONDURABLE GOODS,GPC
WALSALL COUNCIL,HTTP://OPENDATACOMMUNITIES.ORG/ID/METROPOLITAN-DISTRICT-COUNCIL/WALSALL,30/06/2019,RESOURCES & TRANSFORMATION,JOHAL DAIRIES LTD,08/04/2019,H59620190410WJEYHARLU-1,8.8,CA JANE LANE SPECIAL SCHOOL-FOOD & DRINK SUPPLIES,OTHER NONDURABLE GOODS,GPC
WALSALL COUNCIL,HTTP://OPENDATACOMMUNITIES.ORG/ID/METROPOLITAN-DISTRICT-COUNCIL/WALSALL,30/06/2019,RESOURCES & TRANSFORMATION,BLAKEMORE FOODSERVICE,08/04/2019,H59620190410WSEWHKXEF-1,143.38,CA ST GILES C.E. PRIMARY SCHOO-DRY FOODS-PROVISIONS,CATERERS,GPC
WALSALL COUNCIL,HTTP://OPENDATACOMMUNITIES.ORG/ID/METROPOLITAN-DISTRICT-COUNCIL/WALSALL,30/06/2019,RESOURCES & TRANSFORMATION,JOHAL DAIRIES LTD,08/04/2019,H59620190410XIARPSGSF-1,21.5,CA ST BERNADETTES CATHOLIC PRI-FOOD & DRINK SUPPLIES,OTHER NONDURABLE GOODS,GPC
WALSALL COUNCIL,HTTP://OPENDATACOMMUNITIES.ORG/ID/METROPOLITAN-DISTRICT-COUNCIL/WALSALL,30/06/2019,RESOURCES & TRANSFORMATION,ALDI 28 772,08/04/2019,H59620190410XIDFRKSPA-1,15.73,YOUNG PERSONS HOMELESS SERVICE-FOOD AND BEVERAGES-PROVISIONS,GROCERY STORES AND SUPERMARKETS,GPC
WALSALL COUNCIL,HTTP://OPENDATACOMMUNITIES.ORG/ID/METROPOLITAN-DISTRICT-COUNCIL/WALSALL,30/06/2019,RESOURCES & TRANSFORMATION,ALDI 28 772,08/04/2019,H59620190410XIDFRKSPA-2,3.23,YOUNG PERSONS HOMELESS SERVICE-FOOD AND BEVERAGES-PROVISIONS,GROCERY STORES AND SUPERMARKETS,GPC
WALSALL COUNCIL,HTTP://OPENDATACOMMUNITIES.ORG/ID/METROPOLITAN-DISTRICT-COUNCIL/WALSALL,30/06/2019,RESOURCES & TRANSFORMATION,BLAKEMORE FOODSERVICE,08/04/2019,H59620190410XJRZCOKUK-1,2.42,CA RADLEYS PRIMARY SCHOOL-DRY FOODS-PROVISIONS,CATERERS,GPC
WALSALL COUNCIL,HTTP://OPENDATACOMMUNITIES.ORG/ID/METROPOLITAN-DISTRICT-COUNCIL/WALSALL,30/06/2019,RESOURCES & TRANSFORMATION,BLAKEMORE FOODSERVICE,08/04/2019,H59620190410XSEWQWPIV-1,109.92,CA CASTLEFORT JMI SCHOOL-DRY FOODS-PROVISIONS,CATERERS,GPC
WALSALL COUNCIL,HTTP://OPENDATACOMMUNITIES.ORG/ID/METROPOLITAN-DISTRICT-COUNCIL/WALSALL,30/06/2019,RESOURCES & TRANSFORMATION,JOHAL DAIRIES LTD,08/04/2019,H59620190410XTTLOZBJD-1,13.16,CA BROWNHILLS WEST PRIMARY SCH-FOOD & DRINK SUPPLIES,OTHER NONDURABLE GOODS,GPC
WALSALL COUNCIL,HTTP://OPENDATACOMMUNITIES.ORG/ID/METROPOLITAN-DISTRICT-COUNCIL/WALSALL,30/06/2019,RESOURCES & TRANSFORMATION,AMZNMKTPLACE,08/04/2019,H59620190410YLLWPIZYH-1,86.99,ACCOMMODATION SERVICES MANAGEM-MISCELLANEOUS SUPPLIES,MISCELLANEOUS AND SPECIALTY RETAIL STORES,GPC
WALSALL COUNCIL,HTTP://OPENDATACOMMUNITIES.ORG/ID/METROPOLITAN-DISTRICT-COUNCIL/WALSALL,30/06/2019,CHILDRENS SERVICES,WH SMITH,08/04/2019,H59620190410YOIFJHKUM-1,35,CHILDRENS UNIVERSITY-MATERIALS,NEWS DEALERS AND NEWSSTANDS,GPC
WALSALL COUNCIL,HTTP://OPENDATACOMMUNITIES.ORG/ID/METROPOLITAN-DISTRICT-COUNCIL/WALSALL,30/06/2019,ECONOMY & ENVIRONMENT,XL DISPLAYS LTD,08/04/2019,H59620190410YPUGFFZID-1,82.8,COMMUNITY LIASON-MATERIALS,OTHER DURABLE GOODS,GPC
WALSALL COUNCIL,HTTP://OPENDATACOMMUNITIES.ORG/ID/METROPOLITAN-DISTRICT-COUNCIL/WALSALL,30/06/2019,RESOURCES & TRANSFORMATION,BLAKEMORE FOODSERVICE,08/04/2019,H59620190410YUEEQALNB-1,24.98,CA ST JOHNS C.E. PRIMARY SCHOO-FROZEN FOODS-PROVISIONS,CATERERS,GPC
WALSALL COUNCIL,HTTP://OPENDATACOMMUNITIES.ORG/ID/METROPOLITAN-DISTRICT-COUNCIL/WALSALL,30/06/2019,RESOURCES & TRANSFORMATION,BLAKEMORE FOODSERVICE,08/04/2019,H59620190410YUEEQALNB-2,289.33,CA ST JOHNS C.E. PRIMARY SCHOO-FROZEN FOODS-PROVISIONS,CATERERS,GPC
WALSALL COUNCIL,HTTP://OPENDATACOMMUNITIES.ORG/ID/METROPOLITAN-DISTRICT-COUNCIL/WALSALL,30/06/2019,SOCIAL CARE & INCLUSION,SCREWFIX DIRECT,08/04/2019,H59620190410YUYQLHWKL-1,20.99,GOSCOTE-PURCHASE OF FURNITURE & EQUIPM,HOME SUPPLY WAREHOUSE STORES,GPC
WALSALL COUNCIL,HTTP://OPENDATACOMMUNITIES.ORG/ID/METROPOLITAN-DISTRICT-COUNCIL/WALSALL,30/06/2019,RESOURCES & TRANSFORMATION,BLAKEMORE FOODSERVICE,08/04/2019,H59620190410YVRVDLQST-1,4.84,CA CROFT COMMUNITY PRIMARY SCH-DRY FOODS-PROVISIONS,CATERERS,GPC
WALSALL COUNCIL,HTTP://OPENDATACOMMUNITIES.ORG/ID/METROPOLITAN-DISTRICT-COUNCIL/WALSALL,30/06/2019,RESOURCES & TRANSFORMATION,JOHAL DAIRIES LTD,08/04/2019,H59620190410ZFMVRRPTD-1,40.75,CA BUSILL JONES PRIMARY SCHOOL-FOOD & DRINK SUPPLIES,OTHER NONDURABLE GOODS,GPC
WALSALL COUNCIL,HTTP://OPENDATACOMMUNITIES.ORG/ID/METROPOLITAN-DISTRICT-COUNCIL/WALSALL,30/06/2019,RESOURCES & TRANSFORMATION,TOOLSTATION LTD,08/04/2019,H59620190410ZOJJBTTFE-1,52.96,CT CALDMORE COMMUNITY PRIMARY-CLEANING MATERIALS,HARDWARE STORES,GPC
WALSALL COUNCIL,HTTP://OPENDATACOMMUNITIES.ORG/ID/METROPOLITAN-DISTRICT-COUNCIL/WALSALL,30/06/2019,CHILDRENS SERVICES,PRIMARK 690,08/04/2019,H59620190411GYRDNTBPS-1,15,SUPPORT UNDER SECT 23 OF THE C-SUPPORT UNDER SECTION 23 OF TH,CLOTHING STORES,GPC
WALSALL COUNCIL,HTTP://OPENDATACOMMUNITIES.ORG/ID/METROPOLITAN-DISTRICT-COUNCIL/WALSALL,30/06/2019,CHILDRENS SERVICES,247 CARS WILLENHALL LTD,08/04/2019,H59620190411LKBBPGHBD-1,9.4,INITIAL RESPONSE SERVICE-TAXI FARES,TAXI SERVICES,GPC
WALSALL COUNCIL,HTTP://OPENDATACOMMUNITIES.ORG/ID/METROPOLITAN-DISTRICT-COUNCIL/WALSALL,30/06/2019,CHILDRENS SERVICES,247 CARS WILLENHALL LTD,08/04/2019,H59620190411LWPAROXFS-1,19.7,SAFEGUARDING & FAMILY SUPPORT-TAXI FARES,TAXI SERVICES,GPC
WALSALL COUNCIL,HTTP://OPENDATACOMMUNITIES.ORG/ID/METROPOLITAN-DISTRICT-COUNCIL/WALSALL,30/06/2019,CHILDRENS SERVICES,PAYPAL *BQ PLC,08/04/2019,H59620190411XICDZLGQO-1,218,ST FRANCIS OF ASSISI CATHOLIC -OPERATIONAL MAINTENANCE,HOME SUPPLY WAREHOUSE STORES,GPC
WALSALL COUNCIL,HTTP://OPENDATACOMMUNITIES.ORG/ID/METROPOLITAN-DISTRICT-COUNCIL/WALSALL,30/06/2019,RESOURCES & TRANSFORMATION,UTILITA ENERGY LIMITED,08/04/2019,H59620190411XTEYIVGXU-1,50,TENANCY SERVICE-ELECTRICITY,"UTILITIES - ELECTRIC, GAS, SANITARY & WATER",GPC
WALSALL COUNCIL,HTTP://OPENDATACOMMUNITIES.ORG/ID/METROPOLITAN-DISTRICT-COUNCIL/WALSALL,30/06/2019,CHILDRENS SERVICES,AMAZON.CO.UK*MZ2O72XQ4,09/04/2019,H59620190411BDNCDLCKY-1,11.44,ST FRANCIS OF ASSISI CATHOLIC -OPERATIONAL MAINTENANCE,OTHER DIRECT MARKETING-OTHER DIRECT MARKETERS,GPC
WALSALL COUNCIL,HTTP://OPENDATACOMMUNITIES.ORG/ID/METROPOLITAN-DISTRICT-COUNCIL/WALSALL,30/06/2019,RESOURCES & TRANSFORMATION,ARTHUR BRETT CATER,09/04/2019,H59620190411BRQBBLONL-1,30.89,CA BLOXWICH C.E. JMI PRIMARY S-FRUIT & VEGETABLES OTHER-PROVI,MISCELLANEOUS FOOD STORES & CONVENIENCE STORES,GPC
WALSALL COUNCIL,HTTP://OPENDATACOMMUNITIES.ORG/ID/METROPOLITAN-DISTRICT-COUNCIL/WALSALL,30/06/2019,ECONOMY & ENVIRONMENT,AMZNMKTPLACE AMAZON.CO.UK,09/04/2019,H59620190411BVBBWJMXK-1,12.02,RESOURCE MANAGEMENT-MISCELLANEOUS SUPPLIES,MISCELLANEOUS AND SPECIALTY RETAIL STORES,GPC
WALSALL COUNCIL,HTTP://OPENDATACOMMUNITIES.ORG/ID/METROPOLITAN-DISTRICT-COUNCIL/WALSALL,30/06/2019,ECONOMY & ENVIRONMENT,AMZNMKTPLACE,09/04/2019,H59620190411CDFGVNOGR-1,7.04,COMMUNITY LIASON-MISCELLANEOUS SUPPLIES,MISCELLANEOUS AND SPECIALTY RETAIL STORES,GPC
WALSALL COUNCIL,HTTP://OPENDATACOMMUNITIES.ORG/ID/METROPOLITAN-DISTRICT-COUNCIL/WALSALL,30/06/2019,CHILDRENS SERVICES,CANNON RACEWAY ECOM,09/04/2019,H59620190411CNMTTNYXW-1,20,57 LICHFIELD ROAD-RESIDENTS PERSONAL EXPENSES-AL,OTHER RECREATION SERVICES,GPC
WALSALL COUNCIL,HTTP://OPENDATACOMMUNITIES.ORG/ID/METROPOLITAN-DISTRICT-COUNCIL/WALSALL,30/06/2019,CHILDRENS SERVICES,WWW.ARGOS.CO.UK,09/04/2019,H59620190411COFOHNIUP-1,48.94,FAMILY PLACEMENTS-FOSTER CARERS OTHER ALLOWANCES,DISCOUNT STORES,GPC
WALSALL COUNCIL,HTTP://OPENDATACOMMUNITIES.ORG/ID/METROPOLITAN-DISTRICT-COUNCIL/WALSALL,30/06/2019,ECONOMY & ENVIRONMENT,SIM-MAYOU HARDWARE,09/04/2019,H59620190411DDCPMSGCO-1,140.88,INFRASTRUCTURE MAINTENANCE-MATERIALS,HARDWARE STORES,GPC
WALSALL COUNCIL,HTTP://OPENDATACOMMUNITIES.ORG/ID/METROPOLITAN-DISTRICT-COUNCIL/WALSALL,30/06/2019,RESOURCES & TRANSFORMATION,ARTHUR BRETT CATER,09/04/2019,H59620190411DGTFWROKZ-1,18.97,CA ST BERNADETTES CATHOLIC PRI-FRUIT & VEGETABLES OTHER-PROVI,MISCELLANEOUS FOOD STORES & CONVENIENCE STORES,GPC
WALSALL COUNCIL,HTTP://OPENDATACOMMUNITIES.ORG/ID/METROPOLITAN-DISTRICT-COUNCIL/WALSALL,30/06/2019,ECONOMY & ENVIRONMENT,B & Q 1237,09/04/2019,H59620190411DJJULWPMJ-1,128,WALSALL GALA CENTRE-NEW-FURNITURE & EQUIPMENT,HOME SUPPLY WAREHOUSE STORES,GPC
WALSALL COUNCIL,HTTP://OPENDATACOMMUNITIES.ORG/ID/METROPOLITAN-DISTRICT-COUNCIL/WALSALL,30/06/2019,RESOURCES & TRANSFORMATION,WILKO RETAIL LIMIT,09/04/2019,H59620190411DROXCVTIL-1,11,WALSALL CRISIS SUPPORT SCHEME-PURCHASE OF FURNITURE & EQUIPM,HOUSEHOLD APPLIANCE STORES,GPC
WALSALL COUNCIL,HTTP://OPENDATACOMMUNITIES.ORG/ID/METROPOLITAN-DISTRICT-COUNCIL/WALSALL,30/06/2019,CHILDRENS SERVICES,HM PASSPORT OFFICE,09/04/2019,H59620190411EKDKMOUCG-1,58.5,LOOKED AFTER CHILDRENS SOCIAL -OTHER EMPLOYEES FEES & EXPENSE,GOVERNMENT SERVICES,GPC
WALSALL COUNCIL,HTTP://OPENDATACOMMUNITIES.ORG/ID/METROPOLITAN-DISTRICT-COUNCIL/WALSALL,30/06/2019,RESOURCES & TRANSFORMATION,ARTHUR BRETT CATER,09/04/2019,H59620190411ETUGEYOBX-1,27.8,CA BUSILL JONES PRIMARY SCHOOL-FRUIT & VEGETABLES OTHER-PROVI,MISCELLANEOUS FOOD STORES & CONVENIENCE STORES,GPC
WALSALL COUNCIL,HTTP://OPENDATACOMMUNITIES.ORG/ID/METROPOLITAN-DISTRICT-COUNCIL/WALSALL,30/06/2019,CHILDRENS SERVICES,PARENTPAY E-COM R,09/04/2019,H59620190411FPYJRUWMR-1,10,SPINDLETREE-FOOD AND BEVERAGES-PROVISIONS,"COLLEGES, UNIVERSITIES, PROFESSIONAL SCHOOLS",GPC
WALSALL COUNCIL,HTTP://OPENDATACOMMUNITIES.ORG/ID/METROPOLITAN-DISTRICT-COUNCIL/WALSALL,30/06/2019,CHILDRENS SERVICES,SLOUGH BOROUGH COUNCIL,09/04/2019,H59620190411GBTNPWVBR-1,11,SAFEGUARDING & FAMILY SUPPORT-FEES & LICENCES,GOVERNMENT SERVICES,GPC
WALSALL COUNCIL,HTTP://OPENDATACOMMUNITIES.ORG/ID/METROPOLITAN-DISTRICT-COUNCIL/WALSALL,30/06/2019,RESOURCES & TRANSFORMATION,ARTHUR BRETT CATER,09/04/2019,H59620190411GBUIOTUBK-1,29.48,CA BEACON PRIMARY SCHOOL-FRUIT & VEGETABLES OTHER-PROVI,MISCELLANEOUS FOOD STORES & CONVENIENCE STORES,GPC
WALSALL COUNCIL,HTTP://OPENDATACOMMUNITIES.ORG/ID/METROPOLITAN-DISTRICT-COUNCIL/WALSALL,30/06/2019,RESOURCES & TRANSFORMATION,ARTHUR BRETT CATER,09/04/2019,H59620190411GEBTBRJNU-1,90.26,CA CROFT COMMUNITY PRIMARY SCH-FRUIT & VEGETABLES OTHER-PROVI,MISCELLANEOUS FOOD STORES & CONVENIENCE STORES,GPC
WALSALL COUNCIL,HTTP://OPENDATACOMMUNITIES.ORG/ID/METROPOLITAN-DISTRICT-COUNCIL/WALSALL,30/06/2019,CHILDRENS SERVICES,AMZNMKTPLACE,09/04/2019,H59620190411GIBNLWANI-1,12.74,FAMILY PLACEMENTS-MISCELLANEOUS SUPPLIES,MISCELLANEOUS AND SPECIALTY RETAIL STORES,GPC
WALSALL COUNCIL,HTTP://OPENDATACOMMUNITIES.ORG/ID/METROPOLITAN-DISTRICT-COUNCIL/WALSALL,30/06/2019,CHILDRENS SERVICES,ESCAPE LIVE LTD,09/04/2019,H59620190411GQNDQQTGW-1,23,57 LICHFIELD ROAD-RESIDENTS PERSONAL EXPENSES-AL,"GAME, TOY, AND HOBBY SHOPS",GPC
WALSALL COUNCIL,HTTP://OPENDATACOMMUNITIES.ORG/ID/METROPOLITAN-DISTRICT-COUNCIL/WALSALL,30/06/2019,RESOURCES & TRANSFORMATION,ARTHUR BRETT CATER,09/04/2019,H59620190411GQWSJDWVJ-1,54.39,TOWN HALL RESTAURANT BISTRO-FRUIT & VEGETABLES OTHER-PROVI,MISCELLANEOUS FOOD STORES & CONVENIENCE STORES,GPC
WALSALL COUNCIL,HTTP://OPENDATACOMMUNITIES.ORG/ID/METROPOLITAN-DISTRICT-COUNCIL/WALSALL,30/06/2019,CHILDRENS SERVICES,RNIB CHARITY,09/04/2019,H59620190411GVUFUGLIN-1,596.4,SEN ASSESSMENT-MEDICAL REQUISITES-MATERIALS,DENTAL/LABORATORY/MEDICAL EQUIPMENT & SUPPLIES,GPC
WALSALL COUNCIL,HTTP://OPENDATACOMMUNITIES.ORG/ID/METROPOLITAN-DISTRICT-COUNCIL/WALSALL,30/06/2019,CHILDRENS SERVICES,WALSALL STN T/O,09/04/2019,H59620190411HBLMCLDVL-1,98.75,LOOKED AFTER CHILDRENS SOCIAL -SECTION 34 (CONTACT),PASSENGER RAILWAYS,GPC
WALSALL COUNCIL,HTTP://OPENDATACOMMUNITIES.ORG/ID/METROPOLITAN-DISTRICT-COUNCIL/WALSALL,30/06/2019,RESOURCES & TRANSFORMATION,ARTHUR BRETT CATER,09/04/2019,H59620190411HTHPYCOOO-1,51.54,CA CASTLEFORT JMI SCHOOL-FRUIT & VEGETABLES OTHER-PROVI,MISCELLANEOUS FOOD STORES & CONVENIENCE STORES,GPC
WALSALL COUNCIL,HTTP://OPENDATACOMMUNITIES.ORG/ID/METROPOLITAN-DISTRICT-COUNCIL/WALSALL,30/06/2019,SOCIAL CARE & INCLUSION,AMZN MKTP UK*MZ6LU9XL4,09/04/2019,H59620190411IETBSKNPN-1,16.47,GOSCOTE-LIBRARY BOOKS,BOOK STORES,GPC
WALSALL COUNCIL,HTTP://OPENDATACOMMUNITIES.ORG/ID/METROPOLITAN-DISTRICT-COUNCIL/WALSALL,30/06/2019,RESOURCES & TRANSFORMATION,ARTHUR BRETT CATER,09/04/2019,H59620190411IWLOHXDSV-1,111.33,CA BUSILL JONES PRIMARY SCHOOL-FRUIT & VEGETABLES OTHER-PROVI,MISCELLANEOUS FOOD STORES & CONVENIENCE STORES,GPC
WALSALL COUNCIL,HTTP://OPENDATACOMMUNITIES.ORG/ID/METROPOLITAN-DISTRICT-COUNCIL/WALSALL,30/06/2019,CHILDRENS SERVICES,WALSALL STN T/O,09/04/2019,H59620190411JDDKRQEYU-1,19.4,LOOKED AFTER CHILDRENS SOCIAL -TRAVEL ALLOWANCE-ALLOWANCES TO,PASSENGER RAILWAYS,GPC
WALSALL COUNCIL,HTTP://OPENDATACOMMUNITIES.ORG/ID/METROPOLITAN-DISTRICT-COUNCIL/WALSALL,30/06/2019,RESOURCES & TRANSFORMATION,ARTHUR BRETT CATER,09/04/2019,H59620190411JGYKIVPOI-1,79.34,CA MOORCROFT WOOD-FRUIT & VEGETABLES OTHER-PROVI,MISCELLANEOUS FOOD STORES & CONVENIENCE STORES,GPC
WALSALL COUNCIL,HTTP://OPENDATACOMMUNITIES.ORG/ID/METROPOLITAN-DISTRICT-COUNCIL/WALSALL,30/06/2019,RESOURCES & TRANSFORMATION,ARTHUR BRETT CATER,09/04/2019,H59620190411KDPWLWUNF-1,24.09,CA ABBEY PRIMARY SCHOOL-FRUIT & VEGETABLES OTHER-PROVI,MISCELLANEOUS FOOD STORES & CONVENIENCE STORES,GPC
WALSALL COUNCIL,HTTP://OPENDATACOMMUNITIES.ORG/ID/METROPOLITAN-DISTRICT-COUNCIL/WALSALL,30/06/2019,RESOURCES & TRANSFORMATION,ARTHUR BRETT CATER,09/04/2019,H59620190411KGXJEEMDC-1,36.56,CA JANE LANE SPECIAL SCHOOL-FRUIT & VEGETABLES OTHER-PROVI,MISCELLANEOUS FOOD STORES & CONVENIENCE STORES,GPC
WALSALL COUNCIL,HTTP://OPENDATACOMMUNITIES.ORG/ID/METROPOLITAN-DISTRICT-COUNCIL/WALSALL,30/06/2019,CHILDRENS SERVICES,HOME BARGAINS WOLVERHA,09/04/2019,H59620190411KJKJYPANR-1,2.99,"43A HILTON ROAD, WILLENHALL-RESIDENTS PERSONAL EXPENSES-AL",HARDWARE STORES,GPC
WALSALL COUNCIL,HTTP://OPENDATACOMMUNITIES.ORG/ID/METROPOLITAN-DISTRICT-COUNCIL/WALSALL,30/06/2019,RESOURCES & TRANSFORMATION,ARTHUR BRETT CATER,09/04/2019,H59620190411KQEASYNSK-1,79.21,CA ELMORE GREEN PRIMARY SCHOOL-FRUIT & VEGETABLES OTHER-PROVI,MISCELLANEOUS FOOD STORES & CONVENIENCE STORES,GPC
WALSALL COUNCIL,HTTP://OPENDATACOMMUNITIES.ORG/ID/METROPOLITAN-DISTRICT-COUNCIL/WALSALL,30/06/2019,ECONOMY & ENVIRONMENT,SCREWFIX DIRECT,09/04/2019,H59620190411LCTUFQEUD-1,170.43,YEI ESF FUNDING-MISCELLANEOUS SUPPLIES,HOME SUPPLY WAREHOUSE STORES,GPC
WALSALL COUNCIL,HTTP://OPENDATACOMMUNITIES.ORG/ID/METROPOLITAN-DISTRICT-COUNCIL/WALSALL,30/06/2019,ECONOMY & ENVIRONMENT,SCREWFIX DIRECT,09/04/2019,H59620190411LCTUFQEUD-2,170.42,YEI (IMPACT) PROGRAMME-MISCELLANEOUS SUPPLIES,HOME SUPPLY WAREHOUSE STORES,GPC
WALSALL COUNCIL,HTTP://OPENDATACOMMUNITIES.ORG/ID/METROPOLITAN-DISTRICT-COUNCIL/WALSALL,30/06/2019,RESOURCES & TRANSFORMATION,TESCO STORES 6161,09/04/2019,H59620190411LDYLYNVFS-1,4.42,YOUNG PERSONS HOMELESS SERVICE-FOOD AND BEVERAGES-PROVISIONS,GROCERY STORES AND SUPERMARKETS,GPC
WALSALL COUNCIL,HTTP://OPENDATACOMMUNITIES.ORG/ID/METROPOLITAN-DISTRICT-COUNCIL/WALSALL,30/06/2019,RESOURCES & TRANSFORMATION,TESCO STORES 6161,09/04/2019,H59620190411LDYLYNVFS-2,1.5,YOUNG PERSONS HOMELESS SERVICE-FOOD AND BEVERAGES-PROVISIONS,GROCERY STORES AND SUPERMARKETS,GPC
WALSALL COUNCIL,HTTP://OPENDATACOMMUNITIES.ORG/ID/METROPOLITAN-DISTRICT-COUNCIL/WALSALL,30/06/2019,CHILDRENS SERVICES,AMZNMKTPLACE,09/04/2019,H59620190411LNFMBECLO-1,15.48,INITIAL RESPONSE SERVICE-MISCELLANEOUS SUPPLIES,MISCELLANEOUS AND SPECIALTY RETAIL STORES,GPC
WALSALL COUNCIL,HTTP://OPENDATACOMMUNITIES.ORG/ID/METROPOLITAN-DISTRICT-COUNCIL/WALSALL,30/06/2019,ECONOMY & ENVIRONMENT,JONES SPRINGS,09/04/2019,H59620190411LOQKNLXIV-1,438,FLEET-SURVEYS & PROF SERVICES-PAYMEN,"ARCHITECTURAL, ENGINEERING, AND SURVEYING SERVICES",GPC
WALSALL COUNCIL,HTTP://OPENDATACOMMUNITIES.ORG/ID/METROPOLITAN-DISTRICT-COUNCIL/WALSALL,30/06/2019,ECONOMY & ENVIRONMENT,VIRGIN TRAINS,09/04/2019,H59620190411MCLJFKCQD-1,-10,MUSIC HUB FOREST ARTS-OFFICERS & STAFF PUBLIC TRANSP,PASSENGER RAILWAYS,GPC
WALSALL COUNCIL,HTTP://OPENDATACOMMUNITIES.ORG/ID/METROPOLITAN-DISTRICT-COUNCIL/WALSALL,30/06/2019,RESOURCES & TRANSFORMATION,ARTHUR BRETT CATER,09/04/2019,H59620190411MFUSEDBFS-1,37.41,CA WALSALL WOOD PRIMARY SCHOOL-FRUIT & VEGETABLES OTHER-PROVI,MISCELLANEOUS FOOD STORES & CONVENIENCE STORES,GPC
WALSALL COUNCIL,HTTP://OPENDATACOMMUNITIES.ORG/ID/METROPOLITAN-DISTRICT-COUNCIL/WALSALL,30/06/2019,RESOURCES & TRANSFORMATION,ARTHUR BRETT CATER,09/04/2019,H59620190411MKJIPNDVJ-1,25.33,CA BUSILL JONES PRIMARY SCHOOL-FRUIT & VEGETABLES OTHER-PROVI,MISCELLANEOUS FOOD STORES & CONVENIENCE STORES,GPC
WALSALL COUNCIL,HTTP://OPENDATACOMMUNITIES.ORG/ID/METROPOLITAN-DISTRICT-COUNCIL/WALSALL,30/06/2019,RESOURCES & TRANSFORMATION,ARTHUR BRETT CATER,09/04/2019,H59620190411MUUKSCXYD-1,133.93,CA BARCROFT D/C-FRUIT & VEGETABLES OTHER-PROVI,MISCELLANEOUS FOOD STORES & CONVENIENCE STORES,GPC
WALSALL COUNCIL,HTTP://OPENDATACOMMUNITIES.ORG/ID/METROPOLITAN-DISTRICT-COUNCIL/WALSALL,30/06/2019,SOCIAL CARE & INCLUSION,AMZN MKTP UK*MZ5MJ1X74,09/04/2019,H59620190411MWCIPGMCR-1,14.48,GOSCOTE-LIBRARY BOOKS,BOOK STORES,GPC
WALSALL COUNCIL,HTTP://OPENDATACOMMUNITIES.ORG/ID/METROPOLITAN-DISTRICT-COUNCIL/WALSALL,30/06/2019,RESOURCES & TRANSFORMATION,ARTHUR BRETT CATER,09/04/2019,H59620190411NAFPYNLFM-1,60.49,CA ST GILES C.E. PRIMARY SCHOO-FRUIT & VEGETABLES OTHER-PROVI,MISCELLANEOUS FOOD STORES & CONVENIENCE STORES,GPC
WALSALL COUNCIL,HTTP://OPENDATACOMMUNITIES.ORG/ID/METROPOLITAN-DISTRICT-COUNCIL/WALSALL,30/06/2019,CHILDRENS SERVICES,WM MORRISONS STORE,09/04/2019,H59620190411NFWQNJQFE-1,0.94,LOCALITY FAMILY SUPPORT-WEST-FOOD AND BEVERAGES-PROVISIONS,GROCERY STORES AND SUPERMARKETS,GPC
WALSALL COUNCIL,HTTP://OPENDATACOMMUNITIES.ORG/ID/METROPOLITAN-DISTRICT-COUNCIL/WALSALL,30/06/2019,RESOURCES & TRANSFORMATION,ARTHUR BRETT CATER,09/04/2019,H59620190411NHVVYRSGF-1,73.78,CA WATLING STREET PRIMARY SCHO-FRUIT & VEGETABLES OTHER-PROVI,MISCELLANEOUS FOOD STORES & CONVENIENCE STORES,GPC
WALSALL COUNCIL,HTTP://OPENDATACOMMUNITIES.ORG/ID/METROPOLITAN-DISTRICT-COUNCIL/WALSALL,30/06/2019,RESOURCES & TRANSFORMATION,AMZNMKTPLACE,09/04/2019,H59620190411NJETPUPHR-1,39.97,AREA PARTNERSHIPS-MISCELLANEOUS SUPPLIES,MISCELLANEOUS AND SPECIALTY RETAIL STORES,GPC
WALSALL COUNCIL,HTTP://OPENDATACOMMUNITIES.ORG/ID/METROPOLITAN-DISTRICT-COUNCIL/WALSALL,30/06/2019,ECONOMY & ENVIRONMENT,WWW.JAYDEELIVING.CO.UK,09/04/2019,H59620190411NYMCFDCQB-1,100.56,BLOXWICH LEISURE CENTRE-NEW-FURNITURE & EQUIPMENT,OTHER BUSINESS SERVICES,GPC
WALSALL COUNCIL,HTTP://OPENDATACOMMUNITIES.ORG/ID/METROPOLITAN-DISTRICT-COUNCIL/WALSALL,30/06/2019,RESOURCES & TRANSFORMATION,ARDEN NEWS 60191/020,09/04/2019,H59620190411PKDBIPSRD-1,25,ACCOMMODATION SERVICES MANAGEM-FOOD AND BEVERAGES-PROVISIONS,GROCERY STORES AND SUPERMARKETS,GPC
WALSALL COUNCIL,HTTP://OPENDATACOMMUNITIES.ORG/ID/METROPOLITAN-DISTRICT-COUNCIL/WALSALL,30/06/2019,RESOURCES & TRANSFORMATION,ARTHUR BRETT CATER,09/04/2019,H59620190411QHVWXWQGI-1,46.44,CA ELMWOOD SPECIAL SCHOOL-FRUIT & VEGETABLES OTHER-PROVI,MISCELLANEOUS FOOD STORES & CONVENIENCE STORES,GPC
WALSALL COUNCIL,HTTP://OPENDATACOMMUNITIES.ORG/ID/METROPOLITAN-DISTRICT-COUNCIL/WALSALL,30/06/2019,ECONOMY & ENVIRONMENT,BELL PLUMBING SUPPLIES,09/04/2019,H59620190411RAXWLOLIH-1,13.98,ARBORETUM-MATERIALS,PLUMBING AND HEATING EQUIPMENT,GPC
WALSALL COUNCIL,HTTP://OPENDATACOMMUNITIES.ORG/ID/METROPOLITAN-DISTRICT-COUNCIL/WALSALL,30/06/2019,CHILDRENS SERVICES,RNIB CHARITY,09/04/2019,H59620190411RDEDHLHDV-1,596.4,SEN ASSESSMENT-MEDICAL REQUISITES-MATERIALS,DENTAL/LABORATORY/MEDICAL EQUIPMENT & SUPPLIES,GPC
WALSALL COUNCIL,HTTP://OPENDATACOMMUNITIES.ORG/ID/METROPOLITAN-DISTRICT-COUNCIL/WALSALL,30/06/2019,CHILDRENS SERVICES,PP*GLMS,09/04/2019,H59620190411SJMPMDLTY-1,198,PELSALL VILLAGE SCHOOL-OPERATIONAL MAINTENANCE,"AUTOMOTIVE PARTS, ACCESSORIES STORES",GPC
WALSALL COUNCIL,HTTP://OPENDATACOMMUNITIES.ORG/ID/METROPOLITAN-DISTRICT-COUNCIL/WALSALL,30/06/2019,ECONOMY & ENVIRONMENT,WWW.WVHOWE.CO.UK,09/04/2019,H59620190411SRTOHVRUX-1,74.56,CFR 1196 LIBRARY REDESIGN - LI-SITE WORKS CONTRACTORS,HARDWARE EQUIPMENT AND SUPPLIES,GPC
WALSALL COUNCIL,HTTP://OPENDATACOMMUNITIES.ORG/ID/METROPOLITAN-DISTRICT-COUNCIL/WALSALL,30/06/2019,RESOURCES & TRANSFORMATION,ARTHUR BRETT CATER,09/04/2019,H59620190411TDVOCHKTR-1,74.66,CA ST JOHNS C.E. PRIMARY SCHOO-FRUIT & VEGETABLES OTHER-PROVI,MISCELLANEOUS FOOD STORES & CONVENIENCE STORES,GPC
WALSALL COUNCIL,HTTP://OPENDATACOMMUNITIES.ORG/ID/METROPOLITAN-DISTRICT-COUNCIL/WALSALL,30/06/2019,RESOURCES & TRANSFORMATION,ARTHUR BRETT CATER,09/04/2019,H59620190411TNCFKSOWI-1,57.67,CA LEIGHSWOOD PRIMARY SCHOOL-FRUIT & VEGETABLES OTHER-PROVI,MISCELLANEOUS FOOD STORES & CONVENIENCE STORES,GPC
WALSALL COUNCIL,HTTP://OPENDATACOMMUNITIES.ORG/ID/METROPOLITAN-DISTRICT-COUNCIL/WALSALL,30/06/2019,RESOURCES & TRANSFORMATION,ARTHUR BRETT CATER,09/04/2019,H59620190411TVVCVMJVV-1,41.68,CA LITTLE BLOXWICH CE PRIMARY -FRUIT & VEGETABLES OTHER-PROVI,MISCELLANEOUS FOOD STORES & CONVENIENCE STORES,GPC
WALSALL COUNCIL,HTTP://OPENDATACOMMUNITIES.ORG/ID/METROPOLITAN-DISTRICT-COUNCIL/WALSALL,30/06/2019,ECONOMY & ENVIRONMENT,ROYAL YACHTING ASSOC L,09/04/2019,H59620190411TWDJUTZQO-1,67.95,WALSALL OUTDOOR ADVENTURE CENT-PROFESSIONAL FEES & SERVICES,OTHER BUSINESS SERVICES,GPC
WALSALL COUNCIL,HTTP://OPENDATACOMMUNITIES.ORG/ID/METROPOLITAN-DISTRICT-COUNCIL/WALSALL,30/06/2019,CHILDRENS SERVICES,WALSALL STN T/O,09/04/2019,H59620190411UEJKFGPMS-1,37.9,LOOKED AFTER CHILDRENS SOCIAL -SECTION 34 (CONTACT),PASSENGER RAILWAYS,GPC
WALSALL COUNCIL,HTTP://OPENDATACOMMUNITIES.ORG/ID/METROPOLITAN-DISTRICT-COUNCIL/WALSALL,30/06/2019,RESOURCES & TRANSFORMATION,ARTHUR BRETT CATER,09/04/2019,H59620190411UEMCEBNWI-1,5.1,CA ST JOHNS C.E. PRIMARY SCHOO-FRUIT & VEGETABLES OTHER-PROVI,MISCELLANEOUS FOOD STORES & CONVENIENCE STORES,GPC
WALSALL COUNCIL,HTTP://OPENDATACOMMUNITIES.ORG/ID/METROPOLITAN-DISTRICT-COUNCIL/WALSALL,30/06/2019,RESOURCES & TRANSFORMATION,ARTHUR BRETT CATER,09/04/2019,H59620190411UGATCMYEO-1,32.55,CA OLD HALL SPECIAL SCHOOL-FRUIT & VEGETABLES OTHER-PROVI,MISCELLANEOUS FOOD STORES & CONVENIENCE STORES,GPC
WALSALL COUNCIL,HTTP://OPENDATACOMMUNITIES.ORG/ID/METROPOLITAN-DISTRICT-COUNCIL/WALSALL,30/06/2019,CHILDRENS SERVICES,WEST MID TRAVEL,09/04/2019,H59620190411UNBKVXIRP-1,460,SAFEGUARDING & FAMILY SUPPORT-OFFICERS & STAFF PUBLIC TRANSP,BUS LINES,GPC
WALSALL COUNCIL,HTTP://OPENDATACOMMUNITIES.ORG/ID/METROPOLITAN-DISTRICT-COUNCIL/WALSALL,30/06/2019,CHILDRENS SERVICES,WEST MID TRAVEL,09/04/2019,H59620190411UNBKVXIRP-2,6.35,SAFEGUARDING & FAMILY SUPPORT-POSTAGES & COURIER SERVICES,BUS LINES,GPC
WALSALL COUNCIL,HTTP://OPENDATACOMMUNITIES.ORG/ID/METROPOLITAN-DISTRICT-COUNCIL/WALSALL,30/06/2019,CHILDRENS SERVICES,CROWN HOUSE PUBLISHING,09/04/2019,H59620190411UVYSXEYTP-1,16.99,VIRTUAL SCHOOL - CENTRAL PUPIL-REFERENCE BOOKS,"BOOKS, PERIODICALS AND NEWSPAPERS",GPC
WALSALL COUNCIL,HTTP://OPENDATACOMMUNITIES.ORG/ID/METROPOLITAN-DISTRICT-COUNCIL/WALSALL,30/06/2019,CHILDRENS SERVICES (SCHOOLS),AMAZON.CO.UK*MZ53Q5GU4,09/04/2019,H59620190411VFFEFGPLC-1,76.04,E19-LIBRARY BOOKS,OTHER DIRECT MARKETING-OTHER DIRECT MARKETERS,GPC
WALSALL COUNCIL,HTTP://OPENDATACOMMUNITIES.ORG/ID/METROPOLITAN-DISTRICT-COUNCIL/WALSALL,30/06/2019,RESOURCES & TRANSFORMATION,ARTHUR BRETT CATER,09/04/2019,H59620190411VVQMLJWKG-1,91.22,CA RADLEYS PRIMARY SCHOOL-FRUIT & VEGETABLES OTHER-PROVI,MISCELLANEOUS FOOD STORES & CONVENIENCE STORES,GPC
WALSALL COUNCIL,HTTP://OPENDATACOMMUNITIES.ORG/ID/METROPOLITAN-DISTRICT-COUNCIL/WALSALL,30/06/2019,RESOURCES & TRANSFORMATION,ARTHUR BRETT CATER,09/04/2019,H59620190411WSPEULZXP-1,31.33,CA ST MICHAELS C.E. PRIMARY SC-FRUIT & VEGETABLES OTHER-PROVI,MISCELLANEOUS FOOD STORES & CONVENIENCE STORES,GPC
WALSALL COUNCIL,HTTP://OPENDATACOMMUNITIES.ORG/ID/METROPOLITAN-DISTRICT-COUNCIL/WALSALL,30/06/2019,CHILDRENS SERVICES,AMZNMKTPLACE AMAZON.CO.UK,09/04/2019,H59620190411WVDLMQNAS-1,5.58,LOCALITY FAMILY SUPPORT-WEST-HEALTH & SAFETY-MATERIALS,MISCELLANEOUS AND SPECIALTY RETAIL STORES,GPC
WALSALL COUNCIL,HTTP://OPENDATACOMMUNITIES.ORG/ID/METROPOLITAN-DISTRICT-COUNCIL/WALSALL,30/06/2019,CHILDRENS SERVICES,AMZNMKTPLACE AMAZON.CO.UK,09/04/2019,H59620190411WVDLMQNAS-2,0.99,LOCALITY FAMILY SUPPORT-WEST-CARRIAGE-IN,MISCELLANEOUS AND SPECIALTY RETAIL STORES,GPC
WALSALL COUNCIL,HTTP://OPENDATACOMMUNITIES.ORG/ID/METROPOLITAN-DISTRICT-COUNCIL/WALSALL,30/06/2019,CHILDRENS SERVICES,AMZNMKTPLACE,09/04/2019,H59620190411WVURPWLVF-1,24.9,ST FRANCIS OF ASSISI CATHOLIC -OPERATIONAL MAINTENANCE,MISCELLANEOUS AND SPECIALTY RETAIL STORES,GPC
WALSALL COUNCIL,HTTP://OPENDATACOMMUNITIES.ORG/ID/METROPOLITAN-DISTRICT-COUNCIL/WALSALL,30/06/2019,CHILDRENS SERVICES (SCHOOLS),AMAZON.CO.UK*MZ5WC5XJ4,09/04/2019,H59620190411XAWMPHFPG-1,25.35,E19-LIBRARY BOOKS,OTHER DIRECT MARKETING-OTHER DIRECT MARKETERS,GPC
WALSALL COUNCIL,HTTP://OPENDATACOMMUNITIES.ORG/ID/METROPOLITAN-DISTRICT-COUNCIL/WALSALL,30/06/2019,RESOURCES & TRANSFORMATION,ARTHUR BRETT CATER,09/04/2019,H59620190411XPEGVLZKE-1,62.73,CA BROWNHILLS WEST PRIMARY SCH-FRUIT & VEGETABLES OTHER-PROVI,MISCELLANEOUS FOOD STORES & CONVENIENCE STORES,GPC
WALSALL COUNCIL,HTTP://OPENDATACOMMUNITIES.ORG/ID/METROPOLITAN-DISTRICT-COUNCIL/WALSALL,30/06/2019,RESOURCES & TRANSFORMATION,ARTHUR BRETT CATER,09/04/2019,H59620190411XTTMRCKCI-1,14.31,CA LINDENS PRIMARY SCHOOL-FRUIT & VEGETABLES OTHER-PROVI,MISCELLANEOUS FOOD STORES & CONVENIENCE STORES,GPC
WALSALL COUNCIL,HTTP://OPENDATACOMMUNITIES.ORG/ID/METROPOLITAN-DISTRICT-COUNCIL/WALSALL,30/06/2019,CHILDRENS SERVICES,WEST MID TRAVEL,09/04/2019,H59620190411XWEMWKNWE-1,80,SAFEGUARDING & FAMILY SUPPORT-OFFICERS & STAFF PUBLIC TRANSP,BUS LINES,GPC
WALSALL COUNCIL,HTTP://OPENDATACOMMUNITIES.ORG/ID/METROPOLITAN-DISTRICT-COUNCIL/WALSALL,30/06/2019,CHILDRENS SERVICES,WEST MID TRAVEL,09/04/2019,H59620190411XWEMWKNWE-2,6.35,SAFEGUARDING & FAMILY SUPPORT-POSTAGES & COURIER SERVICES,BUS LINES,GPC
WALSALL COUNCIL,HTTP://OPENDATACOMMUNITIES.ORG/ID/METROPOLITAN-DISTRICT-COUNCIL/WALSALL,30/06/2019,RESOURCES & TRANSFORMATION,AMAZON.CO.UK*MZ9MO6XI4,09/04/2019,H59620190411YJXHNTCLQ-1,129.88,ADMIN SUPPORT-STATIONERY & GENERAL OFFICE SU,OTHER DIRECT MARKETING-OTHER DIRECT MARKETERS,GPC
WALSALL COUNCIL,HTTP://OPENDATACOMMUNITIES.ORG/ID/METROPOLITAN-DISTRICT-COUNCIL/WALSALL,30/06/2019,RESOURCES & TRANSFORMATION,ARTHUR BRETT CATER,09/04/2019,H59620190411YLQOIHQMI-1,102.52,CA MEADOW VIEW JMI PRIMARY SCH-FRUIT & VEGETABLES OTHER-PROVI,MISCELLANEOUS FOOD STORES & CONVENIENCE STORES,GPC
WALSALL COUNCIL,HTTP://OPENDATACOMMUNITIES.ORG/ID/METROPOLITAN-DISTRICT-COUNCIL/WALSALL,30/06/2019,SOCIAL CARE & INCLUSION,WWW.PMGLTD.CO.UK,09/04/2019,H59620190411YQUEKDMGM-1,474,LD PACKAGE/PLACEMENT COSTS-PROFESSIONAL FEES & SERVICES,OTHER BUSINESS SERVICES,GPC
WALSALL COUNCIL,HTTP://OPENDATACOMMUNITIES.ORG/ID/METROPOLITAN-DISTRICT-COUNCIL/WALSALL,30/06/2019,CHILDRENS SERVICES,AMAZON.CO.UK*MZ5XU0XI4,09/04/2019,H59620190411YSRDTBTXT-1,25.59,LEARNING ENVIRONMENT-LIBRARY BOOKS,OTHER DIRECT MARKETING-OTHER DIRECT MARKETERS,GPC
WALSALL COUNCIL,HTTP://OPENDATACOMMUNITIES.ORG/ID/METROPOLITAN-DISTRICT-COUNCIL/WALSALL,30/06/2019,CHILDRENS SERVICES,DRAYTON MANOR PARK LIMITE,09/04/2019,H59620190411YTADNCEGW-1,95,57 LICHFIELD ROAD-RESIDENTS PERSONAL EXPENSES-AL,"AMUSEMENT PARKS, CARNIVALS, CIRCUSES",GPC
WALSALL COUNCIL,HTTP://OPENDATACOMMUNITIES.ORG/ID/METROPOLITAN-DISTRICT-COUNCIL/WALSALL,30/06/2019,RESOURCES & TRANSFORMATION,ARTHUR BRETT CATER,09/04/2019,H59620190411ZCRYUKCWA-1,31.5,CA LEAMORE PRIMARY SCHOOL-FRUIT & VEGETABLES OTHER-PROVI,MISCELLANEOUS FOOD STORES & CONVENIENCE STORES,GPC
WALSALL COUNCIL,HTTP://OPENDATACOMMUNITIES.ORG/ID/METROPOLITAN-DISTRICT-COUNCIL/WALSALL,30/06/2019,CHILDRENS SERVICES,ASDA GROCERIES ONLINE,09/04/2019,H59620190411ZNJSFTKGC-1,40.91,ROSEDALE C.E. PRIMARY SCHOOL-FOOD & DRINK SUPPLIES,GROCERY STORES AND SUPERMARKETS,GPC
WALSALL COUNCIL,HTTP://OPENDATACOMMUNITIES.ORG/ID/METROPOLITAN-DISTRICT-COUNCIL/WALSALL,30/06/2019,RESOURCES & TRANSFORMATION,NOBISCO LIMITED,09/04/2019,H59620190411ZOLKEVVMB-1,14.05,CA ELMWOOD SPECIAL SCHOOL-DISPOSABLES-PROVISIONS,OTHER INDUSTRIAL SUPPLIES,GPC
WALSALL COUNCIL,HTTP://OPENDATACOMMUNITIES.ORG/ID/METROPOLITAN-DISTRICT-COUNCIL/WALSALL,30/06/2019,CHILDRENS SERVICES,AMZNMKTPLACE,09/04/2019,H59620190411ZSGVJPWVU-1,287.25,ST FRANCIS OF ASSISI CATHOLIC -OPERATIONAL MAINTENANCE,MISCELLANEOUS AND SPECIALTY RETAIL STORES,GPC
WALSALL COUNCIL,HTTP://OPENDATACOMMUNITIES.ORG/ID/METROPOLITAN-DISTRICT-COUNCIL/WALSALL,30/06/2019,RESOURCES & TRANSFORMATION,ARTHUR BRETT CATER,09/04/2019,H59620190412KBVKCCOUZ-1,-2.44,CA CROFT COMMUNITY PRIMARY SCH-FRUIT & VEGETABLES OTHER-PROVI,MISCELLANEOUS FOOD STORES & CONVENIENCE STORES,GPC
WALSALL COUNCIL,HTTP://OPENDATACOMMUNITIES.ORG/ID/METROPOLITAN-DISTRICT-COUNCIL/WALSALL,30/06/2019,ECONOMY & ENVIRONMENT,SPORTSDIRECT.COM,09/04/2019,H59620190412RUNJVSWVR-1,27.99,FIT4WORK PROGRAMME-PURCHASE OF FURNITURE & EQUIPM,SPORTING GOODS STORES,GPC
WALSALL COUNCIL,HTTP://OPENDATACOMMUNITIES.ORG/ID/METROPOLITAN-DISTRICT-COUNCIL/WALSALL,30/06/2019,RESOURCES & TRANSFORMATION,WWW.SCC.COM,09/04/2019,H59620190412WDMXZKSUD-1,321.02,RECHARGEABLE EQUIPMENT-COMPUTER EQUIPMENT,"COMPUTERS, COMPUTER PERIPHERAL EQUIPMENT, SOFTWARE",GPC
WALSALL COUNCIL,HTTP://OPENDATACOMMUNITIES.ORG/ID/METROPOLITAN-DISTRICT-COUNCIL/WALSALL,30/06/2019,RESOURCES & TRANSFORMATION,WWW.SCC.COM,09/04/2019,H59620190418VMJZVYFMA-1,3109.85,RECHARGEABLE EQUIPMENT-COMPUTER EQUIPMENT,"COMPUTERS, COMPUTER PERIPHERAL EQUIPMENT, SOFTWARE",GPC
WALSALL COUNCIL,HTTP://OPENDATACOMMUNITIES.ORG/ID/METROPOLITAN-DISTRICT-COUNCIL/WALSALL,30/06/2019,RESOURCES & TRANSFORMATION,WWW.SCC.COM,09/04/2019,H59620190419IPNYOQHJP-1,4699.2,RECHARGEABLE EQUIPMENT-COMPUTER EQUIPMENT,"COMPUTERS, COMPUTER PERIPHERAL EQUIPMENT, SOFTWARE",GPC
WALSALL COUNCIL,HTTP://OPENDATACOMMUNITIES.ORG/ID/METROPOLITAN-DISTRICT-COUNCIL/WALSALL,30/06/2019,CHILDRENS SERVICES,PP*GLMS,09/04/2019,H59620190515LFJVDANVX-1,-198,PELSALL VILLAGE SCHOOL-OPERATIONAL MAINTENANCE,,GPC
WALSALL COUNCIL,HTTP://OPENDATACOMMUNITIES.ORG/ID/METROPOLITAN-DISTRICT-COUNCIL/WALSALL,30/06/2019,CHILDRENS SERVICES,PP*GLMS,09/04/2019,H59620190615PQLWEAEBK-1,198,PELSALL VILLAGE SCHOOL-OPERATIONAL MAINTENANCE,,GPC
WALSALL COUNCIL,HTTP://OPENDATACOMMUNITIES.ORG/ID/METROPOLITAN-DISTRICT-COUNCIL/WALSALL,30/06/2019,CHILDRENS SERVICES,ASDA SUPERSTORE,10/04/2019,H59620190412AESMCEVSI-1,9,NORTH LOCALITY - SCHOOL READY-FOOD AND BEVERAGES-PROVISIONS,GROCERY STORES AND SUPERMARKETS,GPC
WALSALL COUNCIL,HTTP://OPENDATACOMMUNITIES.ORG/ID/METROPOLITAN-DISTRICT-COUNCIL/WALSALL,30/06/2019,RESOURCES & TRANSFORMATION,BLAKEMORE FOODSERVICE,10/04/2019,H59620190412AWSHIKXRL-1,509.61,CA BUSILL JONES PRIMARY SCHOOL-DRY FOODS-PROVISIONS,CATERERS,GPC
WALSALL COUNCIL,HTTP://OPENDATACOMMUNITIES.ORG/ID/METROPOLITAN-DISTRICT-COUNCIL/WALSALL,30/06/2019,RESOURCES & TRANSFORMATION,BLAKEMORE FOODSERVICE,10/04/2019,H59620190412AWSHIKXRL-2,51.84,CA BUSILL JONES PRIMARY SCHOOL-DRY FOODS-PROVISIONS,CATERERS,GPC
WALSALL COUNCIL,HTTP://OPENDATACOMMUNITIES.ORG/ID/METROPOLITAN-DISTRICT-COUNCIL/WALSALL,30/06/2019,ECONOMY & ENVIRONMENT,GEN REGISTER OFFICE,10/04/2019,H59620190412BBEXVMHHD-1,14,FIT4WORK PROGRAMME-FEES & LICENCES,GOVERNMENT SERVICES,GPC
WALSALL COUNCIL,HTTP://OPENDATACOMMUNITIES.ORG/ID/METROPOLITAN-DISTRICT-COUNCIL/WALSALL,30/06/2019,RESOURCES & TRANSFORMATION,BLAKEMORE FOODSERVICE,10/04/2019,H59620190412BHJRWLQGJ-1,17.86,CA KINGSHILL SCHOOL-DRY FOODS-PROVISIONS,CATERERS,GPC
WALSALL COUNCIL,HTTP://OPENDATACOMMUNITIES.ORG/ID/METROPOLITAN-DISTRICT-COUNCIL/WALSALL,30/06/2019,RESOURCES & TRANSFORMATION,BLAKEMORE FOODSERVICE,10/04/2019,H59620190412BOEIMTHEL-1,11.52,CA ELMWOOD SPECIAL SCHOOL-FROZEN FOODS-PROVISIONS,CATERERS,GPC
WALSALL COUNCIL,HTTP://OPENDATACOMMUNITIES.ORG/ID/METROPOLITAN-DISTRICT-COUNCIL/WALSALL,30/06/2019,RESOURCES & TRANSFORMATION,BLAKEMORE FOODSERVICE,10/04/2019,H59620190412BOEIMTHEL-2,231.94,CA ELMWOOD SPECIAL SCHOOL-FROZEN FOODS-PROVISIONS,CATERERS,GPC
WALSALL COUNCIL,HTTP://OPENDATACOMMUNITIES.ORG/ID/METROPOLITAN-DISTRICT-COUNCIL/WALSALL,30/06/2019,CHILDRENS SERVICES,HM PASSPORT OFFICE,10/04/2019,H59620190412CAVWNKLFL-1,58.5,LOOKED AFTER CHILDRENS SOCIAL -OTHER EMPLOYEES FEES & EXPENSE,GOVERNMENT SERVICES,GPC
WALSALL COUNCIL,HTTP://OPENDATACOMMUNITIES.ORG/ID/METROPOLITAN-DISTRICT-COUNCIL/WALSALL,30/06/2019,ECONOMY & ENVIRONMENT,VIRGIN TRAINS,10/04/2019,H59620190412CITGKQODQ-1,-173,MUSIC HUB FOREST ARTS-OFFICERS & STAFF PUBLIC TRANSP,PASSENGER RAILWAYS,GPC
WALSALL COUNCIL,HTTP://OPENDATACOMMUNITIES.ORG/ID/METROPOLITAN-DISTRICT-COUNCIL/WALSALL,30/06/2019,CHILDRENS SERVICES,FARMFOODS- WALSALL,10/04/2019,H59620190412DAHBDEDQO-1,22.97,REDRUTH ROAD-FOOD AND BEVERAGES-PROVISIONS,GROCERY STORES AND SUPERMARKETS,GPC
WALSALL COUNCIL,HTTP://OPENDATACOMMUNITIES.ORG/ID/METROPOLITAN-DISTRICT-COUNCIL/WALSALL,30/06/2019,CHILDRENS SERVICES,ASDA GROCERIES ONLINE,10/04/2019,H59620190412DJFQWWUYG-1,47.4,ROSEDALE C.E. PRIMARY SCHOOL-BREAD-GENERAL-PROVISIONS,GROCERY STORES AND SUPERMARKETS,GPC
WALSALL COUNCIL,HTTP://OPENDATACOMMUNITIES.ORG/ID/METROPOLITAN-DISTRICT-COUNCIL/WALSALL,30/06/2019,CHILDRENS SERVICES,HM PASSPORT OFFICE,10/04/2019,H59620190412DUYKEIFDP-1,58.5,LOOKED AFTER CHILDRENS SOCIAL -OTHER EMPLOYEES FEES & EXPENSE,GOVERNMENT SERVICES,GPC
WALSALL COUNCIL,HTTP://OPENDATACOMMUNITIES.ORG/ID/METROPOLITAN-DISTRICT-COUNCIL/WALSALL,30/06/2019,RESOURCES & TRANSFORMATION,BLAKEMORE FOODSERVICE,10/04/2019,H59620190412EAKYVLERB-1,215.36,CA BEACON PRIMARY SCHOOL-DRY FOODS-PROVISIONS,CATERERS,GPC
WALSALL COUNCIL,HTTP://OPENDATACOMMUNITIES.ORG/ID/METROPOLITAN-DISTRICT-COUNCIL/WALSALL,30/06/2019,RESOURCES & TRANSFORMATION,BLAKEMORE FOODSERVICE,10/04/2019,H59620190412EAKYVLERB-2,11,CA BEACON PRIMARY SCHOOL-DRY FOODS-PROVISIONS,CATERERS,GPC
WALSALL COUNCIL,HTTP://OPENDATACOMMUNITIES.ORG/ID/METROPOLITAN-DISTRICT-COUNCIL/WALSALL,30/06/2019,CHILDRENS SERVICES,SURVEYMONKEY,10/04/2019,H59620190412EBHNLVZRP-1,35,ADMINISTRATIVE SUPPLIES-MATERIALS,"COMPUTER PROGRAM, SYSTEM DESIGN",GPC
WALSALL COUNCIL,HTTP://OPENDATACOMMUNITIES.ORG/ID/METROPOLITAN-DISTRICT-COUNCIL/WALSALL,30/06/2019,CHILDRENS SERVICES,WWW.BANNERUK.COM,10/04/2019,H59620190412EUHMHCAIK-1,55.82,BIRCHILLS CHILDCARE SERVICES-STATIONERY & GENERAL OFFICE SU,"STATIONERY, OFFICE SUPPLIES AND WRITING PAPER",GPC
WALSALL COUNCIL,HTTP://OPENDATACOMMUNITIES.ORG/ID/METROPOLITAN-DISTRICT-COUNCIL/WALSALL,30/06/2019,CHILDRENS SERVICES,WWW.BANNERUK.COM,10/04/2019,H59620190412EUHMHCAIK-2,12.02,BIRCHILLS CHILDCARE SERVICES-CLEANING MATERIALS,"STATIONERY, OFFICE SUPPLIES AND WRITING PAPER",GPC
WALSALL COUNCIL,HTTP://OPENDATACOMMUNITIES.ORG/ID/METROPOLITAN-DISTRICT-COUNCIL/WALSALL,30/06/2019,CHILDRENS SERVICES,WWW.BANNERUK.COM,10/04/2019,H59620190412EUHMHCAIK-3,92.28,BIRCHILLS CHILDCARE SERVICES-HEALTH & SAFETY-MATERIALS,"STATIONERY, OFFICE SUPPLIES AND WRITING PAPER",GPC
WALSALL COUNCIL,HTTP://OPENDATACOMMUNITIES.ORG/ID/METROPOLITAN-DISTRICT-COUNCIL/WALSALL,30/06/2019,RESOURCES & TRANSFORMATION,TRAINLINE,10/04/2019,H59620190412FHFJYUICM-1,-358,AREA PARTNERSHIPS-OFFICERS & STAFF PUBLIC TRANSP,PASSENGER RAILWAYS,GPC
WALSALL COUNCIL,HTTP://OPENDATACOMMUNITIES.ORG/ID/METROPOLITAN-DISTRICT-COUNCIL/WALSALL,30/06/2019,CHILDRENS SERVICES,WWW.BANNERUK.COM,10/04/2019,H59620190412FMXSOMHQQ-1,38.34,LOCALITY FAMILY SUPPORT-NORTH-MISCELLANEOUS SUPPLIES,"STATIONERY, OFFICE SUPPLIES AND WRITING PAPER",GPC
WALSALL COUNCIL,HTTP://OPENDATACOMMUNITIES.ORG/ID/METROPOLITAN-DISTRICT-COUNCIL/WALSALL,30/06/2019,CHILDRENS SERVICES,ASDA SUPERSTORE,10/04/2019,H59620190412FWCBNIEOI-1,1.8,LOCALITY FAMILY SUPPORT-NORTH-CLEANING-MATERIALS (INC LIGHT ,GROCERY STORES AND SUPERMARKETS,GPC
WALSALL COUNCIL,HTTP://OPENDATACOMMUNITIES.ORG/ID/METROPOLITAN-DISTRICT-COUNCIL/WALSALL,30/06/2019,CHILDRENS SERVICES,ASDA SUPERSTORE,10/04/2019,H59620190412FWCBNIEOI-2,3.4,LOCALITY FAMILY SUPPORT-NORTH-FOOD AND BEVERAGES-PROVISIONS,GROCERY STORES AND SUPERMARKETS,GPC
WALSALL COUNCIL,HTTP://OPENDATACOMMUNITIES.ORG/ID/METROPOLITAN-DISTRICT-COUNCIL/WALSALL,30/06/2019,ECONOMY & ENVIRONMENT,WWW.BANNERUK.COM,10/04/2019,H59620190412FYKXHQARL-1,3.67,CENTRALISED STATIONARY-STATIONERY & GENERAL OFFICE SU,"STATIONERY, OFFICE SUPPLIES AND WRITING PAPER",GPC
WALSALL COUNCIL,HTTP://OPENDATACOMMUNITIES.ORG/ID/METROPOLITAN-DISTRICT-COUNCIL/WALSALL,30/06/2019,CHILDRENS SERVICES,POST OFFICE COUNTER,10/04/2019,H59620190412GDGRPGXPE-1,61,LOCALITY FAMILY SUPPORT-WEST-POSTAGES & COURIER SERVICES,POSTAL SERVICES - GOVERNMENT ONLY,GPC
WALSALL COUNCIL,HTTP://OPENDATACOMMUNITIES.ORG/ID/METROPOLITAN-DISTRICT-COUNCIL/WALSALL,30/06/2019,RESOURCES & TRANSFORMATION,BLAKEMORE FOODSERVICE,10/04/2019,H59620190412GFPBCRUJB-1,207.36,CA ELMORE GREEN PRIMARY SCHOOL-DRY FOODS-PROVISIONS,CATERERS,GPC
WALSALL COUNCIL,HTTP://OPENDATACOMMUNITIES.ORG/ID/METROPOLITAN-DISTRICT-COUNCIL/WALSALL,30/06/2019,RESOURCES & TRANSFORMATION,BLAKEMORE FOODSERVICE,10/04/2019,H59620190412GFPBCRUJB-2,86.4,CA ELMORE GREEN PRIMARY SCHOOL-DRY FOODS-PROVISIONS,CATERERS,GPC
WALSALL COUNCIL,HTTP://OPENDATACOMMUNITIES.ORG/ID/METROPOLITAN-DISTRICT-COUNCIL/WALSALL,30/06/2019,CHILDRENS SERVICES (SCHOOLS),POST OFFICE COUNTER,10/04/2019,H59620190412GOOQKZJLI-1,2.8,ADMINISTRATIVE SUPPLIES-POSTAGES & COURIER SERVICES,POSTAL SERVICES - GOVERNMENT ONLY,GPC
WALSALL COUNCIL,HTTP://OPENDATACOMMUNITIES.ORG/ID/METROPOLITAN-DISTRICT-COUNCIL/WALSALL,30/06/2019,CHILDRENS SERVICES,NISA SUPERMARKET,10/04/2019,H59620190412GRFPYDCOB-1,5.05,SPINDLETREE-FOOD AND BEVERAGES-PROVISIONS,MISCELLANEOUS GENERAL MERCHANDISE,GPC
WALSALL COUNCIL,HTTP://OPENDATACOMMUNITIES.ORG/ID/METROPOLITAN-DISTRICT-COUNCIL/WALSALL,30/06/2019,CHILDRENS SERVICES,B&M RETAIL LTD,10/04/2019,H59620190412GRTIQRJNL-1,7.99,LOCALITY FAMILY SUPPORT-NORTH-OPERATIONAL MAINTENANCE,DISCOUNT STORES,GPC
WALSALL COUNCIL,HTTP://OPENDATACOMMUNITIES.ORG/ID/METROPOLITAN-DISTRICT-COUNCIL/WALSALL,30/06/2019,CHILDRENS SERVICES,TRAINLINE,10/04/2019,H59620190412HFLJGLULK-1,109.84,DIRECTLY COMMISSIONED NURSING -OTHER TRAVEL ALLOWANCES,PASSENGER RAILWAYS,GPC
WALSALL COUNCIL,HTTP://OPENDATACOMMUNITIES.ORG/ID/METROPOLITAN-DISTRICT-COUNCIL/WALSALL,30/06/2019,CHILDRENS SERVICES,CITY OF WOLVERHAMPTON,10/04/2019,H59620190412HFQYYTOML-1,27,LOOKED AFTER CHILDRENS SOCIAL -OTHER EMPLOYEES FEES & EXPENSE,GOVERNMENT SERVICES,GPC
WALSALL COUNCIL,HTTP://OPENDATACOMMUNITIES.ORG/ID/METROPOLITAN-DISTRICT-COUNCIL/WALSALL,30/06/2019,RESOURCES & TRANSFORMATION,BLAKEMORE FOODSERVICE,10/04/2019,H59620190412HJGYVWUVG-1,252.45,CA KINGSHILL SCHOOL-DRY FOODS-PROVISIONS,CATERERS,GPC
WALSALL COUNCIL,HTTP://OPENDATACOMMUNITIES.ORG/ID/METROPOLITAN-DISTRICT-COUNCIL/WALSALL,30/06/2019,CHILDRENS SERVICES,ESPO,10/04/2019,H59620190412HLETCTQRQ-1,255.6,LOCALITY FAMILY SUPPORT-WEST-FEES & LICENCES,GOVERNMENT SERVICES,GPC
WALSALL COUNCIL,HTTP://OPENDATACOMMUNITIES.ORG/ID/METROPOLITAN-DISTRICT-COUNCIL/WALSALL,30/06/2019,RESOURCES & TRANSFORMATION,BLAKEMORE FOODSERVICE,10/04/2019,H59620190412HOFREEVWE-1,299.95,CA CASTLEFORT JMI SCHOOL-FROZEN FOODS-PROVISIONS,CATERERS,GPC
WALSALL COUNCIL,HTTP://OPENDATACOMMUNITIES.ORG/ID/METROPOLITAN-DISTRICT-COUNCIL/WALSALL,30/06/2019,RESOURCES & TRANSFORMATION,BLAKEMORE FOODSERVICE,10/04/2019,H59620190412HOFREEVWE-2,44.21,CA CASTLEFORT JMI SCHOOL-FROZEN FOODS-PROVISIONS,CATERERS,GPC
WALSALL COUNCIL,HTTP://OPENDATACOMMUNITIES.ORG/ID/METROPOLITAN-DISTRICT-COUNCIL/WALSALL,30/06/2019,CHILDRENS SERVICES,A F BLAKEMORE & SON LTD,10/04/2019,H59620190412HOTZJWAKJ-1,276.73,MARY ELLIOTT SCHOOL-BREAD-GENERAL-PROVISIONS,GROCERY STORES AND SUPERMARKETS,GPC
WALSALL COUNCIL,HTTP://OPENDATACOMMUNITIES.ORG/ID/METROPOLITAN-DISTRICT-COUNCIL/WALSALL,30/06/2019,CHILDRENS SERVICES,A F BLAKEMORE & SON LTD,10/04/2019,H59620190412HOTZJWAKJ-2,9.22,MARY ELLIOTT SCHOOL-BREAD-GENERAL-PROVISIONS,GROCERY STORES AND SUPERMARKETS,GPC
WALSALL COUNCIL,HTTP://OPENDATACOMMUNITIES.ORG/ID/METROPOLITAN-DISTRICT-COUNCIL/WALSALL,30/06/2019,RESOURCES & TRANSFORMATION,BLAKEMORE FOODSERVICE,10/04/2019,H59620190412HXZPWMPAK-1,-7.26,CA BUSILL JONES PRIMARY SCHOOL-DRY FOODS-PROVISIONS,CATERERS,GPC
WALSALL COUNCIL,HTTP://OPENDATACOMMUNITIES.ORG/ID/METROPOLITAN-DISTRICT-COUNCIL/WALSALL,30/06/2019,CHILDRENS SERVICES,HM PASSPORT OFFICE,10/04/2019,H59620190412IDQRZJENP-1,85,LOOKED AFTER CHILDRENS SOCIAL -OTHER EMPLOYEES FEES & EXPENSE,GOVERNMENT SERVICES,GPC
WALSALL COUNCIL,HTTP://OPENDATACOMMUNITIES.ORG/ID/METROPOLITAN-DISTRICT-COUNCIL/WALSALL,30/06/2019,CHILDRENS SERVICES (SCHOOLS),AMAZON.CO.UK*MZ0DS2VZ4,10/04/2019,H59620190412IISDKEQON-1,4.46,CHUCKERY PRIMARY-OPERATIONAL MAINTENANCE,OTHER DIRECT MARKETING-OTHER DIRECT MARKETERS,GPC
WALSALL COUNCIL,HTTP://OPENDATACOMMUNITIES.ORG/ID/METROPOLITAN-DISTRICT-COUNCIL/WALSALL,30/06/2019,RESOURCES & TRANSFORMATION,THE NEC,10/04/2019,H59620190412IIYDPQQMK-1,16,CL ADMIN-OTHER TRAVEL ALLOWANCES,AUTOMOBILE PARKING LOTS AND GARAGES,GPC
WALSALL COUNCIL,HTTP://OPENDATACOMMUNITIES.ORG/ID/METROPOLITAN-DISTRICT-COUNCIL/WALSALL,30/06/2019,CHILDRENS SERVICES,WM MORRISONS STORE,10/04/2019,H59620190412IJKNTGGQI-1,0.7,57 LICHFIELD ROAD-FOOD AND BEVERAGES-PROVISIONS,GROCERY STORES AND SUPERMARKETS,GPC
WALSALL COUNCIL,HTTP://OPENDATACOMMUNITIES.ORG/ID/METROPOLITAN-DISTRICT-COUNCIL/WALSALL,30/06/2019,CHILDRENS SERVICES,WM MORRISONS STORE,10/04/2019,H59620190412IJKNTGGQI-2,14.9,57 LICHFIELD ROAD-FOOD AND BEVERAGES-PROVISIONS,GROCERY STORES AND SUPERMARKETS,GPC
WALSALL COUNCIL,HTTP://OPENDATACOMMUNITIES.ORG/ID/METROPOLITAN-DISTRICT-COUNCIL/WALSALL,30/06/2019,ECONOMY & ENVIRONMENT,ASDA SUPERSTORE,10/04/2019,H59620190412ILVEOLILO-1,14,MUSIC HUB FOREST ARTS-COMPUTER EQUIPMENT,GROCERY STORES AND SUPERMARKETS,GPC
WALSALL COUNCIL,HTTP://OPENDATACOMMUNITIES.ORG/ID/METROPOLITAN-DISTRICT-COUNCIL/WALSALL,30/06/2019,CHILDRENS SERVICES,AMAZON.CO.UK*MZ4IL9ML4,10/04/2019,H59620190412ISYBGIGTM-1,23.14,ADMIN-STATIONERY & GENERAL OFFICE SU,OTHER DIRECT MARKETING-OTHER DIRECT MARKETERS,GPC
WALSALL COUNCIL,HTTP://OPENDATACOMMUNITIES.ORG/ID/METROPOLITAN-DISTRICT-COUNCIL/WALSALL,30/06/2019,RESOURCES & TRANSFORMATION,BLAKEMORE FOODSERVICE,10/04/2019,H59620190412IVXICSFBF-1,24,CA ELMWOOD SPECIAL SCHOOL-DRY FOODS-PROVISIONS,CATERERS,GPC
WALSALL COUNCIL,HTTP://OPENDATACOMMUNITIES.ORG/ID/METROPOLITAN-DISTRICT-COUNCIL/WALSALL,30/06/2019,RESOURCES & TRANSFORMATION,WWW.BANNERUK.COM,10/04/2019,H59620190412JBLKAUUHA-1,13.69,CORPORATE PAYROLL AND PENSIONS-STATIONERY & GENERAL OFFICE SU,"STATIONERY, OFFICE SUPPLIES AND WRITING PAPER",GPC
WALSALL COUNCIL,HTTP://OPENDATACOMMUNITIES.ORG/ID/METROPOLITAN-DISTRICT-COUNCIL/WALSALL,30/06/2019,RESOURCES & TRANSFORMATION,POUNDLAND LTD 1055,10/04/2019,H59620190412JERXFCLNN-1,2,ACCOMMODATION SERVICES MANAGEM-FOOD AND BEVERAGES-PROVISIONS,DISCOUNT STORES,GPC
WALSALL COUNCIL,HTTP://OPENDATACOMMUNITIES.ORG/ID/METROPOLITAN-DISTRICT-COUNCIL/WALSALL,30/06/2019,ECONOMY & ENVIRONMENT,STANFORD MARSH LTD,10/04/2019,H59620190412JHYGJQBVT-1,274.44,DEVELOPMENT MANAGEMENT-STATIONERY & GENERAL OFFICE SU,"OFFICE, SCHOOL SUPPLY, AND STATIONERY STORES",GPC
WALSALL COUNCIL,HTTP://OPENDATACOMMUNITIES.ORG/ID/METROPOLITAN-DISTRICT-COUNCIL/WALSALL,30/06/2019,RESOURCES & TRANSFORMATION,BLAKEMORE FOODSERVICE,10/04/2019,H59620190412JOLMUBOXG-1,68.88,CA ST GILES C.E. PRIMARY SCHOO-FROZEN FOODS-PROVISIONS,CATERERS,GPC
WALSALL COUNCIL,HTTP://OPENDATACOMMUNITIES.ORG/ID/METROPOLITAN-DISTRICT-COUNCIL/WALSALL,30/06/2019,RESOURCES & TRANSFORMATION,BLAKEMORE FOODSERVICE,10/04/2019,H59620190412JOLMUBOXG-2,279.64,CA ST GILES C.E. PRIMARY SCHOO-FROZEN FOODS-PROVISIONS,CATERERS,GPC
WALSALL COUNCIL,HTTP://OPENDATACOMMUNITIES.ORG/ID/METROPOLITAN-DISTRICT-COUNCIL/WALSALL,30/06/2019,RESOURCES & TRANSFORMATION,BLAKEMORE FOODSERVICE,10/04/2019,H59620190412KDYIHAQMK-1,4.84,CA ELMWOOD SPECIAL SCHOOL-DRY FOODS-PROVISIONS,CATERERS,GPC
WALSALL COUNCIL,HTTP://OPENDATACOMMUNITIES.ORG/ID/METROPOLITAN-DISTRICT-COUNCIL/WALSALL,30/06/2019,CHILDRENS SERVICES,MCDONALDS,10/04/2019,H59620190412KLONXGKTO-1,11.07,LOOKED AFTER CHILDRENS SOCIAL -OFFICERS SUBSISTENCE EXPENSES,QUICK PAYMENT SERVICE-FAST-FOOD RESTAURANTS,GPC
WALSALL COUNCIL,HTTP://OPENDATACOMMUNITIES.ORG/ID/METROPOLITAN-DISTRICT-COUNCIL/WALSALL,30/06/2019,RESOURCES & TRANSFORMATION,MYFONTS,10/04/2019,H59620190412LACHQTUOW-1,1284,ICT RECHARGES HOLDING ACCOUNT-MISCELLANEOUS SUPPLIES,PROFESSIONAL SERVICES,GPC
WALSALL COUNCIL,HTTP://OPENDATACOMMUNITIES.ORG/ID/METROPOLITAN-DISTRICT-COUNCIL/WALSALL,30/06/2019,RESOURCES & TRANSFORMATION,ARTHUR BRETT CATER,10/04/2019,H59620190412LBZLFNGLI-1,20.9,CA COOPER JORDAN CE PRIMARY SC-FRUIT & VEGETABLES OTHER-PROVI,MISCELLANEOUS FOOD STORES & CONVENIENCE STORES,GPC
WALSALL COUNCIL,HTTP://OPENDATACOMMUNITIES.ORG/ID/METROPOLITAN-DISTRICT-COUNCIL/WALSALL,30/06/2019,ECONOMY & ENVIRONMENT,WWW.BANNERUK.COM,10/04/2019,H59620190412LKUHVLKWF-1,8.21,LIBRARY OPERATIONS CENTRAL-STATIONERY & GENERAL OFFICE SU,"STATIONERY, OFFICE SUPPLIES AND WRITING PAPER",GPC
WALSALL COUNCIL,HTTP://OPENDATACOMMUNITIES.ORG/ID/METROPOLITAN-DISTRICT-COUNCIL/WALSALL,30/06/2019,RESOURCES & TRANSFORMATION,BLAKEMORE FOODSERVICE,10/04/2019,H59620190412LQHDZHFMI-1,27.55,CA CASTLEFORT JMI SCHOOL-FROZEN FOODS-PROVISIONS,CATERERS,GPC
WALSALL COUNCIL,HTTP://OPENDATACOMMUNITIES.ORG/ID/METROPOLITAN-DISTRICT-COUNCIL/WALSALL,30/06/2019,RESOURCES & TRANSFORMATION,BLAKEMORE FOODSERVICE,10/04/2019,H59620190412LQMJUGNWM-1,44.21,CA ELMWOOD SPECIAL SCHOOL-FROZEN FOODS-PROVISIONS,CATERERS,GPC
WALSALL COUNCIL,HTTP://OPENDATACOMMUNITIES.ORG/ID/METROPOLITAN-DISTRICT-COUNCIL/WALSALL,30/06/2019,RESOURCES & TRANSFORMATION,BLAKEMORE FOODSERVICE,10/04/2019,H59620190412LQMJUGNWM-2,223.98,CA ELMWOOD SPECIAL SCHOOL-FROZEN FOODS-PROVISIONS,CATERERS,GPC
WALSALL COUNCIL,HTTP://OPENDATACOMMUNITIES.ORG/ID/METROPOLITAN-DISTRICT-COUNCIL/WALSALL,30/06/2019,RESOURCES & TRANSFORMATION,BLAKEMORE FOODSERVICE,10/04/2019,H59620190412MPLLBGMBC-1,36.84,CA WATLING STREET PRIMARY SCHO-FROZEN FOODS-PROVISIONS,CATERERS,GPC
WALSALL COUNCIL,HTTP://OPENDATACOMMUNITIES.ORG/ID/METROPOLITAN-DISTRICT-COUNCIL/WALSALL,30/06/2019,RESOURCES & TRANSFORMATION,BLAKEMORE FOODSERVICE,10/04/2019,H59620190412MPLLBGMBC-2,144.87,CA WATLING STREET PRIMARY SCHO-FROZEN FOODS-PROVISIONS,CATERERS,GPC
WALSALL COUNCIL,HTTP://OPENDATACOMMUNITIES.ORG/ID/METROPOLITAN-DISTRICT-COUNCIL/WALSALL,30/06/2019,RESOURCES & TRANSFORMATION,BLAKEMORE FOODSERVICE,10/04/2019,H59620190412MREPUNYIC-1,24.04,CA ST MICHAELS C.E. PRIMARY SC-FROZEN FOODS-PROVISIONS,CATERERS,GPC
WALSALL COUNCIL,HTTP://OPENDATACOMMUNITIES.ORG/ID/METROPOLITAN-DISTRICT-COUNCIL/WALSALL,30/06/2019,RESOURCES & TRANSFORMATION,BLAKEMORE FOODSERVICE,10/04/2019,H59620190412MXBNWCGIN-1,55.1,CA ST MICHAELS C.E. PRIMARY SC-FROZEN FOODS-PROVISIONS,CATERERS,GPC
